Workbook

Sheet Main
B10: 2020-04-03
B12: Sheet No. | C12: Template Name | D12: Summary
B13: 1 | C13: Future Intra | D13: For Intraday trading in F&O segment
B14: 2 | C14: Cash Intra | D14: For Intraday trading in cash market segment
B15: 3 | C15: Mid-cap Intra | D15: For Intraday trading in Mid-cap stocks
B16: 4 | C16: Bulk Deals | D16: Reveals Bulk Deals carried on NSE & BSE
B17: 5 | C17: Call Tracker
K27: `

Sheet Future Intra
M5: Back to Main Page
A6: FOR INTRA DAY TRADING | L6: =Main!B10 -> 2020-04-03
A9: Sr.no | B9: Sector | C9: Scrip | D9: CLOSE RATE | E9: Pivot Point | F9: Supports | I9: Resistances
B10: Sector | D10: Point | E10: Point | F10: S1 | G10: S2 | H10: S3 | I10: R1 | J10: R2 | K10: R3 | L10: HIGH | M10: LOW | N10: OI | O10: % Change in OI
A11: 1 | B11: Index | C11: BANKNIFTY | D11: 18171.20 | E11: 18376.63 | F11: 17757.22 | G11: 17343.23 | H11: 16723.82 | I11: 18790.62 | J11: 19410.03 | K11: 19824.02 | L11: 18996.05 | M11: 17962.65 | N11: 941180 | O11: -8.55%
A12: 2 | B12: Index | C12: NIFTY | D12: 8257.30 | E12: 8335.77 | F12: 8102.53 | G12: 7947.77 | H12: 7714.53 | I12: 8490.53 | J12: 8723.77 | K12: 8878.53 | L12: 8569 | M12: 8181 | N12: 11009925 | O12: -6.06%
A13: 3 | B13: Index | C13: NIFTYIT | D13: 12072.00 | E13: 12207.33 | F13: 11864.67 | G13: 11657.33 | H13: 11314.67 | I13: 12414.67 | J13: 12757.33 | K13: 12964.67 | L13: 12550 | M13: 12000 | N13: 1900 | O13: 18.75%
A14: 4 | B14: Cement | C14: ACC | D14: 962.10 | E14: 960.97 | F14: 951.93 | G14: 941.77 | H14: 932.73 | I14: 971.13 | J14: 980.17 | K14: 990.33 | L14: 970 | M14: 950.8 | N14: 2010400 | O14: -0.63%
A15: 5 | B15: Others | C15: ADANIENT | D15: 134.70 | E15: 135.45 | F15: 131.90 | G15: 129.10 | H15: 125.55 | I15: 138.25 | J15: 141.80 | K15: 144.60 | L15: 139 | M15: 132.65 | N15: 16288000 | O15: 0.44%
A16: 6 | B16: Others | C16: ADANIPORTS | D16: 245.95 | E16: 243.30 | F16: 238.05 | G16: 230.15 | H16: 224.90 | I16: 251.20 | J16: 256.45 | K16: 264.35 | L16: 248.55 | M16: 235.4 | N16: 25402500 | O16: 4.16%
A17: 7 | B17: Power | C17: ADANIPOWER | D17: 26.90 | E17: 27.08 | F17: 26.47 | G17: 26.03 | H17: 25.42 | I17: 27.52 | J17: 28.13 | K17: 28.57 | L17: 27.7 | M17: 26.65 | N17: 51130000 | O17: 0.97%
A18: 8 | B18: Automobile | C18: AMARAJABAT | D18: 479.50 | E18: 479.68 | F18: 464.82 | G18: 450.13 | H18: 435.27 | I18: 494.37 | J18: 509.23 | K18: 523.92 | L18: 494.55 | M18: 465 | N18: 954400 | O18: 4.83%
A19: 9 | B19: Cement | C19: AMBUJACEM | D19: 155.50 | E19: 153.77 | F19: 151.33 | G19: 147.17 | H19: 144.73 | I19: 157.93 | J19: 160.37 | K19: 164.53 | L19: 156.2 | M19: 149.6 | N19: 18157500 | O19: 6.86%
A20: 10 | B20: Others | C20: APOLLOHOSP | D20: 1091.45 | E20: 1102.70 | F20: 1068.55 | G20: 1045.65 | H20: 1011.50 | I20: 1125.60 | J20: 1159.75 | K20: 1182.65 | L20: 1136.85 | M20: 1079.8 | N20: 767500 | O20: 2.81%
A21: 11 | B21: Automobile | C21: APOLLOTYRE | D21: 78.20 | E21: 78.25 | F21: 77.05 | G21: 75.90 | H21: 74.70 | I21: 79.40 | J21: 80.60 | K21: 81.75 | L21: 79.45 | M21: 77.1 | N21: 5061000 | O21: -0.47%
A22: 12 | B22: Automobile | C22: ASHOKLEY | D22: 40.95 | E22: 41.68 | F22: 39.12 | G22: 37.28 | H22: 34.72 | I22: 43.52 | J22: 46.08 | K22: 47.92 | L22: 44.25 | M22: 39.85 | N22: 35488000 | O22: 1.79%
A23: 13 | B23: FMCG | C23: ASIANPAINT | D23: 1602.25 | E23: 1616.83 | F23: 1570.72 | G23: 1539.18 | H23: 1493.07 | I23: 1648.37 | J23: 1694.48 | K23: 1726.02 | L23: 1662.95 | M23: 1585.3 | N23: 5819400 | O23: -0.07%
A24: 14 | B24: Pharma | C24: AUROPHARMA | D24: 393.20 | E24: 398.10 | F24: 380.20 | G24: 367.20 | H24: 349.30 | I24: 411.10 | J24: 429.00 | K24: 442.00 | L24: 416 | M24: 385.1 | N24: 7751000 | O24: 4.98%
A25: 15 | B25: Banking | C25: AXISBANK | D25: 358.95 | E25: 364.85 | F25: 349.10 | G25: 339.25 | H25: 323.50 | I25: 374.70 | J25: 390.45 | K25: 400.30 | L25: 380.6 | M25: 355 | N25: 51091200 | O25: 0.49%
A26: 16 | B26: Automobile | C26: BAJAJ-AUTO | D26: 2053.95 | E26: 2046.98 | F26: 1999.97 | G26: 1945.98 | H26: 1898.97 | I26: 2100.97 | J26: 2147.98 | K26: 2201.97 | L26: 2094 | M26: 1993 | N26: 1301000 | O26: 4.12%
A27: 17 | B27: Finance | C27: BAJAJFINSV | D27: 4514.25 | E27: 4558.48 | F27: 4430.67 | G27: 4347.08 | H27: 4219.27 | I27: 4642.07 | J27: 4769.88 | K27: 4853.47 | L27: 4686.3 | M27: 4474.9 | N27: 666875 | O27: 5.27%
A28: 18 | B28: Finance | C28: BAJFINANCE | D28: 2217.15 | E28: 2214.67 | F28: 2140.48 | G28: 2063.82 | H28: 1989.63 | I28: 2291.33 | J28: 2365.52 | K28: 2442.18 | L28: 2288.85 | M28: 2138 | N28: 4822000 | O28: -3.88%
A29: 19 | B29: Automobile | C29: BALKRISIND | D29: 797.85 | E29: 784.15 | F29: 752.70 | G29: 707.55 | H29: 676.10 | I29: 829.30 | J29: 860.75 | K29: 905.90 | L29: 815.6 | M29: 739 | N29: 617600 | O29: 15.57%
A30: 20 | B30: Banking | C30: BANDHANBNK | D30: 195.85 | E30: 198.15 | F30: 188.50 | G30: 181.15 | H30: 171.50 | I30: 205.50 | J30: 215.15 | K30: 222.50 | L30: 207.8 | M30: 190.8 | N30: 9838800 | O30: -1.29%
A31: 21 | B31: Banking | C31: BANKBARODA | D31: 51.25 | E31: 51.78 | F31: 50.12 | G31: 48.98 | H31: 47.32 | I31: 52.92 | J31: 54.58 | K31: 55.72 | L31: 53.45 | M31: 50.65 | N31: 29197800 | O31: 1.85%
A32: 22 | B32: FMCG | C32: BATAINDIA | D32: 1182.65 | E32: 1197.73 | F32: 1148.92 | G32: 1115.18 | H32: 1066.37 | I32: 1231.47 | J32: 1280.28 | K32: 1314.02 | L32: 1246.55 | M32: 1164 | N32: 1303500 | O32: 3.00%
A33: 23 | B33: Capital_Goods | C33: BEL | D33: 69.25 | E33: 71.12 | F33: 65.73 | G33: 62.22 | H33: 56.83 | I33: 74.63 | J33: 80.02 | K33: 83.53 | L33: 76.5 | M33: 67.6 | N33: 16620000 | O33: -0.75%
A34: 24 | B34: FMCG | C34: BERGEPAINT | D34: 485.00 | E34: 487.13 | F34: 474.27 | G34: 463.53 | H34: 450.67 | I34: 497.87 | J34: 510.73 | K34: 521.47 | L34: 500 | M34: 476.4 | N34: 4688200 | O34: 2.30%
A35: 25 | B35: Automobile | C35: BHARATFORG | D35: 231.20 | E35: 230.23 | F35: 225.97 | G35: 220.73 | H35: 216.47 | I35: 235.47 | J35: 239.73 | K35: 244.97 | L35: 234.5 | M35: 225 | N35: 6194500 | O35: 3.74%
A36: 26 | B36: Telecom | C36: BHARTIARTL | D36: 422.80 | E36: 425.65 | F36: 410.55 | G36: 398.30 | H36: 383.20 | I36: 437.90 | J36: 453.00 | K36: 465.25 | L36: 440.75 | M36: 413.4 | N36: 55385622 | O36: 1.11%
A37: 27 | B37: Capital_Goods | C37: BHEL | D37: 20.65 | E37: 20.75 | F37: 20.20 | G37: 19.75 | H37: 19.20 | I37: 21.20 | J37: 21.75 | K37: 22.20 | L37: 21.3 | M37: 20.3 | N37: 45832800 | O37: -4.20%
A38: 28 | B38: Pharma | C38: BIOCON | D38: 278.90 | E38: 280.17 | F38: 273.83 | G38: 268.77 | H38: 262.43 | I38: 285.23 | J38: 291.57 | K38: 296.63 | L38: 286.5 | M38: 275.1 | N38: 7088600 | O38: 6.83%
A39: 29 | B39: Automobile | C39: BOSCHLTD | D39: 9274.70 | E39: 9393.83 | F39: 8990.92 | G39: 8707.13 | H39: 8304.22 | I39: 9677.62 | J39: 10080.53 | K39: 10364.32 | L39: 9796.75 | M39: 9110.05 | N39: 108400 | O39: 23.13%
A40: 30 | B40: Oil_Gas | C40: BPCL | D40: 302.60 | E40: 304.03 | F40: 292.57 | G40: 282.53 | H40: 271.07 | I40: 314.07 | J40: 325.53 | K40: 335.57 | L40: 315.5 | M40: 294 | N40: 17820000 | O40: -1.38%
A41: 31 | B41: FMCG | C41: BRITANNIA | D41: 2558.40 | E41: 2616.63 | F41: 2452.82 | G41: 2347.23 | H41: 2183.42 | I41: 2722.22 | J41: 2886.03 | K41: 2991.62 | L41: 2780.45 | M41: 2511.05 | N41: 1020000 | O41: -16.57%
A42: 32 | B42: Pharma | C42: CADILAHC | D42: 264.05 | E42: 266.43 | F42: 259.27 | G42: 254.48 | H42: 247.32 | I42: 271.22 | J42: 278.38 | K42: 283.17 | L42: 273.6 | M42: 261.65 | N42: 2783000 | O42: 3.18%
A43: 33 | B43: Banking | C43: CANBK | D43: 90.30 | E43: 89.85 | F43: 88.25 | G43: 86.20 | H43: 84.60 | I43: 91.90 | J43: 93.50 | K43: 95.55 | L43: 91.45 | M43: 87.8 | N43: 6851000 | O43: 3.37%
A44: 34 | B44: Textile | C44: CENTURYTEX | D44: 298.45 | E44: 300.78 | F44: 286.82 | G44: 275.18 | H44: 261.22 | I44: 312.42 | J44: 326.38 | K44: 338.02 | L44: 314.75 | M44: 289.15 | N44: 1927800 | O44: -4.94%
A45: 35 | B45: Power | C45: CESC | D45: 393.85 | E45: 399.35 | F45: 384.50 | G45: 375.15 | H45: 360.30 | I45: 408.70 | J45: 423.55 | K45: 432.90 | L45: 414.2 | M45: 390 | N45: 1349600 | O45: -3.27%
A46: 36 | B46: Finance | C46: CHOLAFIN | D46: 143.70 | E46: 144.55 | F46: 137.75 | G46: 131.80 | H46: 125.00 | I46: 150.50 | J46: 157.30 | K46: 163.25 | L46: 151.35 | M46: 138.6 | N46: 3557500 | O46: 3.94%
A47: 37 | B47: Pharma | C47: CIPLA | D47: 414.65 | E47: 418.62 | F47: 407.38 | G47: 400.12 | H47: 388.88 | I47: 425.88 | J47: 437.12 | K47: 444.38 | L47: 429.85 | M47: 411.35 | N47: 8976900 | O47: -0.27%
A48: 38 | B48: Others | C48: COALINDIA | D48: 139.90 | E48: 139.68 | F48: 137.77 | G48: 135.63 | H48: 133.72 | I48: 141.82 | J48: 143.73 | K48: 145.87 | L48: 141.6 | M48: 137.55 | N48: 23808600 | O48: 6.13%
A49: 39 | B49: FMCG | C49: COLPAL | D49: 1244.95 | E49: 1247.17 | F49: 1216.48 | G49: 1188.02 | H49: 1157.33 | I49: 1275.63 | J49: 1306.32 | K49: 1334.78 | L49: 1277.85 | M49: 1218.7 | N49: 1427300 | O49: 2.98%
A50: 40 | B50: Others | C50: CONCOR | D50: 319.35 | E50: 323.30 | F50: 308.20 | G50: 297.05 | H50: 281.95 | I50: 334.45 | J50: 349.55 | K50: 360.70 | L50: 338.4 | M50: 312.15 | N50: 3541758 | O50: -5.35%
A51: 41 | B51: Capital_Goods | C51: CUMMINSIND | D51: 310.00 | E51: 315.67 | F51: 299.78 | G51: 289.57 | H51: 273.68 | I51: 325.88 | J51: 341.77 | K51: 351.98 | L51: 331.55 | M51: 305.45 | N51: 789300 | O51: 19.48%
A52: 42 | B52: FMCG | C52: DABUR | D52: 435.90 | E52: 440.67 | F52: 426.48 | G52: 417.07 | H52: 402.88 | I52: 450.08 | J52: 464.27 | K52: 473.68 | L52: 454.85 | M52: 431.25 | N52: 10685000 | O52: -0.09%
A53: 43 | B53: Pharma | C53: DIVISLAB | D53: 1883.15 | E53: 1910.42 | F53: 1820.73 | G53: 1758.32 | H53: 1668.63 | I53: 1972.83 | J53: 2062.52 | K53: 2124.93 | L53: 2000.1 | M53: 1848 | N53: 1969600 | O53: 1.32%
A54: 44 | B54: Realty | C54: DLF | D54: 133.00 | E54: 133.33 | F54: 129.87 | G54: 126.73 | H54: 123.27 | I54: 136.47 | J54: 139.93 | K54: 143.07 | L54: 136.8 | M54: 130.2 | N54: 26452800 | O54: -2.10%
A55: 45 | B55: Pharma | C55: DRREDDY | D55: 3103.30 | E55: 3105.70 | F55: 3065.65 | G55: 3028.00 | H55: 2987.95 | I55: 3143.35 | J55: 3183.40 | K55: 3221.05 | L55: 3145.75 | M55: 3068.05 | N55: 2268500 | O55: 0.39%
A56: 46 | B56: Automobile | C56: EICHERMOT | D56: 13048.30 | E56: 13061.93 | F56: 12736.37 | G56: 12424.43 | H56: 12098.87 | I56: 13373.87 | J56: 13699.43 | K56: 14011.37 | L56: 13387.5 | M56: 12750 | N56: 222090 | O56: 0.30%
A57: 47 | B57: Finance | C57: EQUITAS | D57: 41.80 | E57: 42.08 | F57: 40.27 | G57: 38.73 | H57: 36.92 | I57: 43.62 | J57: 45.43 | K57: 46.97 | L57: 43.9 | M57: 40.55 | N57: 6262200 | O57: -0.54%
A58: 48 | B58: Automobile | C58: ESCORTS | D58: 594.55 | E58: 608.10 | F58: 563.45 | G58: 532.35 | H58: 487.70 | I58: 639.20 | J58: 683.85 | K58: 714.95 | L58: 652.75 | M58: 577 | N58: 1830400 | O58: -16.68%
A59: 49 | B59: Automobile | C59: EXIDEIND | D59: 131.70 | E59: 132.08 | F59: 129.32 | G59: 126.93 | H59: 124.17 | I59: 134.47 | J59: 137.23 | K59: 139.62 | L59: 134.85 | M59: 129.7 | N59: 3546700 | O59: -4.53%
A60: 50 | B60: Banking | C60: FEDERALBNK | D60: 41.35 | E60: 40.80 | F60: 39.95 | G60: 38.55 | H60: 37.70 | I60: 42.20 | J60: 43.05 | K60: 44.45 | L60: 41.65 | M60: 39.4 | N60: 34538000 | O60: -0.44%
A61: 51 | B61: Oil_Gas | C61: GAIL | D61: 75.95 | E61: 76.50 | F61: 74.05 | G61: 72.15 | H61: 69.70 | I61: 78.40 | J61: 80.85 | K61: 82.75 | L61: 78.95 | M61: 74.6 | N61: 23549610 | O61: -6.80%
A62: 52 | B62: Pharma | C62: GLENMARK | D62: 204.45 | E62: 206.47 | F62: 199.18 | G62: 193.92 | H62: 186.63 | I62: 211.73 | J62: 219.02 | K62: 224.28 | L62: 213.75 | M62: 201.2 | N62: 2475200 | O62: -6.36%
A63: 53 | B63: Infrastructure | C63: GMRINFRA | D63: 16.30 | E63: 16.27 | F63: 16.18 | G63: 16.07 | H63: 15.98 | I63: 16.38 | J63: 16.47 | K63: 16.58 | L63: 16.35 | M63: 16.15 | N63: 67500000 | O63: -0.27%
A64: 54 | B64: FMCG | C64: GODREJCP | D64: 548.80 | E64: 546.75 | F64: 529.05 | G64: 509.30 | H64: 491.60 | I64: 566.50 | J64: 584.20 | K64: 603.95 | L64: 564.45 | M64: 527 | N64: 6398400 | O64: 0.41%
A65: 55 | B65: Cement | C65: GRASIM | D65: 475.10 | E65: 470.85 | F65: 458.20 | G65: 441.30 | H65: 428.65 | I65: 487.75 | J65: 500.40 | K65: 517.30 | L65: 483.5 | M65: 453.95 | N65: 20517750 | O65: -0.02%
A66: 56 | B66: Others | C66: HAVELLS | D66: 479.00 | E66: 475.93 | F66: 469.57 | G66: 460.13 | H66: 453.77 | I66: 485.37 | J66: 491.73 | K66: 501.17 | L66: 482.3 | M66: 466.5 | N66: 5012000 | O66: 1.19%
A67: 57 | B67: Technology | C67: HCLTECH | D67: 414.40 | E67: 418.92 | F67: 404.88 | G67: 395.37 | H67: 381.33 | I67: 428.43 | J67: 442.47 | K67: 451.98 | L67: 432.95 | M67: 409.4 | N67: 22339800 | O67: 1.21%
A68: 58 | B68: Finance | C68: HDFC | D68: 1588.05 | E68: 1619.63 | F68: 1546.82 | G68: 1505.58 | H68: 1432.77 | I68: 1660.87 | J68: 1733.68 | K68: 1774.92 | L68: 1692.45 | M68: 1578.4 | N68: 27909500 | O68: -1.12%
A69: 59 | B69: Banking | C69: HDFCBANK | D69: 828.20 | E69: 839.55 | F69: 808.75 | G69: 789.30 | H69: 758.50 | I69: 859.00 | J69: 889.80 | K69: 909.25 | L69: 870.35 | M69: 820.1 | N69: 24654000 | O69: 5.63%
A70: 60 | B70: Finance | C70: HDFCLIFE | D70: 431.00 | E70: 435.57 | F70: 422.38 | G70: 413.77 | H70: 400.58 | I70: 444.18 | J70: 457.37 | K70: 465.98 | L70: 448.75 | M70: 426.95 | N70: 10286100 | O70: 4.30%
A71: 61 | B71: Automobile | C71: HEROMOTOCO | D71: 1637.05 | E71: 1616.72 | F71: 1588.73 | G71: 1540.42 | H71: 1512.43 | I71: 1665.03 | J71: 1693.02 | K71: 1741.33 | L71: 1644.7 | M71: 1568.4 | N71: 1856600 | O71: 2.35%
A72: 62 | B72: Metals | C72: HINDALCO | D72: 91.95 | E72: 92.62 | F72: 90.23 | G72: 88.52 | H72: 86.13 | I72: 94.33 | J72: 96.72 | K72: 98.43 | L72: 95 | M72: 90.9 | N72: 33838000 | O72: -3.40%
A73: 63 | B73: Oil_Gas | C73: HINDPETRO | D73: 184.30 | E73: 186.90 | F73: 178.40 | G73: 172.50 | H73: 164.00 | I73: 192.80 | J73: 201.30 | K73: 207.20 | L73: 195.4 | M73: 181 | N73: 8542800 | O73: 11.33%
A74: 64 | B74: FMCG | C74: HINDUNILVR | D74: 2184.30 | E74: 2223.17 | F74: 2123.03 | G74: 2061.77 | H74: 1961.63 | I74: 2284.43 | J74: 2384.57 | K74: 2445.83 | L74: 2323.3 | M74: 2161.9 | N74: 9117300 | O74: 0.63%
A75: 65 | B75: Finance | C75: IBULHSGFIN | D75: 99.65 | E75: 100.62 | F75: 95.73 | G75: 91.82 | H75: 86.93 | I75: 104.53 | J75: 109.42 | K75: 113.33 | L75: 105.5 | M75: 96.7 | N75: 8485200 | O75: -1.05%
A76: 66 | B76: Banking | C76: ICICIBANK | D76: 312.00 | E76: 314.73 | F76: 304.77 | G76: 297.53 | H76: 287.57 | I76: 321.97 | J76: 331.93 | K76: 339.17 | L76: 324.7 | M76: 307.5 | N76: 78408000 | O76: 0.39%
A77: 67 | B77: Finance | C77: ICICIPRULI | D77: 344.15 | E77: 351.52 | F77: 334.43 | G77: 324.72 | H77: 307.63 | I77: 361.23 | J77: 378.32 | K77: 388.03 | L77: 368.6 | M77: 341.8 | N77: 7224000 | O77: -4.03%
A78: 68 | B78: Telecom | C78: IDEA | D78: 3.00 | E78: 3.02 | F78: 2.93 | G78: 2.87 | H78: 2.78 | I78: 3.08 | J78: 3.17 | K78: 3.23 | L78: 3.1 | M78: 2.95 | N78: 241864000 | O78: 1.61%
A79: 69 | B79: Banking | C79: IDFCFIRSTB | D79: 20.25 | E79: 20.22 | F79: 19.58 | G79: 18.92 | H79: 18.28 | I79: 20.88 | J79: 21.52 | K79: 22.18 | L79: 20.85 | M79: 19.55 | N79: 114732000 | O79: 1.35%
A80: 70 | B80: Oil_Gas | C80: IGL | D80: 389.20 | E80: 386.77 | F80: 380.13 | G80: 371.07 | H80: 364.43 | I80: 395.83 | J80: 402.47 | K80: 411.53 | L80: 393.4 | M80: 377.7 | N80: 3641000 | O80: 1.92%
A81: 71 | B81: Others | C81: INDIGO | D81: 999.35 | E81: 1010.45 | F81: 970.90 | G81: 942.45 | H81: 902.90 | I81: 1038.90 | J81: 1078.45 | K81: 1106.90 | L81: 1050 | M81: 982 | N81: 3013800 | O81: -1.02%
A82: 72 | B82: Banking | C82: INDUSINDBK | D82: 344.05 | E82: 352.37 | F82: 312.78 | G82: 281.52 | H82: 241.93 | I82: 383.63 | J82: 423.22 | K82: 454.48 | L82: 391.95 | M82: 321.1 | N82: 16662400 | O82: 3.74%
A83: 73 | B83: Telecom | C83: INFRATEL | D83: 154.80 | E83: 155.43 | F83: 149.67 | G83: 144.53 | H83: 138.77 | I83: 160.57 | J83: 166.33 | K83: 171.47 | L83: 161.2 | M83: 150.3 | N83: 6686000 | O83: -6.28%
A84: 74 | B84: Technology | C84: INFY | D84: 603.80 | E84: 610.78 | F84: 587.17 | G84: 570.53 | H84: 546.92 | I84: 627.42 | J84: 651.03 | K84: 667.67 | L84: 634.4 | M84: 594.15 | N84: 36261600 | O84: -2.04%
A85: 75 | B85: Oil_Gas | C85: IOC | D85: 79.20 | E85: 79.85 | F85: 77.35 | G85: 75.50 | H85: 73.00 | I85: 81.70 | J85: 84.20 | K85: 86.05 | L85: 82.35 | M85: 78 | N85: 49128000 | O85: -0.53%
A86: 76 | B86: FMCG | C86: ITC | D86: 166.80 | E86: 168.00 | F86: 163.20 | G86: 159.60 | H86: 154.80 | I86: 171.60 | J86: 176.40 | K86: 180.00 | L86: 172.8 | M86: 164.4 | N86: 75796800 | O86: -0.19%
A87: 77 | B87: Metals | C87: JINDALSTEL | D87: 70.80 | E87: 72.10 | F87: 60.85 | G87: 50.90 | H87: 39.65 | I87: 82.05 | J87: 93.30 | K87: 103.25 | L87: 83.35 | M87: 62.15 | N87: 12795000 | O87: 79.96%
A88: 78 | B88: Metals | C88: JSWSTEEL | D88: 143.50 | E88: 142.73 | F88: 139.77 | G88: 136.03 | H88: 133.07 | I88: 146.47 | J88: 149.43 | K88: 153.17 | L88: 145.7 | M88: 139 | N88: 31792900 | O88: 1.39%
A89: 79 | B89: Others | C89: JUBLFOOD | D89: 1310.75 | E89: 1335.92 | F89: 1253.13 | G89: 1195.52 | H89: 1112.73 | I89: 1393.53 | J89: 1476.32 | K89: 1533.93 | L89: 1418.7 | M89: 1278.3 | N89: 1612500 | O89: 1.29%
A90: 80 | B90: Others | C90: JUSTDIAL | D90: 310.45 | E90: 303.65 | F90: 293.90 | G90: 277.35 | H90: 267.60 | I90: 320.20 | J90: 329.95 | K90: 346.50 | L90: 313.4 | M90: 287.1 | N90: 1293600 | O90: -7.14%
A91: 81 | B91: Banking | C91: KOTAKBANK | D91: 1172.75 | E91: 1202.10 | F91: 1123.85 | G91: 1074.95 | H91: 996.70 | I91: 1251.00 | J91: 1329.25 | K91: 1378.15 | L91: 1280.35 | M91: 1153.2 | N91: 8782400 | O91: 11.87%
A92: 82 | B92: Finance | C92: L&TFH | D92: 48.75 | E92: 49.53 | F92: 47.47 | G92: 46.18 | H92: 44.12 | I92: 50.82 | J92: 52.88 | K92: 54.17 | L92: 51.6 | M92: 48.25 | N92: 15506400 | O92: 3.01%
A93: 83 | B93: Finance | C93: LICHSGFIN | D93: 233.10 | E93: 236.88 | F93: 224.42 | G93: 215.73 | H93: 203.27 | I93: 245.57 | J93: 258.03 | K93: 266.72 | L93: 249.35 | M93: 228.2 | N93: 8050900 | O93: -4.00%
A94: 84 | B94: Capital_Goods | C94: LT | D94: 774.90 | E94: 783.40 | F94: 757.50 | G94: 740.10 | H94: 714.20 | I94: 800.80 | J94: 826.70 | K94: 844.10 | L94: 809.3 | M94: 766 | N94: 10953375 | O94: -4.59%
A95: 85 | B95: Pharma | C95: LUPIN | D95: 579.95 | E95: 582.00 | F95: 573.95 | G95: 567.95 | H95: 559.90 | I95: 588.00 | J95: 596.05 | K95: 602.05 | L95: 590.05 | M95: 576 | N95: 6215300 | O95: -0.77%
A96: 86 | B96: Automobile | C96: M&M | D96: 272.55 | E96: 274.05 | F96: 264.15 | G96: 255.75 | H96: 245.85 | I96: 282.45 | J96: 292.35 | K96: 300.75 | L96: 283.95 | M96: 265.65 | N96: 15455000 | O96: 1.10%
A97: 87 | B97: Finance | C97: M&MFIN | D97: 152.75 | E97: 150.13 | F97: 146.62 | G97: 140.48 | H97: 136.97 | I97: 156.27 | J97: 159.78 | K97: 165.92 | L97: 153.65 | M97: 144 | N97: 9734400 | O97: 1.20%
A98: 88 | B98: Finance | C98: MANAPPURAM | D98: 93.65 | E98: 93.50 | F98: 90.60 | G98: 87.55 | H98: 84.65 | I98: 96.55 | J98: 99.45 | K98: 102.50 | L98: 96.4 | M98: 90.45 | N98: 9552000 | O98: 4.12%
A99: 89 | B99: FMCG | C99: MARICO | D99: 265.45 | E99: 270.63 | F99: 256.77 | G99: 248.08 | H99: 234.22 | I99: 279.32 | J99: 293.18 | K99: 301.87 | L99: 284.5 | M99: 261.95 | N99: 10397400 | O99: 0.55%
A100: 90 | B100: Automobile | C100: MARUTI | D100: 4253.75 | E100: 4289.70 | F100: 4144.45 | G100: 4035.15 | H100: 3889.90 | I100: 4399.00 | J100: 4544.25 | K100: 4653.55 | L100: 4434.95 | M100: 4180.4 | N100: 2468400 | O100: 1.90%
A101: 91 | B101: FMCG | C101: MCDOWELL-N | D101: 464.40 | E101: 475.85 | F101: 447.70 | G101: 431.00 | H101: 402.85 | I101: 492.55 | J101: 520.70 | K101: 537.40 | L101: 504 | M101: 459.15 | N101: 11092500 | O101: 0.91%
A102: 92 | B102: Finance | C102: MFSL | D102: 384.85 | E102: 388.22 | F102: 373.88 | G102: 362.92 | H102: 348.58 | I102: 399.18 | J102: 413.52 | K102: 424.48 | L102: 402.55 | M102: 377.25 | N102: 1144000 | O102: -12.61%
A103: 93 | B103: Oil_Gas | C103: MGL | D103: 818.65 | E103: 819.05 | F103: 803.65 | G103: 788.65 | H103: 773.25 | I103: 834.05 | J103: 849.45 | K103: 864.45 | L103: 834.45 | M103: 804.05 | N103: 1367400 | O103: 1.47%
A104: 94 | B104: Technology | C104: MINDTREE | D104: 738.75 | E104: 742.20 | F104: 688.45 | G104: 638.15 | H104: 584.40 | I104: 792.50 | J104: 846.25 | K104: 896.55 | L104: 795.95 | M104: 691.9 | N104: 800800 | O104: 5.59%
A105: 95 | B105: Automobile | C105: MOTHERSUMI | D105: 58.30 | E105: 59.05 | F105: 56.65 | G105: 55.00 | H105: 52.60 | I105: 60.70 | J105: 63.10 | K105: 64.75 | L105: 61.45 | M105: 57.4 | N105: 19090000 | O105: 5.35%
A106: 96 | B106: Automobile | C106: MRF | D106: 55015.20 | E106: 55573.22 | F106: 53741.98 | G106: 52468.77 | H106: 50637.53 | I106: 56846.43 | J106: 58677.67 | K106: 59950.88 | L106: 57404.45 | M106: 54300 | N106: 12110 | O106: -23.21%
A107: 97 | B107: Finance | C107: MUTHOOTFIN | D107: 605.05 | E107: 605.18 | F107: 595.52 | G107: 585.98 | H107: 576.32 | I107: 614.72 | J107: 624.38 | K107: 633.92 | L107: 614.85 | M107: 595.65 | N107: 1846500 | O107: -5.89%
A108: 98 | B108: Metals | C108: NATIONALUM | D108: 28.50 | E108: 28.60 | F108: 28.00 | G108: 27.50 | H108: 26.90 | I108: 29.10 | J108: 29.70 | K108: 30.20 | L108: 29.2 | M108: 28.1 | N108: 17830800 | O108: -0.39%
A109: 99 | B109: Others | C109: NAUKRI | D109: 2016.60 | E109: 2034.67 | F109: 1971.93 | G109: 1927.27 | H109: 1864.53 | I109: 2079.33 | J109: 2142.07 | K109: 2186.73 | L109: 2097.4 | M109: 1990 | N109: 618600 | O109: 3.13%
A110: 100 | B110: Infrastructure | C110: NCC | D110: 18.75 | E110: 18.68 | F110: 18.17 | G110: 17.58 | H110: 17.07 | I110: 19.27 | J110: 19.78 | K110: 20.37 | L110: 19.2 | M110: 18.1 | N110: 15867000 | O110: -5.22%
A111: 101 | B111: FMCG | C111: NESTLEIND | D111: 15697.50 | E111: 15902.50 | F111: 15305.00 | G111: 14912.50 | H111: 14315.00 | I111: 16295.00 | J111: 16892.50 | K111: 17285.00 | L111: 16500 | M111: 15510 | N111: 349750 | O111: -2.17%
A112: 102 | B112: Technology | C112: NIITTECH | D112: 1066.85 | E112: 1062.87 | F112: 1030.28 | G112: 993.72 | H112: 961.13 | I112: 1099.43 | J112: 1132.02 | K112: 1168.58 | L112: 1095.45 | M112: 1026.3 | N112: 317250 | O112: -3.20%
A113: 103 | B113: Metals | C113: NMDC | D113: 78.85 | E113: 79.05 | F113: 76.10 | G113: 73.35 | H113: 70.40 | I113: 81.80 | J113: 84.75 | K113: 87.50 | L113: 82 | M113: 76.3 | N113: 23670000 | O113: 1.73%
A114: 104 | B114: Power | C114: NTPC | D114: 81.15 | E114: 82.20 | F114: 79.70 | G114: 78.25 | H114: 75.75 | I114: 83.65 | J114: 86.15 | K114: 87.60 | L114: 84.7 | M114: 80.75 | N114: 40809600 | O114: -0.75%
A115: 105 | B115: Oil_Gas | C115: OIL | D115: 79.85 | E115: 80.18 | F115: 77.77 | G115: 75.68 | H115: 73.27 | I115: 82.27 | J115: 84.68 | K115: 86.77 | L115: 82.6 | M115: 78.1 | N115: 5812290 | O115: -1.04%
A116: 106 | B116: Oil_Gas | C116: ONGC | D116: 65.95 | E116: 65.72 | F116: 64.43 | G116: 62.92 | H116: 61.63 | I116: 67.23 | J116: 68.52 | K116: 70.03 | L116: 67 | M116: 64.2 | N116: 56206900 | O116: -2.74%
A117: 107 | B117: Textile | C117: PAGEIND | D117: 16599.15 | E117: 16611.05 | F117: 16422.10 | G117: 16245.05 | H117: 16056.10 | I117: 16788.10 | J117: 16977.05 | K117: 17154.10 | L117: 16800 | M117: 16434 | N117: 125250 | O117: 5.63%
A118: 108 | B118: Pharma | C118: PEL | D118: 936.10 | E118: 928.00 | F118: 905.20 | G118: 874.30 | H118: 851.50 | I118: 958.90 | J118: 981.70 | K118: 1012.60 | L118: 950.8 | M118: 897.1 | N118: 2574279 | O118: 1.52%
A119: 109 | B119: Oil_Gas | C119: PETRONET | D119: 200.95 | E119: 199.57 | F119: 194.73 | G119: 188.52 | H119: 183.68 | I119: 205.78 | J119: 210.62 | K119: 216.83 | L119: 204.4 | M119: 193.35 | N119: 9264000 | O119: 1.05%
A120: 110 | B120: Finance | C120: PFC | D120: 89.15 | E120: 90.53 | F120: 86.57 | G120: 83.98 | H120: 80.02 | I120: 93.12 | J120: 97.08 | K120: 99.67 | L120: 94.5 | M120: 87.95 | N120: 33151400 | O120: -0.85%
A121: 111 | B121: FMCG | C121: PIDILITIND | D121: 1300.25 | E121: 1322.53 | F121: 1270.32 | G121: 1240.38 | H121: 1188.17 | I121: 1352.47 | J121: 1404.68 | K121: 1434.62 | L121: 1374.75 | M121: 1292.6 | N121: 2311000 | O121: 0.83%
A122: 112 | B122: Banking | C122: PNB | D122: 30.15 | E122: 30.78 | F122: 29.22 | G122: 28.28 | H122: 26.72 | I122: 31.72 | J122: 33.28 | K122: 34.22 | L122: 32.35 | M122: 29.85 | N122: 45326300 | O122: 4.06%
A123: 113 | B123: Power | C123: POWERGRID | D123: 154.40 | E123: 156.48 | F123: 151.32 | G123: 148.23 | H123: 143.07 | I123: 159.57 | J123: 164.73 | K123: 167.82 | L123: 161.65 | M123: 153.4 | N123: 38812000 | O123: -1.25%
A124: 114 | B124: Media | C124: PVR | D124: 1025.55 | E124: 1056.60 | F124: 972.50 | G124: 919.45 | H124: 835.35 | I124: 1109.65 | J124: 1193.75 | K124: 1246.80 | L124: 1140.7 | M124: 1003.55 | N124: 741600 | O124: -0.38%
A125: 115 | B125: Cement | C125: RAMCOCEM | D125: 494.65 | E125: 497.30 | F125: 486.35 | G125: 478.05 | H125: 467.10 | I125: 505.60 | J125: 516.55 | K125: 524.85 | L125: 508.25 | M125: 489 | N125: 432800 | O125: 0.74%
A126: 116 | B126: Banking | C126: RBLBANK | D126: 131.45 | E126: 133.93 | F126: 124.52 | G126: 117.58 | H126: 108.17 | I126: 140.87 | J126: 150.28 | K126: 157.22 | L126: 143.35 | M126: 127 | N126: 11907000 | O126: 13.30%
A127: 117 | B127: Power | C127: RECLTD | D127: 87.30 | E127: 88.27 | F127: 85.03 | G127: 82.77 | H127: 79.53 | I127: 90.53 | J127: 93.77 | K127: 96.03 | L127: 91.5 | M127: 86 | N127: 21174000 | O127: -0.25%
A128: 118 | B128: Oil_Gas | C128: RELIANCE | D128: 1083.70 | E128: 1087.22 | F128: 1042.88 | G128: 1002.07 | H128: 957.73 | I128: 1128.03 | J128: 1172.37 | K128: 1213.18 | L128: 1131.55 | M128: 1046.4 | N128: 39310500 | O128: 2.77%
A129: 119 | B129: Metals | C129: SAIL | D129: 22.20 | E129: 22.30 | F129: 21.60 | G129: 21.00 | H129: 20.30 | I129: 22.90 | J129: 23.60 | K129: 24.20 | L129: 23 | M129: 21.7 | N129: 30630700 | O129: 0.52%
A130: 120 | B130: Banking | C130: SBIN | D130: 187.05 | E130: 188.75 | F130: 183.15 | G130: 179.25 | H130: 173.65 | I130: 192.65 | J130: 198.25 | K130: 202.15 | L130: 194.35 | M130: 184.85 | N130: 79800000 | O130: 0.42%
A131: 121 | B131: Cement | C131: SHREECEM | D131: 16604.50 | E131: 16835.62 | F131: 16246.18 | G131: 15887.87 | H131: 15298.43 | I131: 17193.93 | J131: 17783.37 | K131: 18141.68 | L131: 17425.05 | M131: 16477.3 | N131: 140050 | O131: 1.49%
A132: 122 | B132: Capital_Goods | C132: SIEMENS | D132: 1086.95 | E132: 1091.83 | F132: 1061.32 | G132: 1035.68 | H132: 1005.17 | I132: 1117.47 | J132: 1147.98 | K132: 1173.62 | L132: 1122.35 | M132: 1066.2 | N132: 1225400 | O132: -0.45%
A133: 123 | B133: Textile | C133: SRF | D133: 2661.80 | E133: 2699.40 | F133: 2583.80 | G133: 2505.80 | H133: 2390.20 | I133: 2777.40 | J133: 2893.00 | K133: 2971.00 | L133: 2815 | M133: 2621.4 | N133: 528000 | O133: -1.12%
A134: 124 | B134: Finance | C134: SRTRANSFIN | D134: 613.30 | E134: 625.78 | F134: 586.87 | G134: 560.43 | H134: 521.52 | I134: 652.22 | J134: 691.13 | K134: 717.57 | L134: 664.7 | M134: 599.35 | N134: 1900200 | O134: -17.40%
A135: 125 | B135: Pharma | C135: SUNPHARMA | D135: 344.60 | E135: 346.17 | F135: 337.83 | G135: 331.07 | H135: 322.73 | I135: 352.93 | J135: 361.27 | K135: 368.03 | L135: 354.5 | M135: 339.4 | N135: 54317500 | O135: -0.29%
A136: 126 | B136: Media | C136: SUNTV | D136: 272.75 | E136: 277.55 | F136: 266.05 | G136: 259.35 | H136: 247.85 | I136: 284.25 | J136: 295.75 | K136: 302.45 | L136: 289.05 | M136: 270.85 | N136: 4174800 | O136: 2.60%
A137: 127 | B137: Fertilisers | C137: TATACHEM | D137: 224.95 | E137: 227.83 | F137: 220.72 | G137: 216.48 | H137: 209.37 | I137: 232.07 | J137: 239.18 | K137: 243.42 | L137: 234.95 | M137: 223.6 | N137: 831600 | O137: -2.12%
A138: 128 | B138: Others | C138: TATACONSUM | D138: 281.20 | E138: 287.23 | F138: 272.02 | G138: 262.83 | H138: 247.62 | I138: 296.42 | J138: 311.63 | K138: 320.82 | L138: 302.45 | M138: 278.05 | N138: 7252200 | O138: 1.40%
A139: 129 | B139: Automobile | C139: TATAMOTORS | D139: 68.10 | E139: 69.08 | F139: 66.32 | G139: 64.53 | H139: 61.77 | I139: 70.87 | J139: 73.63 | K139: 75.42 | L139: 71.85 | M139: 67.3 | N139: 52675000 | O139: -4.68%
A140: 130 | B140: Power | C140: TATAPOWER | D140: 31.60 | E140: 31.97 | F140: 31.08 | G140: 30.57 | H140: 29.68 | I140: 32.48 | J140: 33.37 | K140: 33.88 | L140: 32.85 | M140: 31.45 | N140: 42084000 | O140: 0.58%
A141: 131 | B141: Metals | C141: TATASTEEL | D141: 263.65 | E141: 262.65 | F141: 257.00 | G141: 250.35 | H141: 244.70 | I141: 269.30 | J141: 274.95 | K141: 281.60 | L141: 268.3 | M141: 256 | N141: 13342500 | O141: 0.20%
A142: 132 | B142: Technology | C142: TCS | D142: 1713.65 | E142: 1750.80 | F142: 1666.85 | G142: 1620.05 | H142: 1536.10 | I142: 1797.60 | J142: 1881.55 | K142: 1928.35 | L142: 1834.75 | M142: 1704 | N142: 15361750 | O142: 0.91%
A143: 133 | B143: Technology | C143: TECHM | D143: 513.20 | E143: 527.75 | F143: 495.95 | G143: 478.70 | H143: 446.90 | I143: 545.00 | J143: 576.80 | K143: 594.05 | L143: 559.55 | M143: 510.5 | N143: 11832000 | O143: -3.49%
A144: 134 | B144: FMCG | C144: TITAN | D144: 933.70 | E144: 923.88 | F144: 910.17 | G144: 886.63 | H144: 872.92 | I144: 947.42 | J144: 961.13 | K144: 984.67 | L144: 937.6 | M144: 900.35 | N144: 5713500 | O144: 1.32%
A145: 135 | B145: Pharma | C145: TORNTPHARM | D145: 1956.85 | E145: 1958.08 | F145: 1934.12 | G145: 1911.38 | H145: 1887.42 | I145: 1980.82 | J145: 2004.78 | K145: 2027.52 | L145: 1982.05 | M145: 1935.35 | N145: 230500 | O145: 6.22%
A146: 136 | B146: Power | C146: TORNTPOWER | D146: 279.45 | E146: 279.93 | F146: 276.52 | G146: 273.58 | H146: 270.17 | I146: 282.87 | J146: 286.28 | K146: 289.22 | L146: 283.35 | M146: 277 | N146: 1413000 | O146: 0.21%
A147: 137 | B147: Automobile | C147: TVSMOTOR | D147: 274.65 | E147: 279.82 | F147: 266.13 | G147: 257.62 | H147: 243.93 | I147: 288.33 | J147: 302.02 | K147: 310.53 | L147: 293.5 | M147: 271.3 | N147: 2033100 | O147: 3.36%
A148: 138 | B148: FMCG | C148: UBL | D148: 893.50 | E148: 901.92 | F148: 872.63 | G148: 851.77 | H148: 822.48 | I148: 922.78 | J148: 952.07 | K148: 972.93 | L148: 931.2 | M148: 881.05 | N148: 338100 | O148: 5.46%
A149: 139 | B149: Finance | C149: UJJIVAN | D149: 148.85 | E149: 146.97 | F149: 143.28 | G149: 137.72 | H149: 134.03 | I149: 152.53 | J149: 156.22 | K149: 161.78 | L149: 150.65 | M149: 141.4 | N149: 1589500 | O149: -3.61%
A150: 140 | B150: Cement | C150: ULTRACEMCO | D150: 3146.10 | E150: 3172.53 | F150: 3075.62 | G150: 3005.13 | H150: 2908.22 | I150: 3243.02 | J150: 3339.93 | K150: 3410.42 | L150: 3269.45 | M150: 3102.05 | N150: 1862800 | O150: 0.75%
A151: 141 | B151: Fertilisers | C151: UPL | D151: 307.10 | E151: 312.02 | F151: 297.78 | G151: 288.47 | H151: 274.23 | I151: 321.33 | J151: 335.57 | K151: 344.88 | L151: 326.25 | M151: 302.7 | N151: 12600000 | O151: 0.96%
A152: 142 | B152: Metals | C152: VEDL | D152: 63.00 | E152: 63.55 | F152: 61.80 | G152: 60.60 | H152: 58.85 | I152: 64.75 | J152: 66.50 | K152: 67.70 | L152: 65.3 | M152: 62.35 | N152: 82428500 | O152: -0.25%
A153: 143 | B153: Capital_Goods | C153: VOLTAS | D153: 470.85 | E153: 473.67 | F153: 462.53 | G153: 454.22 | H153: 443.08 | I153: 481.98 | J153: 493.12 | K153: 501.43 | L153: 484.8 | M153: 465.35 | N153: 1283000 | O153: -4.47%
A154: 144 | B154: Technology | C154: WIPRO | D154: 189.95 | E154: 190.90 | F154: 186.40 | G154: 182.85 | H154: 178.35 | I154: 194.45 | J154: 198.95 | K154: 202.50 | L154: 195.4 | M154: 187.35 | N154: 19270400 | O154: 3.99%
A155: 145 | B155: Banking | C155: YESBANK | D155: 21.15 | E155: 21.12 | F155: 19.23 | G155: 17.32 | H155: 15.43 | I155: 23.03 | J155: 24.92 | K155: 26.83 | L155: 23 | M155: 19.2 | N155: 58828000 | O155: 9.34%
A156: 146 | B156: Media | C156: ZEEL | D156: 120.90 | E156: 122.47 | F156: 118.08 | G156: 115.27 | H156: 110.88 | I156: 125.28 | J156: 129.67 | K156: 132.48 | L156: 126.85 | M156: 119.65 | N156: 19480300 | O156: -1.28%
A157: 147
A175: Pivot Point: This is trigger point for intra day buy/sell based on the price range of the previous day
A176: As per the tool,the trader should take BUY position just above Pivot and keep the stop loss of pivot point and the first target would be Resistance 1(R1)
A177: If R1 is crossed then R2 becomes the next target with stop loss of at R1
A178: Similarly if price goes below pivot point then the trader should sell and keep a stop loss of pivot point and the first target would be S1
A179: If S1 is crossed then S2 becomes the next target with stop loss of at S1
A181: Disclaimer:
A182: This document has been prepared by the Retail Research Desk of Asit C Mehta
A183: Investment Intermediates Ltd. and is meant for use of the recipient only
A184: and is not for circulation. This document is not to be reported or
A185: copied or made available to others. It should not be considered to be
A186: taken as an offer to sell or a solicitation to buy any security. The
A187: information contained herein is from sources believed reliable. We do
A188: not represent that it is accurate or complete and it should not be
A189: relied upon as such. We may from time to time have positions in and buy
A190: and sell securities referred to herein

Sheet Cash Intra
M5: Back to Main Page
A6: FOR INTRA DAY TRADING | K6: =Main!B10 -> 2020-04-03
A8: Sr.no | B8: Scrip | C8: CLOSE RATE | D8: Pivot Point | E8: Supports | H8: Resistances
C9: Point | E9: S1 | F9: S2 | G9: S3 | H9: R1 | I9: R2 | J9: R3 | K9: HIGH | L9: LOW | M9: Total Trade Quanity in Lakhs
A10: 1 | B10: Nifty 50 | C10: 8253.8 | D10: 8346.75 | E10: 8105.40 | F10: 7957.00 | G10: 7715.65 | H10: 8495.15 | I10: 8736.50 | J10: 8884.90 | K10: 8588.1 | L10: 8198.35
A11: 2 | B11: Nifty Bank | C11: 18208.35 | D11: 18468.45 | E11: 17782.15 | F11: 17355.95 | G11: 16669.65 | H11: 18894.65 | I11: 19580.95 | J11: 20007.15 | K11: 19154.75 | L11: 18042.25
A12: 3 | B12: Nifty CPSE | C12: 1276.75 | D12: 1285.92 | E12: 1262.13 | F12: 1247.52 | G12: 1223.73 | H12: 1300.53 | I12: 1324.32 | J12: 1338.93 | K12: 1309.7 | L12: 1271.3
A13: 4 | B13: Nifty Infra | C13: 2283.6 | D13: 2301.33 | E13: 2242.17 | F13: 2200.73 | G13: 2141.57 | H13: 2342.77 | I13: 2401.93 | J13: 2443.37 | K13: 2360.5 | L13: 2259.9
A14: 5 | B14: Nifty IT | C14: 12045.85 | D14: 12242.02 | E14: 11793.43 | F14: 11541.02 | G14: 11092.43 | H14: 12494.43 | I14: 12943.02 | J14: 13195.43 | K14: 12690.6 | L14: 11989.6
A15: 6 | B15: Nifty PSE | C15: 2146.65 | D15: 2163.58 | E15: 2117.82 | F15: 2088.98 | G15: 2043.22 | H15: 2192.42 | I15: 2238.18 | J15: 2267.02 | K15: 2209.35 | L15: 2134.75
A16: 7 | B16: Nifty Midcap 50 | C16: 3095.45 | D16: 3115.45 | E16: 3047.85 | F16: 3000.25 | G16: 2932.65 | H16: 3163.05 | I16: 3230.65 | J16: 3278.25 | K16: 3183.05 | L16: 3067.85
A17: 8 | B17: ACC | C17: 963.45 | D17: 960.15 | E17: 951.30 | F17: 939.15 | G17: 930.30 | H17: 972.30 | I17: 981.15 | J17: 993.30 | K17: 969 | L17: 948 | M17: 5.14199
A18: 9 | B18: AUBANK | C18: 481.35 | D18: 497.15 | E18: 464.30 | F18: 447.25 | G18: 414.40 | H18: 514.20 | I18: 547.05 | J18: 564.10 | K18: 530 | L18: 480.1 | M18: 4.21839
A19: 10 | B19: ADANIPORTS | C19: 244.8 | D19: 242.55 | E19: 237.30 | F19: 229.80 | G19: 224.55 | H19: 250.05 | I19: 255.30 | J19: 262.80 | K19: 247.8 | L19: 235.05 | M19: 29.12256
A20: 11 | B20: ADANIPOWER | C20: 26.8 | D20: 27.08 | E20: 26.27 | F20: 25.73 | G20: 24.92 | H20: 27.62 | I20: 28.43 | J20: 28.97 | K20: 27.9 | L20: 26.55 | M20: 57.54033
A21: 12 | B21: ABCAPITAL | C21: 42.9 | D21: 42.75 | E21: 41.75 | F21: 40.60 | G21: 39.60 | H21: 43.90 | I21: 44.90 | J21: 46.05 | K21: 43.75 | L21: 41.6 | M21: 21.59998
A22: 13 | B22: ABFRL | C22: 149.55 | D22: 150.32 | E22: 146.28 | F22: 143.02 | G22: 138.98 | H22: 153.58 | I22: 157.62 | J22: 160.88 | K22: 154.35 | L22: 147.05 | M22: 2.71489
A23: 14 | B23: AJANTPHARM | C23: 1366.05 | D23: 1360.67 | E23: 1336.38 | F23: 1306.72 | G23: 1282.43 | H23: 1390.33 | I23: 1414.62 | J23: 1444.28 | K23: 1384.95 | L23: 1331 | M23: 0.73403
A24: 15 | B24: ALKEM | C24: 2270.05 | D24: 2295.15 | E24: 2225.35 | F24: 2180.65 | G24: 2110.85 | H24: 2339.85 | I24: 2409.65 | J24: 2454.35 | K24: 2364.95 | L24: 2250.45 | M24: 1.31984
A25: 16 | B25: AMARAJABAT | C25: 477.8 | D25: 478.27 | E25: 462.53 | F25: 447.27 | G25: 431.53 | H25: 493.53 | I25: 509.27 | J25: 524.53 | K25: 494 | L25: 463 | M25: 5.92956
A26: 17 | B26: AMBUJACEM | C26: 156.65 | D26: 155.25 | E26: 152.10 | F26: 147.55 | G26: 144.40 | H26: 159.80 | I26: 162.95 | J26: 167.50 | K26: 158.4 | L26: 150.7 | M26: 29.06515
A27: 18 | B27: APOLLOHOSP | C27: 1088.85 | D27: 1102.63 | E27: 1066.27 | F27: 1043.68 | G27: 1007.32 | H27: 1125.22 | I27: 1161.58 | J27: 1184.17 | K27: 1139 | L27: 1080.05 | M27: 3.77299
A28: 19 | B28: APOLLOTYRE | C28: 77.9 | D28: 78.15 | E28: 76.55 | F28: 75.20 | G28: 73.60 | H28: 79.50 | I28: 81.10 | J28: 82.45 | K28: 79.75 | L28: 76.8 | M28: 20.59074
A29: 20 | B29: ASHOKLEY | C29: 41.1 | D29: 41.80 | E29: 39.40 | F29: 37.70 | G29: 35.30 | H29: 43.50 | I29: 45.90 | J29: 47.60 | K29: 44.2 | L29: 40.1 | M29: 119.77376
A30: 21 | B30: ASIANPAINT | C30: 1603.2 | D30: 1614.15 | E30: 1573.30 | F30: 1543.40 | G30: 1502.55 | H30: 1644.05 | I30: 1684.90 | J30: 1714.80 | K30: 1655 | L30: 1584.25 | M30: 11.69614
A31: 22 | B31: AUROPHARMA | C31: 392.3 | D31: 397.63 | E31: 379.12 | F31: 365.93 | G31: 347.42 | H31: 410.82 | I31: 429.33 | J31: 442.52 | K31: 416.15 | L31: 384.45 | M31: 31.79653
A32: 23 | B32: DMART | C32: 2082.7 | D32: 2130.28 | E32: 2030.57 | F32: 1978.43 | G32: 1878.72 | H32: 2182.42 | I32: 2282.13 | J32: 2334.27 | K32: 2230 | L32: 2078.15 | M32: 15.72997
A33: 24 | B33: AXISBANK | C33: 358.65 | D33: 364.15 | E33: 348.50 | F33: 338.35 | G33: 322.70 | H33: 374.30 | I33: 389.95 | J33: 400.10 | K33: 379.8 | L33: 354 | M33: 83.45819
A34: 25 | B34: BAJAJ-AUTO | C34: 2051.1 | D34: 2045.63 | E34: 1995.47 | F34: 1939.83 | G34: 1889.67 | H34: 2101.27 | I34: 2151.43 | J34: 2207.07 | K34: 2095.8 | L34: 1990 | M34: 11.41144
A35: 26 | B35: BAJFINANCE | C35: 2219.35 | D35: 2212.97 | E35: 2139.03 | F35: 2058.72 | G35: 1984.78 | H35: 2293.28 | I35: 2367.22 | J35: 2447.53 | K35: 2286.9 | L35: 2132.65 | M35: 17.36927
A36: 27 | B36: BAJAJFINSV | C36: 4501.9 | D36: 4543.20 | E36: 4418.70 | F36: 4335.50 | G36: 4211.00 | H36: 4626.40 | I36: 4750.90 | J36: 4834.10 | K36: 4667.7 | L36: 4460 | M36: 3.29541
A37: 28 | B37: BAJAJHLDNG | C37: 1754.55 | D37: 1766.35 | E37: 1713.70 | F37: 1672.85 | G37: 1620.20 | H37: 1807.20 | I37: 1859.85 | J37: 1900.70 | K37: 1819 | L37: 1725.5 | M37: 0.80743
A38: 29 | B38: BALKRISIND | C38: 803.05 | D38: 786.85 | E38: 754.70 | F38: 706.35 | G38: 674.20 | H38: 835.20 | I38: 867.35 | J38: 915.70 | K38: 819 | L38: 738.5 | M38: 2.71802
A39: 30 | B39: BANDHANBNK | C39: 194.9 | D39: 197.87 | E39: 188.03 | F39: 181.17 | G39: 171.33 | H39: 204.73 | I39: 214.57 | J39: 221.43 | K39: 207.7 | L39: 191 | M39: 27.62309
A40: 31 | B40: BANKBARODA | C40: 51.25 | D40: 52.13 | E40: 49.92 | F40: 48.58 | G40: 46.37 | H40: 53.47 | I40: 55.68 | J40: 57.02 | K40: 54.35 | L40: 50.8 | M40: 224.98038
A41: 32 | B41: BANKINDIA | C41: 32.4 | D41: 32.40 | E41: 32.10 | F41: 31.80 | G41: 31.50 | H41: 32.70 | I41: 33.00 | J41: 33.30 | K41: 32.7 | L41: 32.1 | M41: 67.267
A42: 33 | B42: BATAINDIA | C42: 1189.7 | D42: 1202.90 | E42: 1156.80 | F42: 1123.90 | G42: 1077.80 | H42: 1235.80 | I42: 1281.90 | J42: 1314.80 | K42: 1249 | L42: 1170 | M42: 2.78726
A43: 34 | B43: BERGEPAINT | C43: 483.45 | D43: 486.90 | E43: 472.95 | F43: 462.45 | G43: 448.50 | H43: 497.40 | I43: 511.35 | J43: 521.85 | K43: 500.85 | L43: 476.4 | M43: 12.10461
A44: 35 | B44: BEL | C44: 69.05 | D44: 70.90 | E44: 65.55 | F44: 62.05 | G44: 56.70 | H44: 74.40 | I44: 79.75 | J44: 83.25 | K44: 76.25 | L44: 67.4 | M44: 565.82665
A45: 36 | B45: BHARATFORG | C45: 230.05 | D45: 229.23 | E45: 224.07 | F45: 218.08 | G45: 212.92 | H45: 235.22 | I45: 240.38 | J45: 246.37 | K45: 234.4 | L45: 223.25 | M45: 7.00915
A46: 37 | B46: BHEL | C46: 20.7 | D46: 20.77 | E46: 20.33 | F46: 19.97 | G46: 19.53 | H46: 21.13 | I46: 21.57 | J46: 21.93 | K46: 21.2 | L46: 20.4 | M46: 140.87306
A47: 38 | B47: BPCL | C47: 302.95 | D47: 304.12 | E47: 292.33 | F47: 281.72 | G47: 269.93 | H47: 314.73 | I47: 326.52 | J47: 337.13 | K47: 315.9 | L47: 293.5 | M47: 69.46475
A48: 39 | B48: BHARTIARTL | C48: 421.35 | D48: 424.58 | E48: 409.17 | F48: 396.98 | G48: 381.57 | H48: 436.77 | I48: 452.18 | J48: 464.37 | K48: 440 | L48: 412.4 | M48: 180.17965
A49: 40 | B49: INFRATEL | C49: 155.1 | D49: 155.37 | E49: 150.23 | F49: 145.37 | G49: 140.23 | H49: 160.23 | I49: 165.37 | J49: 170.23 | K49: 160.5 | L49: 150.5 | M49: 58.11965
A50: 41 | B50: BIOCON | C50: 278.4 | D50: 279.50 | E50: 273.30 | F50: 268.20 | G50: 262.00 | H50: 284.60 | I50: 290.80 | J50: 295.90 | K50: 285.7 | L50: 274.4 | M50: 19.49668
A51: 42 | B51: BBTC | C51: 726.1 | D51: 735.03 | E51: 711.07 | F51: 696.03 | G51: 672.07 | H51: 750.07 | I51: 774.03 | J51: 789.07 | K51: 759 | L51: 720 | M51: 0.58867
A52: 43 | B52: BOSCHLTD | C52: 9235.8 | D52: 9352.13 | E52: 8954.27 | F52: 8672.73 | G52: 8274.87 | H52: 9633.67 | I52: 10031.53 | J52: 10313.07 | K52: 9750 | L52: 9070.6 | M52: 0.24677
A53: 44 | B53: BRITANNIA | C53: 2564.85 | D53: 2616.62 | E53: 2453.23 | F53: 2341.62 | G53: 2178.23 | H53: 2728.23 | I53: 2891.62 | J53: 3003.23 | K53: 2780 | L53: 2505 | M53: 4.6885
A54: 45 | B54: CESC | C54: 393.15 | D54: 398.35 | E54: 381.70 | F54: 370.25 | G54: 353.60 | H54: 409.80 | I54: 426.45 | J54: 437.90 | K54: 415 | L54: 386.9 | M54: 3.39974
A55: 46 | B55: CADILAHC | C55: 263.85 | D55: 266.10 | E55: 258.90 | F55: 253.95 | G55: 246.75 | H55: 271.05 | I55: 278.25 | J55: 283.20 | K55: 273.3 | L55: 261.15 | M55: 11.03855
A56: 47 | B56: CANBK | C56: 90.2 | D56: 90.13 | E56: 88.32 | F56: 86.43 | G56: 84.62 | H56: 92.02 | I56: 93.83 | J56: 95.72 | K56: 91.95 | L56: 88.25 | M56: 70.14346
A57: 48 | B57: CASTROLIND | C57: 100.95 | D57: 100.98 | E57: 98.12 | F57: 95.28 | G57: 92.42 | H57: 103.82 | I57: 106.68 | J57: 109.52 | K57: 103.85 | L57: 98.15 | M57: 34.61075
A58: 49 | B58: CHOLAFIN | C58: 142.85 | D58: 143.90 | E58: 136.80 | F58: 130.75 | G58: 123.65 | H58: 149.95 | I58: 157.05 | J58: 163.10 | K58: 151 | L58: 137.85 | M58: 16.87153
A59: 50 | B59: CIPLA | C59: 413.75 | D59: 418.35 | E59: 405.80 | F59: 397.85 | G59: 385.30 | H59: 426.30 | I59: 438.85 | J59: 446.80 | K59: 430.9 | L59: 410.4 | M59: 21.84609
A60: 51 | B60: CUB | C60: 119.8 | D60: 122.63 | E60: 116.27 | F60: 112.73 | G60: 106.37 | H60: 126.17 | I60: 132.53 | J60: 136.07 | K60: 129 | L60: 119.1 | M60: 10.62871
A61: 52 | B61: COALINDIA | C61: 139.45 | D61: 139.25 | E61: 137.25 | F61: 135.05 | G61: 133.05 | H61: 141.45 | I61: 143.45 | J61: 145.65 | K61: 141.25 | L61: 137.05 | M61: 352.81395
A62: 53 | B62: COLPAL | C62: 1242.5 | D62: 1250.75 | E62: 1216.50 | F62: 1190.50 | G62: 1156.25 | H62: 1276.75 | I62: 1311.00 | J62: 1337.00 | K62: 1285 | L62: 1224.75 | M62: 24.53672
A63: 54 | B63: CONCOR | C63: 317.5 | D63: 322.17 | E63: 306.63 | F63: 295.77 | G63: 280.23 | H63: 333.03 | I63: 348.57 | J63: 359.43 | K63: 337.7 | L63: 311.3 | M63: 6.92547
A64: 55 | B64: COROMANDEL | C64: 534.8 | D64: 536.17 | E64: 522.33 | F64: 509.87 | G64: 496.03 | H64: 548.63 | I64: 562.47 | J64: 574.93 | K64: 550 | L64: 523.7 | M64: 7.17405
A65: 56 | B65: CROMPTON | C65: 203.85 | D65: 205.57 | E65: 197.98 | F65: 192.12 | G65: 184.53 | H65: 211.43 | I65: 219.02 | J65: 224.88 | K65: 213.15 | L65: 199.7 | M65: 30.8845
A66: 57 | B66: CUMMINSIND | C66: 308.5 | D66: 314.62 | E66: 298.33 | F66: 288.17 | G66: 271.88 | H66: 324.78 | I66: 341.07 | J66: 351.23 | K66: 330.9 | L66: 304.45 | M66: 9.9194
A67: 58 | B67: DLF | C67: 132.55 | D67: 133.27 | E67: 129.58 | F67: 126.62 | G67: 122.93 | H67: 136.23 | I67: 139.92 | J67: 142.88 | K67: 136.95 | L67: 130.3 | M67: 108.10838
A68: 59 | B68: DABUR | C68: 434.85 | D68: 439.98 | E68: 425.17 | F68: 415.48 | G68: 400.67 | H68: 449.67 | I68: 464.48 | J68: 474.17 | K68: 454.8 | L68: 430.3 | M68: 74.62427
A69: 60 | B69: DALBHARAT | C69: 457.4 | D69: 470.10 | E69: 439.40 | F69: 421.40 | G69: 390.70 | H69: 488.10 | I69: 518.80 | J69: 536.80 | K69: 500.8 | L69: 452.1 | M69: 1.62129
A70: 61 | B70: DIVISLAB | C70: 1877 | D70: 1907.22 | E70: 1814.03 | F70: 1751.07 | G70: 1657.88 | H70: 1970.18 | I70: 2063.37 | J70: 2126.33 | K70: 2000.4 | L70: 1844.25 | M70: 3.22232
A71: 62 | B71: DRREDDY | C71: 3095 | D71: 3101.67 | E71: 3059.33 | F71: 3023.67 | G71: 2981.33 | H71: 3137.33 | I71: 3179.67 | J71: 3215.33 | K71: 3144 | L71: 3066 | M71: 6.68235
A72: 63 | B72: EDELWEISS | C72: 40.3 | D72: 40.12 | E72: 39.93 | F72: 39.57 | G72: 39.38 | H72: 40.48 | I72: 40.67 | J72: 41.03 | K72: 40.3 | L72: 39.75 | M72: 7.90032
A73: 64 | B73: EICHERMOT | C73: 13001.6 | D73: 13015.20 | E73: 12711.40 | F73: 12421.20 | G73: 12117.40 | H73: 13305.40 | I73: 13609.20 | J73: 13899.40 | K73: 13319 | L73: 12725 | M73: 1.02123
A74: 65 | B74: EMAMILTD | C74: 171.45 | D74: 171.60 | E74: 163.90 | F74: 156.35 | G74: 148.65 | H74: 179.15 | I74: 186.85 | J74: 194.40 | K74: 179.3 | L74: 164.05 | M74: 25.57313
A75: 66 | B75: ENDURANCE | C75: 595 | D75: 597.92 | E75: 578.83 | F75: 562.67 | G75: 543.58 | H75: 614.08 | I75: 633.17 | J75: 649.33 | K75: 617 | L75: 581.75 | M75: 0.47896
A76: 67 | B76: ENGINERSIN | C76: 59.05 | D76: 58.98 | E76: 57.72 | F76: 56.38 | G76: 55.12 | H76: 60.32 | I76: 61.58 | J76: 62.92 | K76: 60.25 | L76: 57.65 | M76: 17.04006
A77: 68 | B77: ESCORTS | C77: 598.8 | D77: 608.77 | E77: 566.23 | F77: 533.67 | G77: 491.13 | H77: 641.33 | I77: 683.87 | J77: 716.43 | K77: 651.3 | L77: 576.2 | M77: 70.11082
A78: 69 | B78: EXIDEIND | C78: 131.75 | D78: 132.02 | E78: 129.23 | F78: 126.72 | G78: 123.93 | H78: 134.53 | I78: 137.32 | J78: 139.83 | K78: 134.8 | L78: 129.5 | M78: 14.66191
A79: 70 | B79: FEDERALBNK | C79: 41.3 | D79: 40.75 | E79: 39.90 | F79: 38.50 | G79: 37.65 | H79: 42.15 | I79: 43.00 | J79: 44.40 | K79: 41.6 | L79: 39.35 | M79: 102.70614
A80: 71 | B80: FORTIS | C80: 121.2 | D80: 122.82 | E80: 118.63 | F80: 116.07 | G80: 111.88 | H80: 125.38 | I80: 129.57 | J80: 132.13 | K80: 127 | L80: 120.25 | M80: 19.33119
A81: 72 | B81: FCONSUMER | C81: 6.95 | D81: 6.95 | E81: 6.95 | F81: 6.95 | G81: 6.95 | H81: 6.95 | I81: 6.95 | J81: 6.95 | K81: 6.95 | L81: 6.95 | M81: 15.70645
A82: 73 | B82: FRETAIL | C82: 74.4 | D82: 74.40 | E82: 74.40 | F82: 74.40 | G82: 74.40 | H82: 74.40 | I82: 74.40 | J82: 74.40 | K82: 74.4 | L82: 74.4 | M82: 10.27307
A83: 74 | B83: GAIL | C83: 75.75 | D83: 76.33 | E83: 73.92 | F83: 72.08 | G83: 69.67 | H83: 78.17 | I83: 80.58 | J83: 82.42 | K83: 78.75 | L83: 74.5 | M83: 153.91445
A84: 75 | B84: GMRINFRA | C84: 16.2 | D84: 16.20 | E84: 16.05 | F84: 15.90 | G84: 15.75 | H84: 16.35 | I84: 16.50 | J84: 16.65 | K84: 16.35 | L84: 16.05 | M84: 105.71558
A85: 76 | B85: GICRE | C85: 105.3 | D85: 105.45 | E85: 103.90 | F85: 102.50 | G85: 100.95 | H85: 106.85 | I85: 108.40 | J85: 109.80 | K85: 107 | L85: 104.05 | M85: 2.09376
A86: 77 | B86: GLENMARK | C86: 203.85 | D86: 206.02 | E86: 198.33 | F86: 192.82 | G86: 185.13 | H86: 211.53 | I86: 219.22 | J86: 224.73 | K86: 213.7 | L86: 200.5 | M86: 26.37001
A87: 78 | B87: GODREJAGRO | C87: 353.9 | D87: 360.10 | E87: 340.80 | F87: 327.70 | G87: 308.40 | H87: 373.20 | I87: 392.50 | J87: 405.60 | K87: 379.4 | L87: 347 | M87: 0.4871
A88: 79 | B88: GODREJCP | C88: 548.75 | D88: 546.45 | E88: 527.60 | F88: 506.45 | G88: 487.60 | H88: 567.60 | I88: 586.45 | J88: 607.60 | K88: 565.3 | L88: 525.3 | M88: 18.59249
A89: 80 | B89: GODREJIND | C89: 278.25 | D89: 279.33 | E89: 274.92 | F89: 271.58 | G89: 267.17 | H89: 282.67 | I89: 287.08 | J89: 290.42 | K89: 283.75 | L89: 276 | M89: 0.88259
A90: 81 | B90: GODREJPROP | C90: 596.4 | D90: 612.80 | E90: 577.60 | F90: 558.80 | G90: 523.60 | H90: 631.60 | I90: 666.80 | J90: 685.60 | K90: 648 | L90: 594 | M90: 1.78002
A91: 82 | B91: GRAPHITE | C91: 133.6 | D91: 133.60 | E91: 133.60 | F91: 133.60 | G91: 133.60 | H91: 133.60 | I91: 133.60 | J91: 133.60 | K91: 133.6 | L91: 133.6 | M91: 8.51755
A92: 83 | B92: GRASIM | C92: 476.15 | D92: 471.02 | E92: 457.73 | F92: 439.32 | G92: 426.03 | H92: 489.43 | I92: 502.72 | J92: 521.13 | K92: 484.3 | L92: 452.6 | M92: 12.99292
A93: 84 | B93: GSPL | C93: 183.25 | D93: 180.15 | E93: 170.30 | F93: 157.35 | G93: 147.50 | H93: 193.10 | I93: 202.95 | J93: 215.90 | K93: 190 | L93: 167.2 | M93: 4.26398
A94: 85 | B94: HEG | C94: 506.05 | D94: 501.67 | E94: 488.88 | F94: 471.72 | G94: 458.93 | H94: 518.83 | I94: 531.62 | J94: 548.78 | K94: 514.45 | L94: 484.5 | M94: 1.68582
A95: 86 | B95: HCLTECH | C95: 413.55 | D95: 418.32 | E95: 403.43 | F95: 393.32 | G95: 378.43 | H95: 428.43 | I95: 443.32 | J95: 453.43 | K95: 433.2 | L95: 408.2 | M95: 35.90768
A96: 87 | B96: HDFCAMC | C96: 2185.75 | D96: 2173.58 | E96: 2127.17 | F96: 2068.58 | G96: 2022.17 | H96: 2232.17 | I96: 2278.58 | J96: 2337.17 | K96: 2220 | L96: 2115 | M96: 1.96125
A97: 88 | B97: HDFCBANK | C97: 829.65 | D97: 837.83 | E97: 811.82 | F97: 793.98 | G97: 767.97 | H97: 855.67 | I97: 881.68 | J97: 899.52 | K97: 863.85 | L97: 820 | M97: 55.89134
A98: 89 | B98: HDFCLIFE | C98: 429.9 | D98: 433.78 | E98: 420.17 | F98: 410.43 | G98: 396.82 | H98: 443.52 | I98: 457.13 | J98: 466.87 | K98: 447.4 | L98: 424.05 | M98: 12.60667
A99: 90 | B99: HAVELLS | C99: 484.6 | D99: 480.03 | E99: 471.07 | F99: 457.53 | G99: 448.57 | H99: 493.57 | I99: 502.53 | J99: 516.07 | K99: 489 | L99: 466.5 | M99: 11.71667
A100: 91 | B100: HEROMOTOCO | C100: 1639.65 | D100: 1617.33 | E100: 1587.32 | F100: 1534.98 | G100: 1504.97 | H100: 1669.67 | I100: 1699.68 | J100: 1752.02 | K100: 1647.35 | L100: 1565 | M100: 5.74957
A101: 92 | B101: HEXAWARE | C101: 226.4 | D101: 226.13 | E101: 222.27 | F101: 218.13 | G101: 214.27 | H101: 230.27 | I101: 234.13 | J101: 238.27 | K101: 230 | L101: 222 | M101: 3.23817
A102: 93 | B102: HINDALCO | C102: 91.65 | D102: 92.68 | E102: 89.97 | F102: 88.28 | G102: 85.57 | H102: 94.37 | I102: 97.08 | J102: 98.77 | K102: 95.4 | L102: 91 | M102: 60.08376
A103: 94 | B103: HINDPETRO | C103: 184 | D103: 186.75 | E103: 178.10 | F103: 172.20 | G103: 163.55 | H103: 192.65 | I103: 201.30 | J103: 207.20 | K103: 195.4 | L103: 180.85 | M103: 45.95587
A104: 95 | B104: HINDUNILVR | C104: 2179.65 | D104: 2220.87 | E104: 2116.83 | F104: 2054.02 | G104: 1949.98 | H104: 2283.68 | I104: 2387.72 | J104: 2450.53 | K104: 2324.9 | L104: 2158.05 | M104: 19.30834
A105: 96 | B105: HINDZINC | C105: 160.45 | D105: 159.90 | E105: 152.80 | F105: 145.15 | G105: 138.05 | H105: 167.55 | I105: 174.65 | J105: 182.30 | K105: 167 | L105: 152.25 | M105: 7.24986
A106: 97 | B106: HUDCO | C106: 19.2 | D106: 19.50 | E106: 18.80 | F106: 18.40 | G106: 17.70 | H106: 19.90 | I106: 20.60 | J106: 21.00 | K106: 20.2 | L106: 19.1 | M106: 10.06963
A107: 98 | B107: HDFC | C107: 1583.5 | D107: 1617.67 | E107: 1541.73 | F107: 1499.97 | G107: 1424.03 | H107: 1659.43 | I107: 1735.37 | J107: 1777.13 | K107: 1693.6 | L107: 1575.9 | M107: 28.28509
A108: 99 | B108: ICICIBANK | C108: 311.15 | D108: 314.33 | E108: 304.92 | F108: 298.68 | G108: 289.27 | H108: 320.57 | I108: 329.98 | J108: 336.22 | K108: 323.75 | L108: 308.1 | M108: 162.92578
A109: 100 | B109: ICICIGI | C109: 1105.75 | D109: 1099.95 | E109: 1056.90 | F109: 1008.05 | G109: 965.00 | H109: 1148.80 | I109: 1191.85 | J109: 1240.70 | K109: 1143 | L109: 1051.1 | M109: 2.01621
A110: 101 | B110: ICICIPRULI | C110: 342.6 | D110: 350.30 | E110: 332.65 | F110: 322.70 | G110: 305.05 | H110: 360.25 | I110: 377.90 | J110: 387.85 | K110: 367.95 | L110: 340.35 | M110: 10.53162
A111: 102 | B111: IDBI | C111: 19.3 | D111: 19.13 | E111: 18.77 | F111: 18.23 | G111: 17.87 | H111: 19.67 | I111: 20.03 | J111: 20.57 | K111: 19.5 | L111: 18.6 | M111: 6.52812
A112: 103 | B112: IDFCFIRSTB | C112: 20.6 | D112: 20.70 | E112: 20.25 | F112: 19.90 | G112: 19.45 | H112: 21.05 | I112: 21.50 | J112: 21.85 | K112: 21.15 | L112: 20.35 | M112: 209.67183
A113: 104 | B113: ITC | C113: 166.4 | D113: 167.90 | E113: 163.05 | F113: 159.70 | G113: 154.85 | H113: 171.25 | I113: 176.10 | J113: 179.45 | K113: 172.75 | L113: 164.55 | M113: 184.5588
A114: 105 | B114: IBULHSGFIN | C114: 99.35 | D114: 100.47 | E114: 95.93 | F114: 92.52 | G114: 87.98 | H114: 103.88 | I114: 108.42 | J114: 111.83 | K114: 105 | L114: 97.05 | M114: 169.75776
A115: 106 | B115: IBVENTURES | C115: 106.55 | D115: 106.27 | E115: 102.63 | F115: 98.72 | G115: 95.08 | H115: 110.18 | I115: 113.82 | J115: 117.73 | K115: 109.9 | L115: 102.35 | M115: 38.76523
A116: 107 | B116: INDIANB | C116: 43.95 | D116: 44.35 | E116: 42.30 | F116: 40.65 | G116: 38.60 | H116: 46.00 | I116: 48.05 | J116: 49.70 | K116: 46.4 | L116: 42.7 | M116: 14.06266
A117: 108 | B117: INDHOTEL | C117: 72 | D117: 72.93 | E117: 69.37 | F117: 66.73 | G117: 63.17 | H117: 75.57 | I117: 79.13 | J117: 81.77 | K117: 76.5 | L117: 70.3 | M117: 7.1894
A118: 109 | B118: IOC | C118: 78.95 | D118: 79.72 | E118: 77.23 | F118: 75.52 | G118: 73.03 | H118: 81.43 | I118: 83.92 | J118: 85.63 | K118: 82.2 | L118: 78 | M118: 367.42641
A119: 110 | B119: IGL | C119: 390.55 | D119: 387.53 | E119: 380.07 | F119: 369.58 | G119: 362.12 | H119: 398.02 | I119: 405.48 | J119: 415.97 | K119: 395 | L119: 377.05 | M119: 21.83118
A120: 111 | B120: INDUSINDBK | C120: 342.25 | D120: 350.75 | E120: 311.50 | F120: 280.75 | G120: 241.50 | H120: 381.50 | I120: 420.75 | J120: 451.50 | K120: 390 | L120: 320 | M120: 83.91172
A121: 112 | B121: NAUKRI | C121: 2013.95 | D121: 2031.97 | E121: 1963.33 | F121: 1912.72 | G121: 1844.08 | H121: 2082.58 | I121: 2151.22 | J121: 2201.83 | K121: 2100.6 | L121: 1981.35 | M121: 2.45742
A122: 113 | B122: INFY | C122: 602.8 | D122: 611.43 | E122: 585.37 | F122: 567.93 | G122: 541.87 | H122: 628.87 | I122: 654.93 | J122: 672.37 | K122: 637.5 | L122: 594 | M122: 60.92028
A123: 114 | B123: INDIGO | C123: 999 | D123: 1011.13 | E123: 969.87 | F123: 940.73 | G123: 899.47 | H123: 1040.27 | I123: 1081.53 | J123: 1110.67 | K123: 1052.4 | L123: 982 | M123: 18.09304
A124: 115 | B124: IPCALAB | C124: 1397.75 | D124: 1406.97 | E124: 1357.78 | F124: 1317.82 | G124: 1268.63 | H124: 1446.93 | I124: 1496.12 | J124: 1536.08 | K124: 1456.15 | L124: 1367 | M124: 0.82039
A125: 116 | B125: JSWENERGY | C125: 43.15 | D125: 43.17 | E125: 42.38 | F125: 41.62 | G125: 40.83 | H125: 43.93 | I125: 44.72 | J125: 45.48 | K125: 43.95 | L125: 42.4 | M125: 3.42262
A126: 117 | B126: JSWSTEEL | C126: 143 | D126: 142.67 | E126: 139.38 | F126: 135.77 | G126: 132.48 | H126: 146.28 | I126: 149.57 | J126: 153.18 | K126: 145.95 | L126: 139.05 | M126: 63.29214
A127: 118 | B127: JINDALSTEL | C127: 70.25 | D127: 71.73 | E127: 60.62 | F127: 50.98 | G127: 39.87 | H127: 81.37 | I127: 92.48 | J127: 102.12 | K127: 82.85 | L127: 62.1 | M127: 152.07085
A128: 119 | B128: JUBLFOOD | C128: 1383.1 | D128: 1411.95 | E128: 1337.15 | F128: 1291.20 | G128: 1216.40 | H128: 1457.90 | I128: 1532.70 | J128: 1578.65 | K128: 1486.75 | L128: 1366 | M128: 22.23606
A129: 120 | B129: JUBILANT | C129: 265.45 | D129: 263.77 | E129: 253.43 | F129: 241.42 | G129: 231.08 | H129: 275.78 | I129: 286.12 | J129: 298.13 | K129: 274.1 | L129: 251.75 | M129: 4.33124
A130: 121 | B130: KOTAKBANK | C130: 1181.65 | D130: 1211.52 | E130: 1128.13 | F130: 1074.62 | G130: 991.23 | H130: 1265.03 | I130: 1348.42 | J130: 1401.93 | K130: 1294.9 | L130: 1158 | M130: 94.95046
A131: 122 | B131: L&TFH | C131: 50.55 | D131: 50.85 | E131: 49.70 | F131: 48.85 | G131: 47.70 | H131: 51.70 | I131: 52.85 | J131: 53.70 | K131: 52 | L131: 50 | M131: 77.86477
A132: 123 | B132: LTTS | C132: 1181.1 | D132: 1175.03 | E132: 1115.07 | F132: 1049.03 | G132: 989.07 | H132: 1241.07 | I132: 1301.03 | J132: 1367.07 | K132: 1235 | L132: 1109 | M132: 0.39962
A133: 124 | B133: LICHSGFIN | C133: 233 | D133: 236.78 | E133: 224.32 | F133: 215.63 | G133: 203.17 | H133: 245.47 | I133: 257.93 | J133: 266.62 | K133: 249.25 | L133: 228.1 | M133: 75.80796
A134: 125 | B134: LTI | C134: 1392.25 | D134: 1420.75 | E134: 1351.50 | F134: 1310.75 | G134: 1241.50 | H134: 1461.50 | I134: 1530.75 | J134: 1571.50 | K134: 1490 | L134: 1380 | M134: 0.36496
A135: 126 | B135: LT | C135: 774.35 | D135: 784.43 | E135: 756.47 | F135: 738.58 | G135: 710.62 | H135: 802.32 | I135: 830.28 | J135: 848.17 | K135: 812.4 | L135: 766.55 | M135: 39.39306
A136: 127 | B136: LUPIN | C136: 579.05 | D136: 581.77 | E136: 572.73 | F136: 566.42 | G136: 557.38 | H136: 588.08 | I136: 597.12 | J136: 603.43 | K136: 590.8 | L136: 575.45 | M136: 11.17946
A137: 128 | B137: MRF | C137: 55108.85 | D137: 55894.77 | E137: 53889.53 | F137: 52670.22 | G137: 50664.98 | H137: 57114.08 | I137: 59119.32 | J137: 60338.63 | K137: 57900 | L137: 54675.45 | M137: 0.04805
A138: 129 | B138: MGL | C138: 814.9 | D138: 816.57 | E138: 799.43 | F138: 783.97 | G138: 766.83 | H138: 832.03 | I138: 849.17 | J138: 864.63 | K138: 833.7 | L138: 801.1 | M138: 13.51299
A139: 130 | B139: M&MFIN | C139: 152.6 | D139: 149.75 | E139: 145.85 | F139: 139.10 | G139: 135.20 | H139: 156.50 | I139: 160.40 | J139: 167.15 | K139: 153.65 | L139: 143 | M139: 23.06322
A140: 131 | B140: M&M | C140: 272.85 | D140: 273.78 | E140: 264.57 | F140: 256.28 | G140: 247.07 | H140: 282.07 | I140: 291.28 | J140: 299.57 | K140: 283 | L140: 265.5 | M140: 23.52196
A141: 132 | B141: MANAPPURAM | C141: 93.4 | D141: 93.27 | E141: 90.43 | F141: 87.47 | G141: 84.63 | H141: 96.23 | I141: 99.07 | J141: 102.03 | K141: 96.1 | L141: 90.3 | M141: 28.02932
A142: 133 | B142: MRPL | C142: 23.45 | D142: 23.13 | E142: 22.62 | F142: 21.78 | G142: 21.27 | H142: 23.97 | I142: 24.48 | J142: 25.32 | K142: 23.65 | L142: 22.3 | M142: 8.09305
A143: 134 | B143: MARICO | C143: 265.5 | D143: 270.60 | E143: 256.90 | F143: 248.30 | G143: 234.60 | H143: 279.20 | I143: 292.90 | J143: 301.50 | K143: 284.3 | L143: 262 | M143: 69.41813
A144: 135 | B144: MARUTI | C144: 4246.35 | D144: 4287.10 | E144: 4149.35 | F144: 4052.35 | G144: 3914.60 | H144: 4384.10 | I144: 4521.85 | J144: 4618.85 | K144: 4424.85 | L144: 4190.1 | M144: 8.68935
A145: 136 | B145: MFSL | C145: 382.4 | D145: 386.53 | E145: 371.17 | F145: 359.93 | G145: 344.57 | H145: 397.77 | I145: 413.13 | J145: 424.37 | K145: 401.9 | L145: 375.3 | M145: 16.72907
A146: 137 | B146: MINDTREE | C146: 753.5 | D146: 759.83 | E146: 699.67 | F146: 645.83 | G146: 585.67 | H146: 813.67 | I146: 873.83 | J146: 927.67 | K146: 820 | L146: 706 | M146: 4.76824
A147: 138 | B147: MOTHERSUMI | C147: 57.95 | D147: 58.98 | E147: 56.17 | F147: 54.38 | G147: 51.57 | H147: 60.77 | I147: 63.58 | J147: 65.37 | K147: 61.8 | L147: 57.2 | M147: 275.35769
A148: 139 | B148: MPHASIS | C148: 675.65 | D148: 667.17 | E148: 654.53 | F148: 633.42 | G148: 620.78 | H148: 688.28 | I148: 700.92 | J148: 722.03 | K148: 679.8 | L148: 646.05 | M148: 0.51751
A149: 140 | B149: MUTHOOTFIN | C149: 604.5 | D149: 604.58 | E149: 594.42 | F149: 584.33 | G149: 574.17 | H149: 614.67 | I149: 624.83 | J149: 634.92 | K149: 614.75 | L149: 594.5 | M149: 5.3477
A150: 141 | B150: NATCOPHARM | C150: 496.25 | D150: 498.92 | E150: 488.33 | F150: 480.42 | G150: 469.83 | H150: 506.83 | I150: 517.42 | J150: 525.33 | K150: 509.5 | L150: 491 | M150: 0.70644
A151: 142 | B151: NBCC | C151: 16.2 | D151: 16.40 | E151: 15.90 | F151: 15.60 | G151: 15.10 | H151: 16.70 | I151: 17.20 | J151: 17.50 | K151: 16.9 | L151: 16.1 | M151: 131.59247
A152: 143 | B152: NHPC | C152: 19.45 | D152: 19.63 | E152: 19.12 | F152: 18.78 | G152: 18.27 | H152: 19.97 | I152: 20.48 | J152: 20.82 | K152: 20.15 | L152: 19.3 | M152: 169.98025
A153: 144 | B153: NMDC | C153: 78.55 | D153: 78.88 | E153: 75.87 | F153: 73.18 | G153: 70.17 | H153: 81.57 | I153: 84.58 | J153: 87.27 | K153: 81.9 | L153: 76.2 | M153: 115.54574
A154: 145 | B154: NTPC | C154: 81 | D154: 81.98 | E154: 79.62 | F154: 78.23 | G154: 75.87 | H154: 83.37 | I154: 85.73 | J154: 87.12 | K154: 84.35 | L154: 80.6 | M154: 645.18347
A155: 146 | B155: NATIONALUM | C155: 28.35 | D155: 28.52 | E155: 27.88 | F155: 27.42 | G155: 26.78 | H155: 28.98 | I155: 29.62 | J155: 30.08 | K155: 29.15 | L155: 28.05 | M155: 182.52296
A156: 147 | B156: NESTLEIND | C156: 15654.55 | D156: 15870.18 | E156: 15284.37 | F156: 14914.18 | G156: 14328.37 | H156: 16240.37 | I156: 16826.18 | J156: 17196.37 | K156: 16456 | L156: 15500 | M156: 0.59649
A157: 148 | B157: NAM-INDIA | C157: 258.75 | D157: 255.15 | E157: 246.60 | F157: 234.45 | G157: 225.90 | H157: 267.30 | I157: 275.85 | J157: 288.00 | K157: 263.7 | L157: 243 | M157: 1.68229
A158: 149 | B158: OBEROIRLTY | C158: 325.65 | D158: 329.77 | E158: 319.93 | F158: 314.22 | G158: 304.38 | H158: 335.48 | I158: 345.32 | J158: 351.03 | K158: 339.6 | L158: 324.05 | M158: 833.60147
A159: 150 | B159: ONGC | C159: 65.75 | D159: 66.03 | E159: 64.82 | F159: 63.88 | G159: 62.67 | H159: 66.97 | I159: 68.18 | J159: 69.12 | K159: 67.25 | L159: 65.1 | M159: 95.97439
A160: 151 | B160: OIL | C160: 79.25 | D160: 79.83 | E160: 77.02 | F160: 74.78 | G160: 71.97 | H160: 82.07 | I160: 84.88 | J160: 87.12 | K160: 82.65 | L160: 77.6 | M160: 0.2199
A161: 152 | B161: OFSS | C161: 1921 | D161: 1956.42 | E161: 1852.83 | F161: 1784.67 | G161: 1681.08 | H161: 2024.58 | I161: 2128.17 | J161: 2196.33 | K161: 2060 | L161: 1888.25 | M161: 3.09452
A162: 153 | B162: PIIND | C162: 1195.15 | D162: 1212.72 | E162: 1150.43 | F162: 1105.72 | G162: 1043.43 | H162: 1257.43 | I162: 1319.72 | J162: 1364.43 | K162: 1275 | L162: 1168 | M162: 7.15716
A163: 154 | B163: PNBHOUSING | C163: 169.2 | D163: 167.20 | E163: 164.15 | F163: 159.10 | G163: 156.05 | H163: 172.25 | I163: 175.30 | J163: 180.35 | K163: 170.25 | L163: 162.15 | M163: 0.22781
A164: 155 | B164: PAGEIND | C164: 16614.55 | D164: 16697.12 | E164: 16444.23 | F164: 16273.92 | G164: 16021.03 | H164: 16867.43 | I164: 17120.32 | J164: 17290.63 | K164: 16950 | L164: 16526.8 | M164: 23.08304
A165: 156 | B165: PETRONET | C165: 200 | D165: 199.18 | E165: 193.87 | F165: 187.73 | G165: 182.42 | H165: 205.32 | I165: 210.63 | J165: 216.77 | K165: 204.5 | L165: 193.05 | M165: 0.12497
A166: 157 | B166: PFIZER | C166: 3966.35 | D166: 3937.80 | E166: 3855.60 | F166: 3744.85 | G166: 3662.65 | H166: 4048.55 | I166: 4130.75 | J166: 4241.50 | K166: 4020 | L166: 3827.05 | M166: 7.69665
A167: 158 | B167: PIDILITIND | C167: 1297.3 | D167: 1320.57 | E167: 1266.73 | F167: 1236.17 | G167: 1182.33 | H167: 1351.13 | I167: 1404.97 | J167: 1435.53 | K167: 1374.4 | L167: 1290 | M167: 29.79765
A168: 159 | B168: PEL | C168: 936.5 | D168: 932.23 | E168: 914.47 | F168: 892.43 | G168: 874.67 | H168: 954.27 | I168: 972.03 | J168: 994.07 | K168: 950 | L168: 910.2 | M168: 94.55973
A169: 160 | B169: PFC | C169: 88.9 | D169: 90.30 | E169: 86.40 | F169: 83.90 | G169: 80.00 | H169: 92.80 | I169: 96.70 | J169: 99.20 | K169: 94.2 | L169: 87.8 | M169: 359.92338
A170: 161 | B170: POWERGRID | C170: 154.6 | D170: 156.57 | E170: 151.18 | F170: 147.77 | G170: 142.38 | H170: 159.98 | I170: 165.37 | J170: 168.78 | K170: 161.95 | L170: 153.15 | M170: 3.99518
A171: 162 | B171: PRESTIGE | C171: 181.3 | D171: 176.53 | E171: 168.07 | F171: 154.83 | G171: 146.37 | H171: 189.77 | I171: 198.23 | J171: 211.47 | K171: 185 | L171: 163.3 | M171: 0.02985
A172: 163 | B172: PGHH | C172: 10410.65 | D172: 10345.00 | E172: 10190.65 | F172: 9970.65 | G172: 9816.30 | H172: 10565.00 | I172: 10719.35 | J172: 10939.35 | K172: 10499.35 | L172: 10125 | M172: 154.49355
A173: 164 | B173: PNB | C173: 30.45 | D173: 31.07 | E173: 29.63 | F173: 28.82 | G173: 27.38 | H173: 31.88 | I173: 33.32 | J173: 34.13 | K173: 32.5 | L173: 30.25 | M173: 5.40845
A174: 165 | B174: QUESS | C174: 212.55 | D174: 215.78 | E174: 207.77 | F174: 202.98 | G174: 194.97 | H174: 220.57 | I174: 228.58 | J174: 233.37 | K174: 223.8 | L174: 211 | M174: 58.43485
A175: 166 | B175: RBLBANK | C175: 131.3 | D175: 134.17 | E175: 124.68 | F175: 118.07 | G175: 108.58 | H175: 140.78 | I175: 150.27 | J175: 156.88 | K175: 143.65 | L175: 127.55 | M175: 70.38131
A176: 167 | B176: RECLTD | C176: 86.95 | D176: 88.08 | E176: 84.97 | F176: 82.98 | G176: 79.87 | H176: 90.07 | I176: 93.18 | J176: 95.17 | K176: 91.2 | L176: 86.1 | M176: 1.23317
A177: 168 | B177: RAJESHEXPO | C177: 561.9 | D177: 557.42 | E177: 546.48 | F177: 531.07 | G177: 520.13 | H177: 572.83 | I177: 583.77 | J177: 599.18 | K177: 568.35 | L177: 542 | M177: 158.86673
A178: 169 | B178: RELIANCE | C178: 1080.45 | D178: 1083.42 | E178: 1042.23 | F178: 1004.02 | G178: 962.83 | H178: 1121.63 | I178: 1162.82 | J178: 1201.03 | K178: 1124.6 | L178: 1045.2 | M178: 4.4517
A179: 170 | B179: SBILIFE | C179: 635.1 | D179: 640.70 | E179: 622.40 | F179: 609.70 | G179: 591.40 | H179: 653.40 | I179: 671.70 | J179: 684.40 | K179: 659 | L179: 628 | M179: 3.14532
A180: 171 | B180: SRF | C180: 2654.95 | D180: 2697.60 | E180: 2577.35 | F180: 2499.75 | G180: 2379.50 | H180: 2775.20 | I180: 2895.45 | J180: 2973.05 | K180: 2817.85 | L180: 2620 | M180: 0.26041
A181: 172 | B181: SHREECEM | C181: 16549.65 | D181: 16865.32 | E181: 16184.33 | F181: 15819.02 | G181: 15138.03 | H181: 17230.63 | I181: 17911.62 | J181: 18276.93 | K181: 17546.3 | L181: 16500 | M181: 19.83266
A182: 173 | B182: SRTRANSFIN | C182: 621.65 | D182: 632.53 | E182: 596.17 | F182: 570.68 | G182: 534.32 | H182: 658.02 | I182: 694.38 | J182: 719.87 | K182: 668.9 | L182: 607.05 | M182: 3.34263
A183: 174 | B183: SIEMENS | C183: 1085.2 | D183: 1091.70 | E183: 1058.60 | F183: 1032.00 | G183: 998.90 | H183: 1118.30 | I183: 1151.40 | J183: 1178.00 | K183: 1124.8 | L183: 1065.1 | M183: 926.56638
A184: 175 | B184: SBIN | C184: 186.55 | D184: 188.77 | E184: 183.03 | F184: 179.52 | G184: 173.78 | H184: 192.28 | I184: 198.02 | J184: 201.53 | K184: 194.5 | L184: 185.25 | M184: 179.54383
A185: 176 | B185: SAIL | C185: 22.2 | D185: 22.35 | E185: 21.65 | F185: 21.10 | G185: 20.40 | H185: 22.90 | I185: 23.60 | J185: 24.15 | K185: 23.05 | L185: 21.8 | M185: 8.07575
A186: 177 | B186: STRTECH | C186: 63.4 | D186: 64.23 | E186: 61.97 | F186: 60.53 | G186: 58.27 | H186: 65.67 | I186: 67.93 | J186: 69.37 | K186: 66.5 | L186: 62.8 | M186: 37.57229
A187: 178 | B187: SUNPHARMA | C187: 343.55 | D187: 345.73 | E187: 336.22 | F187: 328.88 | G187: 319.37 | H187: 353.07 | I187: 362.58 | J187: 369.92 | K187: 355.25 | L187: 338.4 | M187: 15.5546
A188: 179 | B188: SUNTV | C188: 272.45 | D188: 277.03 | E188: 265.42 | F188: 258.38 | G188: 246.77 | H188: 284.07 | I188: 295.68 | J188: 302.72 | K188: 288.65 | L188: 270 | M188: 0.78761
A189: 180 | B189: SYNGENE | C189: 243.25 | D189: 244.25 | E189: 233.50 | F189: 223.75 | G189: 213.00 | H189: 254.00 | I189: 264.75 | J189: 274.50 | K189: 255 | L189: 234.5 | M189: 8.43524
A190: 181 | B190: TVSMOTOR | C190: 279.15 | D190: 283.85 | E190: 270.30 | F190: 261.45 | G190: 247.90 | H190: 292.70 | I190: 306.25 | J190: 315.10 | K190: 297.4 | L190: 275 | M190: 32.87223
A191: 182 | B191: TCS | C191: 1708.75 | D191: 1748.50 | E191: 1662.25 | F191: 1615.75 | G191: 1529.50 | H191: 1795.00 | I191: 1881.25 | J191: 1927.75 | K191: 1834.75 | L191: 1702 | M191: 26.8123
A192: 183 | B192: TATACONSUM | C192: 280 | D192: 287.12 | E192: 270.23 | F192: 260.47 | G192: 243.58 | H192: 296.88 | I192: 313.77 | J192: 323.53 | K192: 304 | L192: 277.35 | M192: 38.13549
A193: 184 | B193: TATAMTRDVR | C193: 29.95 | D193: 30.18 | E193: 29.07 | F193: 28.18 | G193: 27.07 | H193: 31.07 | I193: 32.18 | J193: 33.07 | K193: 31.3 | L193: 29.3 | M193: 756.21897
A194: 185 | B194: TATAMOTORS | C194: 67.95 | D194: 69.05 | E194: 66.45 | F194: 64.95 | G194: 62.35 | H194: 70.55 | I194: 73.15 | J194: 74.65 | K194: 71.65 | L194: 67.55 | M194: 79.77888
A195: 186 | B195: TATAPOWER | C195: 31.55 | D195: 31.90 | E195: 31.00 | F195: 30.45 | G195: 29.55 | H195: 32.45 | I195: 33.35 | J195: 33.90 | K195: 32.8 | L195: 31.35 | M195: 107.38727
A196: 187 | B196: TATASTEEL | C196: 266.35 | D196: 264.13 | E196: 260.32 | F196: 254.28 | G196: 250.47 | H196: 270.17 | I196: 273.98 | J196: 280.02 | K196: 267.95 | L196: 258.1 | M196: 30.81521
A197: 188 | B197: TECHM | C197: 511.2 | D197: 527.17 | E197: 494.03 | F197: 476.87 | G197: 443.73 | H197: 544.33 | I197: 577.47 | J197: 594.63 | K197: 560.3 | L197: 510 | M197: 1.68669
A198: 189 | B198: NIACL | C198: 105.5 | D198: 108.15 | E198: 102.35 | F198: 99.20 | G198: 93.40 | H198: 111.30 | I198: 117.10 | J198: 120.25 | K198: 113.95 | L198: 105 | M198: 5.867
A199: 190 | B199: RAMCOCEM | C199: 496.8 | D199: 499.28 | E199: 485.72 | F199: 474.63 | G199: 461.07 | H199: 510.37 | I199: 523.93 | J199: 535.02 | K199: 512.85 | L199: 488.2 | M199: 18.09101
A200: 191 | B200: TITAN | C200: 936.05 | D200: 929.35 | E200: 908.70 | F200: 881.35 | G200: 860.70 | H200: 956.70 | I200: 977.35 | J200: 1004.70 | K200: 950 | L200: 902 | M200: 1.67763
A201: 192 | B201: TORNTPHARM | C201: 1959 | D201: 1958.05 | E201: 1932.95 | F201: 1906.90 | G201: 1881.80 | H201: 1984.10 | I201: 2009.20 | J201: 2035.25 | K201: 1983.15 | L201: 1932 | M201: 11.09871
A202: 193 | B202: TORNTPOWER | C202: 280.95 | D202: 280.48 | E202: 276.72 | F202: 272.48 | G202: 268.72 | H202: 284.72 | I202: 288.48 | J202: 292.72 | K202: 284.25 | L202: 276.25 | M202: 43.40034
A203: 194 | B203: UPL | C203: 305.75 | D203: 312.42 | E203: 296.33 | F203: 286.92 | G203: 270.83 | H203: 321.83 | I203: 337.92 | J203: 347.33 | K203: 328.5 | L203: 303 | M203: 4.5163
A204: 195 | B204: ULTRACEMCO | C204: 3140.65 | D204: 3168.62 | E204: 3077.28 | F204: 3013.92 | G204: 2922.58 | H204: 3231.98 | I204: 3323.32 | J204: 3386.68 | K204: 3259.95 | L204: 3105.25 | M204: 21.60583
A205: 196 | B205: UNIONBANK | C205: 28.75 | D205: 28.90 | E205: 28.40 | F205: 28.05 | G205: 27.55 | H205: 29.25 | I205: 29.75 | J205: 30.10 | K205: 29.4 | L205: 28.55 | M205: 3.17811
... 30 more rows

Sheet MidCap Intra
L5: Back To Main Page
A6: FOR INTRA DAY TRADING | K6: =Main!B10 -> 2020-04-03
A9: Sr.no | B9: Scrip | C9: CLOSE RATE | D9: Pivot Point | E9: Supports | H9: Resistances
C10: Point | E10: S1 | F10: S2 | G10: S3 | H10: R1 | I10: R2 | J10: R3 | K10: HIGH | L10: LOW | M10: Total Trade Quanity in Lakhs
A11: 1 | B11: 3MINDIA | C11: 18469.55 | D11: 18549.87 | E11: 18019.68 | F11: 17569.82 | G11: 17039.63 | H11: 18999.73 | I11: 19529.92 | J11: 19979.78 | K11: 19080.05 | L11: 18100 | M11: 0.02822
A12: 2 | B12: AARTIIND | C12: 795.8 | D12: 794.28 | E12: 769.57 | F12: 743.33 | G12: 718.62 | H12: 820.52 | I12: 845.23 | J12: 871.47 | K12: 819 | L12: 768.05 | M12: 4.53572
A13: 3 | B13: AAVAS | C13: 1192 | D13: 1193.87 | E13: 1107.73 | F13: 1023.47 | G13: 937.33 | H13: 1278.13 | I13: 1364.27 | J13: 1448.53 | K13: 1280 | L13: 1109.6 | M13: 1.58743
A14: 4 | B14: ABBOTINDIA | C14: 15613.6 | D14: 15604.53 | E14: 15211.07 | F14: 14808.53 | G14: 14415.07 | H14: 16007.07 | I14: 16400.53 | J14: 16803.07 | K14: 15998 | L14: 15202 | M14: 0.1759
A15: 5 | B15: ABCAPITAL | C15: 42.9 | D15: 42.75 | E15: 41.75 | F15: 40.60 | G15: 39.60 | H15: 43.90 | I15: 44.90 | J15: 46.05 | K15: 43.75 | L15: 41.6 | M15: 8.53443
A16: 6 | B16: ABFRL | C16: 149.55 | D16: 150.32 | E16: 146.28 | F16: 143.02 | G16: 138.98 | H16: 153.58 | I16: 157.62 | J16: 160.88 | K16: 154.35 | L16: 147.05 | M16: 10.12321
A17: 7 | B17: ACC | C17: 963.45 | D17: 960.15 | E17: 951.30 | F17: 939.15 | G17: 930.30 | H17: 972.30 | I17: 981.15 | J17: 993.30 | K17: 969 | L17: 948 | M17: 10.20895
A18: 8 | B18: ADANIGAS | C18: 89 | D18: 88.40 | E18: 85.60 | F18: 82.20 | G18: 79.40 | H18: 91.80 | I18: 94.60 | J18: 98.00 | K18: 91.2 | L18: 85 | M18: 9.22474
A19: 9 | B19: ADANIGREEN | C19: 152.9 | D19: 154.30 | E19: 149.60 | F19: 146.30 | G19: 141.60 | H19: 157.60 | I19: 162.30 | J19: 165.60 | K19: 159 | L19: 151 | M19: 2.26224
A20: 10 | B20: ADANIPORTS | C20: 244.8 | D20: 242.55 | E20: 237.30 | F20: 229.80 | G20: 224.55 | H20: 250.05 | I20: 255.30 | J20: 262.80 | K20: 247.8 | L20: 235.05 | M20: 40.34211
A21: 11 | B21: ADANIPOWER | C21: 26.8 | D21: 27.08 | E21: 26.27 | F21: 25.73 | G21: 24.92 | H21: 27.62 | I21: 28.43 | J21: 28.97 | K21: 27.9 | L21: 26.55 | M21: 58.54439
A22: 12 | B22: ADANITRANS | C22: 189.4 | D22: 189.43 | E22: 184.97 | F22: 180.53 | G22: 176.07 | H22: 193.87 | I22: 198.33 | J22: 202.77 | K22: 193.9 | L22: 185 | M22: 0.3448
A23: 13 | B23: ADVENZYMES | C23: 138.35 | D23: 139.92 | E23: 134.03 | F23: 129.72 | G23: 123.83 | H23: 144.23 | I23: 150.12 | J23: 154.43 | K23: 145.8 | L23: 135.6 | M23: 0.78737
A24: 14 | B24: AEGISCHEM | C24: 133.35 | D24: 137.23 | E24: 126.72 | F24: 120.08 | G24: 109.57 | H24: 143.87 | I24: 154.38 | J24: 161.02 | K24: 147.75 | L24: 130.6 | M24: 1.97048
A25: 15 | B25: AFFLE | C25: 979.55 | D25: 991.33 | E25: 953.22 | F25: 926.88 | G25: 888.77 | H25: 1017.67 | I25: 1055.78 | J25: 1082.12 | K25: 1029.45 | L25: 965 | M25: 0.36599
A26: 16 | B26: AIAENG | C26: 1319.1 | D26: 1337.80 | E26: 1277.30 | F26: 1235.50 | G26: 1175.00 | H26: 1379.60 | I26: 1440.10 | J26: 1481.90 | K26: 1398.3 | L26: 1296 | M26: 0.18714
A27: 17 | B27: AJANTPHARM | C27: 1366.05 | D27: 1360.67 | E27: 1336.38 | F27: 1306.72 | G27: 1282.43 | H27: 1390.33 | I27: 1414.62 | J27: 1444.28 | K27: 1384.95 | L27: 1331 | M27: 0.42023
A28: 18 | B28: AKZOINDIA | C28: 2180.05 | D28: 2161.68 | E28: 2118.37 | F28: 2056.68 | G28: 2013.37 | H28: 2223.37 | I28: 2266.68 | J28: 2328.37 | K28: 2205 | L28: 2100 | M28: 0.09785
A29: 19 | B29: ALKEM | C29: 2270.05 | D29: 2295.15 | E29: 2225.35 | F29: 2180.65 | G29: 2110.85 | H29: 2339.85 | I29: 2409.65 | J29: 2454.35 | K29: 2364.95 | L29: 2250.45 | M29: 0.43849
A30: 20 | B30: ALLCARGO | C30: 59.45 | D30: 58.98 | E30: 57.97 | F30: 56.48 | G30: 55.47 | H30: 60.47 | I30: 61.48 | J30: 62.97 | K30: 60 | L30: 57.5 | M30: 0.83489
A31: 21 | B31: AMARAJABAT | C31: 477.8 | D31: 478.27 | E31: 462.53 | F31: 447.27 | G31: 431.53 | H31: 493.53 | I31: 509.27 | J31: 524.53 | K31: 494 | L31: 463 | M31: 12.20932
A32: 22 | B32: AMBER | C32: 1267.9 | D32: 1281.30 | E32: 1214.60 | F32: 1161.30 | G32: 1094.60 | H32: 1334.60 | I32: 1401.30 | J32: 1454.60 | K32: 1348 | L32: 1228 | M32: 1.93052
A33: 23 | B33: AMBUJACEM | C33: 156.65 | D33: 155.25 | E33: 152.10 | F33: 147.55 | G33: 144.40 | H33: 159.80 | I33: 162.95 | J33: 167.50 | K33: 158.4 | L33: 150.7 | M33: 26.90175
A34: 24 | B34: APLAPOLLO | C34: 1232.3 | D34: 1234.07 | E34: 1204.18 | F34: 1176.07 | G34: 1146.18 | H34: 1262.18 | I34: 1292.07 | J34: 1320.18 | K34: 1263.95 | L34: 1205.95 | M34: 0.09574
A35: 25 | B35: APLLTD | C35: 533.45 | D35: 532.48 | E35: 519.97 | F35: 506.48 | G35: 493.97 | H35: 545.97 | I35: 558.48 | J35: 571.97 | K35: 545 | L35: 519 | M35: 1.42618
A36: 26 | B36: APOLLOHOSP | C36: 1088.85 | D36: 1102.63 | E36: 1066.27 | F36: 1043.68 | G36: 1007.32 | H36: 1125.22 | I36: 1161.58 | J36: 1184.17 | K36: 1139 | L36: 1080.05 | M36: 10.17298
A37: 27 | B37: APOLLOTYRE | C37: 77.9 | D37: 78.15 | E37: 76.55 | F37: 75.20 | G37: 73.60 | H37: 79.50 | I37: 81.10 | J37: 82.45 | K37: 79.75 | L37: 76.8 | M37: 42.15118
A38: 28 | B38: ARVINDFASN | C38: 137.45 | D38: 139.87 | E38: 132.73 | F38: 128.02 | G38: 120.88 | H38: 144.58 | I38: 151.72 | J38: 156.43 | K38: 147 | L38: 135.15 | M38: 0.33363
A39: 29 | B39: ASAHIINDIA | C39: 150.9 | D39: 151.97 | E39: 146.93 | F39: 142.97 | G39: 137.93 | H39: 155.93 | I39: 160.97 | J39: 164.93 | K39: 157 | L39: 148 | M39: 0.04248
A40: 30 | B40: ASHOKA | C40: 39.4 | D40: 40.37 | E40: 38.23 | F40: 37.07 | G40: 34.93 | H40: 41.53 | I40: 43.67 | J40: 44.83 | K40: 42.5 | L40: 39.2 | M40: 4.47567
A41: 31 | B41: ASHOKLEY | C41: 41.1 | D41: 41.80 | E41: 39.40 | F41: 37.70 | G41: 35.30 | H41: 43.50 | I41: 45.90 | J41: 47.60 | K41: 44.2 | L41: 40.1 | M41: 371.01228
A42: 32 | B42: ASIANPAINT | C42: 1603.2 | D42: 1614.15 | E42: 1573.30 | F42: 1543.40 | G42: 1502.55 | H42: 1644.05 | I42: 1684.90 | J42: 1714.80 | K42: 1655 | L42: 1584.25 | M42: 15.59456
A43: 33 | B43: ASTERDM | C43: 93.75 | D43: 94.45 | E43: 92.20 | F43: 90.65 | G43: 88.40 | H43: 96.00 | I43: 98.25 | J43: 99.80 | K43: 96.7 | L43: 92.9 | M43: 0.7125
A44: 34 | B44: ASTRAL | C44: 951.6 | D44: 946.13 | E44: 926.47 | F44: 901.33 | G44: 881.67 | H44: 971.27 | I44: 990.93 | J44: 1016.07 | K44: 965.8 | L44: 921 | M44: 0.34885
A45: 35 | B45: ASTRAZEN | C45: 2409.2 | D45: 2396.57 | E45: 2358.13 | F45: 2307.07 | G45: 2268.63 | H45: 2447.63 | I45: 2486.07 | J45: 2537.13 | K45: 2435 | L45: 2345.5 | M45: 0.11193
A46: 36 | B46: ATUL | C46: 3900.1 | D46: 3938.38 | E46: 3826.77 | F46: 3753.43 | G46: 3641.82 | H46: 4011.72 | I46: 4123.33 | J46: 4196.67 | K46: 4050 | L46: 3865.05 | M46: 0.38176
A47: 37 | B47: AUBANK | C47: 481.35 | D47: 497.15 | E47: 464.30 | F47: 447.25 | G47: 414.40 | H47: 514.20 | I47: 547.05 | J47: 564.10 | K47: 530 | L47: 480.1 | M47: 9.11795
A48: 38 | B48: AUROPHARMA | C48: 392.3 | D48: 397.63 | E48: 379.12 | F48: 365.93 | G48: 347.42 | H48: 410.82 | I48: 429.33 | J48: 442.52 | K48: 416.15 | L48: 384.45 | M48: 34.33906
A49: 39 | B49: AVANTIFEED | C49: 283.65 | D49: 288.08 | E49: 277.42 | F49: 271.18 | G49: 260.52 | H49: 294.32 | I49: 304.98 | J49: 311.22 | K49: 298.75 | L49: 281.85 | M49: 3.23014
A50: 40 | B50: AXISBANK | C50: 358.65 | D50: 364.15 | E50: 348.50 | F50: 338.35 | G50: 322.70 | H50: 374.30 | I50: 389.95 | J50: 400.10 | K50: 379.8 | L50: 354 | M50: 277.45001
A51: 41 | B51: BAJAJ-AUTO | C51: 2051.1 | D51: 2045.63 | E51: 1995.47 | F51: 1939.83 | G51: 1889.67 | H51: 2101.27 | I51: 2151.43 | J51: 2207.07 | K51: 2095.8 | L51: 1990 | M51: 8.69738
A52: 42 | B52: BAJAJCON | C52: 134.05 | D52: 135.65 | E52: 130.85 | F52: 127.65 | G52: 122.85 | H52: 138.85 | I52: 143.65 | J52: 146.85 | K52: 140.45 | L52: 132.45 | M52: 1.70377
A53: 43 | B53: BAJAJELEC | C53: 268.5 | D53: 269.02 | E53: 264.43 | F53: 260.37 | G53: 255.78 | H53: 273.08 | I53: 277.67 | J53: 281.73 | K53: 273.6 | L53: 264.95 | M53: 0.88649
A54: 44 | B54: BAJAJFINSV | C54: 4501.9 | D54: 4543.20 | E54: 4418.70 | F54: 4335.50 | G54: 4211.00 | H54: 4626.40 | I54: 4750.90 | J54: 4834.10 | K54: 4667.7 | L54: 4460 | M54: 7.57772
A55: 45 | B55: BAJAJHLDNG | C55: 1754.55 | D55: 1766.35 | E55: 1713.70 | F55: 1672.85 | G55: 1620.20 | H55: 1807.20 | I55: 1859.85 | J55: 1900.70 | K55: 1819 | L55: 1725.5 | M55: 0.30051
A56: 46 | B56: BAJFINANCE | C56: 2219.35 | D56: 2212.97 | E56: 2139.03 | F56: 2058.72 | G56: 1984.78 | H56: 2293.28 | I56: 2367.22 | J56: 2447.53 | K56: 2286.9 | L56: 2132.65 | M56: 64.08401
A57: 47 | B57: BALKRISIND | C57: 803.05 | D57: 786.85 | E57: 754.70 | F57: 706.35 | G57: 674.20 | H57: 835.20 | I57: 867.35 | J57: 915.70 | K57: 819 | L57: 738.5 | M57: 14.64051
A58: 48 | B58: BALMLAWRIE | C58: 84.5 | D58: 84.02 | E58: 79.03 | F58: 73.57 | G58: 68.58 | H58: 89.48 | I58: 94.47 | J58: 99.93 | K58: 89 | L58: 78.55 | M58: 7.95907
A59: 49 | B59: BALRAMCHIN | C59: 109.25 | D59: 109.25 | E59: 109.25 | F59: 109.25 | G59: 109.25 | H59: 109.25 | I59: 109.25 | J59: 109.25 | K59: 109.25 | L59: 109.25 | M59: 1.99795
A60: 50 | B60: BANDHANBNK | C60: 194.9 | D60: 197.87 | E60: 188.03 | F60: 181.17 | G60: 171.33 | H60: 204.73 | I60: 214.57 | J60: 221.43 | K60: 207.7 | L60: 191 | M60: 93.22297
A61: 51 | B61: BANKBARODA | C61: 51.25 | D61: 52.13 | E61: 49.92 | F61: 48.58 | G61: 46.37 | H61: 53.47 | I61: 55.68 | J61: 57.02 | K61: 54.35 | L61: 50.8 | M61: 163.40613
A62: 52 | B62: BANKINDIA | C62: 32.4 | D62: 32.40 | E62: 32.10 | F62: 31.80 | G62: 31.50 | H62: 32.70 | I62: 33.00 | J62: 33.30 | K62: 32.7 | L62: 32.1 | M62: 7.27916
A63: 53 | B63: BASF | C63: 1096.85 | D63: 1110.40 | E63: 1070.80 | F63: 1044.75 | G63: 1005.15 | H63: 1136.45 | I63: 1176.05 | J63: 1202.10 | K63: 1150 | L63: 1084.35 | M63: 0.12354
A64: 54 | B64: BATAINDIA | C64: 1189.7 | D64: 1202.90 | E64: 1156.80 | F64: 1123.90 | G64: 1077.80 | H64: 1235.80 | I64: 1281.90 | J64: 1314.80 | K64: 1249 | L64: 1170 | M64: 5.03551
A65: 55 | B65: BAYERCROP | C65: 3330.8 | D65: 3362.43 | E65: 3258.37 | F65: 3185.93 | G65: 3081.87 | H65: 3434.87 | I65: 3538.93 | J65: 3611.37 | K65: 3466.5 | L65: 3290 | M65: 0.05148
A66: 56 | B66: BBTC | C66: 726.1 | D66: 735.03 | E66: 711.07 | F66: 696.03 | G66: 672.07 | H66: 750.07 | I66: 774.03 | J66: 789.07 | K66: 759 | L66: 720 | M66: 0.29548
A67: 57 | B67: BDL | C67: 184.35 | D67: 185.30 | E67: 181.15 | F67: 177.95 | G67: 173.80 | H67: 188.50 | I67: 192.65 | J67: 195.85 | K67: 189.45 | L67: 182.1 | M67: 0.23387
A68: 58 | B68: BEL | C68: 69.05 | D68: 70.90 | E68: 65.55 | F68: 62.05 | G68: 56.70 | H68: 74.40 | I68: 79.75 | J68: 83.25 | K68: 76.25 | L68: 67.4 | M68: 96.61775
A69: 59 | B69: BEML | C69: 443.9 | D69: 450.95 | E69: 434.60 | F69: 425.30 | G69: 408.95 | H69: 460.25 | I69: 476.60 | J69: 485.90 | K69: 467.3 | L69: 441.65 | M69: 1.0687
A70: 60 | B70: BERGEPAINT | C70: 483.45 | D70: 486.90 | E70: 472.95 | F70: 462.45 | G70: 448.50 | H70: 497.40 | I70: 511.35 | J70: 521.85 | K70: 500.85 | L70: 476.4 | M70: 10.01576
A71: 61 | B71: BHARATFORG | C71: 230.05 | D71: 229.23 | E71: 224.07 | F71: 218.08 | G71: 212.92 | H71: 235.22 | I71: 240.38 | J71: 246.37 | K71: 234.4 | L71: 223.25 | M71: 31.83893
A72: 62 | B72: BHARTIARTL | C72: 421.35 | D72: 424.58 | E72: 409.17 | F72: 396.98 | G72: 381.57 | H72: 436.77 | I72: 452.18 | J72: 464.37 | K72: 440 | L72: 412.4 | M72: 94.69124
A73: 63 | B73: BHEL | C73: 20.7 | D73: 20.77 | E73: 20.33 | F73: 19.97 | G73: 19.53 | H73: 21.13 | I73: 21.57 | J73: 21.93 | K73: 21.2 | L73: 20.4 | M73: 159.99994
A74: 64 | B74: BIOCON | C74: 278.4 | D74: 279.50 | E74: 273.30 | F74: 268.20 | G74: 262.00 | H74: 284.60 | I74: 290.80 | J74: 295.90 | K74: 285.7 | L74: 274.4 | M74: 47.24998
A75: 65 | B75: BIRLACORPN | C75: 417.55 | D75: 412.83 | E75: 405.72 | F75: 393.88 | G75: 386.77 | H75: 424.67 | I75: 431.78 | J75: 443.62 | K75: 419.95 | L75: 401 | M75: 0.57265
A76: 66 | B76: BLISSGVS | C76: 101 | D76: 102.10 | E76: 98.60 | F76: 96.20 | G76: 92.70 | H76: 104.50 | I76: 108.00 | J76: 110.40 | K76: 105.6 | L76: 99.7 | M76: 0.81362
A77: 67 | B77: BLUEDART | C77: 2078.7 | D77: 2111.90 | E77: 2025.80 | F77: 1972.90 | G77: 1886.80 | H77: 2164.80 | I77: 2250.90 | J77: 2303.80 | K77: 2198 | L77: 2059 | M77: 0.0375
A78: 68 | B78: BLUESTARCO | C78: 442.7 | D78: 446.28 | E78: 432.42 | F78: 422.13 | G78: 408.27 | H78: 456.57 | I78: 470.43 | J78: 480.72 | K78: 460.15 | L78: 436 | M78: 0.7163
A79: 69 | B79: BOMDYEING | C79: 45.75 | D79: 45.58 | E79: 44.67 | F79: 43.58 | G79: 42.67 | H79: 46.67 | I79: 47.58 | J79: 48.67 | K79: 46.5 | L79: 44.5 | M79: 5.72537
A80: 70 | B80: BOSCHLTD | C80: 9235.8 | D80: 9352.13 | E80: 8954.27 | F80: 8672.73 | G80: 8274.87 | H80: 9633.67 | I80: 10031.53 | J80: 10313.07 | K80: 9750 | L80: 9070.6 | M80: 0.57719
A81: 71 | B81: BPCL | C81: 302.95 | D81: 304.12 | E81: 292.33 | F81: 281.72 | G81: 269.93 | H81: 314.73 | I81: 326.52 | J81: 337.13 | K81: 315.9 | L81: 293.5 | M81: 125.98826
A82: 72 | B82: BRIGADE | C82: 137.4 | D82: 135.13 | E82: 127.27 | F82: 117.13 | G82: 109.27 | H82: 145.27 | I82: 153.13 | J82: 163.27 | K82: 143 | L82: 125 | M82: 1.61087
A83: 73 | B83: BRITANNIA | C83: 2564.85 | D83: 2616.62 | E83: 2453.23 | F83: 2341.62 | G83: 2178.23 | H83: 2728.23 | I83: 2891.62 | J83: 3003.23 | K83: 2780 | L83: 2505 | M83: 11.6715
A84: 74 | B84: BSE | C84: 295.9 | D84: 295.95 | E84: 292.05 | F84: 288.20 | G84: 284.30 | H84: 299.80 | I84: 303.70 | J84: 307.55 | K84: 299.85 | L84: 292.1 | M84: 1.24539
A85: 75 | B85: BSOFT | C85: 61.35 | D85: 60.52 | E85: 58.98 | F85: 56.62 | G85: 55.08 | H85: 62.88 | I85: 64.42 | J85: 66.78 | K85: 62.05 | L85: 58.15 | M85: 2.89591
A86: 76 | B86: CADILAHC | C86: 263.85 | D86: 266.10 | E86: 258.90 | F86: 253.95 | G86: 246.75 | H86: 271.05 | I86: 278.25 | J86: 283.20 | K86: 273.3 | L86: 261.15 | M86: 30.44512
A87: 77 | B87: CANBK | C87: 90.2 | D87: 90.13 | E87: 88.32 | F87: 86.43 | G87: 84.62 | H87: 92.02 | I87: 93.83 | J87: 95.72 | K87: 91.95 | L87: 88.25 | M87: 62.74718
A88: 78 | B88: CANFINHOME | C88: 275 | D88: 277.77 | E88: 268.53 | F88: 262.07 | G88: 252.83 | H88: 284.23 | I88: 293.47 | J88: 299.93 | K88: 287 | L88: 271.3 | M88: 1.62682
A89: 79 | B89: CAPLIPOINT | C89: 277.8 | D89: 278.27 | E89: 269.53 | F89: 261.27 | G89: 252.53 | H89: 286.53 | I89: 295.27 | J89: 303.53 | K89: 287 | L89: 270 | M89: 0.62928
A90: 80 | B90: CARBORUNIV | C90: 222.7 | D90: 224.10 | E90: 215.90 | F90: 209.10 | G90: 200.90 | H90: 230.90 | I90: 239.10 | J90: 245.90 | K90: 232.3 | L90: 217.3 | M90: 0.73082
A91: 81 | B91: CARERATING | C91: 334.8 | D91: 334.70 | E91: 329.40 | F91: 324.00 | G91: 318.70 | H91: 340.10 | I91: 345.40 | J91: 350.80 | K91: 340 | L91: 329.3 | M91: 1.07775
A92: 82 | B92: CASTROLIND | C92: 100.95 | D92: 100.98 | E92: 98.12 | F92: 95.28 | G92: 92.42 | H92: 103.82 | I92: 106.68 | J92: 109.52 | K92: 103.85 | L92: 98.15 | M92: 11.4718
A93: 83 | B93: CCL | C93: 176.45 | D93: 180.48 | E93: 170.97 | F93: 165.48 | G93: 155.97 | H93: 185.97 | I93: 195.48 | J93: 200.97 | K93: 190 | L93: 175 | M93: 0.65785
A94: 84 | B94: CDSL | C94: 216.7 | D94: 216.60 | E94: 210.25 | F94: 203.80 | G94: 197.45 | H94: 223.05 | I94: 229.40 | J94: 235.85 | K94: 222.95 | L94: 210.15 | M94: 8.26074
A95: 85 | B95: CEATLTD | C95: 736.4 | D95: 752.32 | E95: 713.03 | F95: 689.67 | G95: 650.38 | H95: 775.68 | I95: 814.97 | J95: 838.33 | K95: 791.6 | L95: 728.95 | M95: 1.25062
A96: 86 | B96: CENTRALBK | C96: 12.25 | D96: 12.28 | E96: 11.97 | F96: 11.68 | G96: 11.37 | H96: 12.57 | I96: 12.88 | J96: 13.17 | K96: 12.6 | L96: 12 | M96: 6.00719
A97: 87 | B97: CENTURYPLY | C97: 108.25 | D97: 110.08 | E97: 104.17 | F97: 100.08 | G97: 94.17 | H97: 114.17 | I97: 120.08 | J97: 124.17 | K97: 116 | L97: 106 | M97: 0.84103
A98: 88 | B98: CERA | C98: 2309.65 | D98: 2284.60 | E98: 2229.20 | F98: 2148.75 | G98: 2093.35 | H98: 2365.05 | I98: 2420.45 | J98: 2500.90 | K98: 2340 | L98: 2204.15 | M98: 0.02487
A99: 89 | B99: CESC | C99: 393.15 | D99: 398.35 | E99: 381.70 | F99: 370.25 | G99: 353.60 | H99: 409.80 | I99: 426.45 | J99: 437.90 | K99: 415 | L99: 386.9 | M99: 3.65626
A100: 90 | B100: CGCL | C100: 158.25 | D100: 161.83 | E100: 151.42 | F100: 144.58 | G100: 134.17 | H100: 168.67 | I100: 179.08 | J100: 185.92 | K100: 172.25 | L100: 155 | M100: 2.38132
A101: 91 | B101: CHALET | C101: 199.5 | D101: 204.87 | E101: 189.73 | F101: 179.97 | G101: 164.83 | H101: 214.63 | I101: 229.77 | J101: 239.53 | K101: 220 | L101: 195.1 | M101: 0.02274
A102: 92 | B102: CHAMBLFERT | C102: 106 | D102: 106.92 | E102: 104.08 | F102: 102.17 | G102: 99.33 | H102: 108.83 | I102: 111.67 | J102: 113.58 | K102: 109.75 | L102: 105 | M102: 2.03512
A103: 93 | B103: CHENNPETRO | C103: 59.6 | D103: 60.95 | E103: 57.75 | F103: 55.90 | G103: 52.70 | H103: 62.80 | I103: 66.00 | J103: 67.85 | K103: 64.15 | L103: 59.1 | M103: 2.37131
A104: 94 | B104: CHOLAFIN | C104: 142.85 | D104: 143.90 | E104: 136.80 | F104: 130.75 | G104: 123.65 | H104: 149.95 | I104: 157.05 | J104: 163.10 | K104: 151 | L104: 137.85 | M104: 37.7433
A105: 95 | B105: CHOLAHLDNG | C105: 274.85 | D105: 288.55 | E105: 258.30 | F105: 241.75 | G105: 211.50 | H105: 305.10 | I105: 335.35 | J105: 351.90 | K105: 318.8 | L105: 272 | M105: 0.14454
A106: 96 | B106: CIPLA | C106: 413.75 | D106: 418.35 | E106: 405.80 | F106: 397.85 | G106: 385.30 | H106: 426.30 | I106: 438.85 | J106: 446.80 | K106: 430.9 | L106: 410.4 | M106: 63.29718
A107: 97 | B107: COALINDIA | C107: 139.45 | D107: 139.25 | E107: 137.25 | F107: 135.05 | G107: 133.05 | H107: 141.45 | I107: 143.45 | J107: 145.65 | K107: 141.25 | L107: 137.05 | M107: 88.33033
A108: 98 | B108: COCHINSHIP | C108: 251.9 | D108: 258.90 | E108: 243.00 | F108: 234.10 | G108: 218.20 | H108: 267.80 | I108: 283.70 | J108: 292.60 | K108: 274.8 | L108: 250 | M108: 1.76819
A109: 99 | B109: COLPAL | C109: 1242.5 | D109: 1250.75 | E109: 1216.50 | F109: 1190.50 | G109: 1156.25 | H109: 1276.75 | I109: 1311.00 | J109: 1337.00 | K109: 1285 | L109: 1224.75 | M109: 7.69406
A110: 100 | B110: CONCOR | C110: 317.5 | D110: 322.17 | E110: 306.63 | F110: 295.77 | G110: 280.23 | H110: 333.03 | I110: 348.57 | J110: 359.43 | K110: 337.7 | L110: 311.3 | M110: 13.05776
A111: 101 | B111: COROMANDEL | C111: 534.8 | D111: 536.17 | E111: 522.33 | F111: 509.87 | G111: 496.03 | H111: 548.63 | I111: 562.47 | J111: 574.93 | K111: 550 | L111: 523.7 | M111: 0.53432
A112: 102 | B112: CREDITACC | C112: 338.15 | D112: 337.62 | E112: 321.03 | F112: 303.92 | G112: 287.33 | H112: 354.73 | I112: 371.32 | J112: 388.43 | K112: 354.2 | L112: 320.5 | M112: 2.44657
A113: 103 | B113: CRISIL | C113: 1209.55 | D113: 1226.70 | E113: 1187.85 | F113: 1166.15 | G113: 1127.30 | H113: 1248.40 | I113: 1287.25 | J113: 1308.95 | K113: 1265.55 | L113: 1205 | M113: 0.15915
A114: 104 | B114: CROMPTON | C114: 203.85 | D114: 205.57 | E114: 197.98 | F114: 192.12 | G114: 184.53 | H114: 211.43 | I114: 219.02 | J114: 224.88 | K114: 213.15 | L114: 199.7 | M114: 11.91284
A115: 105 | B115: CUB | C115: 119.8 | D115: 122.63 | E115: 116.27 | F115: 112.73 | G115: 106.37 | H115: 126.17 | I115: 132.53 | J115: 136.07 | K115: 129 | L115: 119.1 | M115: 24.66852
A116: 106 | B116: CUMMINSIND | C116: 308.5 | D116: 314.62 | E116: 298.33 | F116: 288.17 | G116: 271.88 | H116: 324.78 | I116: 341.07 | J116: 351.23 | K116: 330.9 | L116: 304.45 | M116: 11.95274
A117: 107 | B117: CYIENT | C117: 231.55 | D117: 234.63 | E117: 224.52 | F117: 217.48 | G117: 207.37 | H117: 241.67 | I117: 251.78 | J117: 258.82 | K117: 244.75 | L117: 227.6 | M117: 1.16777
A118: 108 | B118: DABUR | C118: 434.85 | D118: 439.98 | E118: 425.17 | F118: 415.48 | G118: 400.67 | H118: 449.67 | I118: 464.48 | J118: 474.17 | K118: 454.8 | L118: 430.3 | M118: 21.54766
A119: 109 | B119: DALBHARAT | C119: 457.4 | D119: 470.10 | E119: 439.40 | F119: 421.40 | G119: 390.70 | H119: 488.10 | I119: 518.80 | J119: 536.80 | K119: 500.8 | L119: 452.1 | M119: 0.52304
A120: 110 | B120: DBCORP | C120: 79.1 | D120: 80.63 | E120: 77.27 | F120: 75.43 | G120: 72.07 | H120: 82.47 | I120: 85.83 | J120: 87.67 | K120: 84 | L120: 78.8 | M120: 0.42884
A121: 111 | B121: DBL | C121: 209.7 | D121: 210.23 | E121: 204.47 | F121: 199.23 | G121: 193.47 | H121: 215.47 | I121: 221.23 | J121: 226.47 | K121: 216 | L121: 205 | M121: 1.20186
A122: 112 | B122: DCAL | C122: 56 | D122: 54.25 | E122: 52.50 | F122: 49.00 | G122: 47.25 | H122: 57.75 | I122: 59.50 | J122: 63.00 | K122: 56 | L122: 50.75 | M122: 1.52465
A123: 113 | B123: DCBBANK | C123: 91.55 | D123: 92.58 | E123: 87.57 | F123: 83.58 | G123: 78.57 | H123: 96.57 | I123: 101.58 | J123: 105.57 | K123: 97.6 | L123: 88.6 | M123: 6.44621
A124: 114 | B124: DCMSHRIRAM | C124: 215.7 | D124: 216.93 | E124: 211.87 | F124: 208.03 | G124: 202.97 | H124: 220.77 | I124: 225.83 | J124: 229.67 | K124: 222 | L124: 213.1 | M124: 0.31406
A125: 115 | B125: DEEPAKNTR | C125: 380.45 | D125: 385.77 | E125: 371.68 | F125: 362.92 | G125: 348.83 | H125: 394.53 | I125: 408.62 | J125: 417.38 | K125: 399.85 | L125: 377 | M125: 5.72211
A126: 116 | B126: DELTACORP | C126: 68.6 | D126: 68.60 | E126: 68.60 | F126: 68.60 | G126: 68.60 | H126: 68.60 | I126: 68.60 | J126: 68.60 | K126: 68.6 | L126: 68.6 | M126: 6.03921
A127: 117 | B127: DHFL | C127: 8.65 | D127: 8.57 | E127: 8.43 | F127: 8.22 | G127: 8.08 | H127: 8.78 | I127: 8.92 | J127: 9.13 | K127: 8.7 | L127: 8.35 | M127: 8.94697
A128: 118 | B128: DISHTV | C128: 3.95 | D128: 4.00 | E128: 3.85 | F128: 3.75 | G128: 3.60 | H128: 4.10 | I128: 4.25 | J128: 4.35 | K128: 4.15 | L128: 3.9 | M128: 59.57543
A129: 119 | B129: DIVISLAB | C129: 1877 | D129: 1907.22 | E129: 1814.03 | F129: 1751.07 | G129: 1657.88 | H129: 1970.18 | I129: 2063.37 | J129: 2126.33 | K129: 2000.4 | L129: 1844.25 | M129: 11.65088
A130: 120 | B130: DIXON | C130: 3572.95 | D130: 3613.65 | E130: 3434.30 | F130: 3295.65 | G130: 3116.30 | H130: 3752.30 | I130: 3931.65 | J130: 4070.30 | K130: 3793 | L130: 3475 | M130: 0.57313
A131: 121 | B131: DLF | C131: 132.55 | D131: 133.27 | E131: 129.58 | F131: 126.62 | G131: 122.93 | H131: 136.23 | I131: 139.92 | J131: 142.88 | K131: 136.95 | L131: 130.3 | M131: 55.6717
A132: 122 | B132: DMART | C132: 2082.7 | D132: 2130.28 | E132: 2030.57 | F132: 1978.43 | G132: 1878.72 | H132: 2182.42 | I132: 2282.13 | J132: 2334.27 | K132: 2230 | L132: 2078.15 | M132: 2.72199
A133: 123 | B133: DRREDDY | C133: 3095 | D133: 3101.67 | E133: 3059.33 | F133: 3023.67 | G133: 2981.33 | H133: 3137.33 | I133: 3179.67 | J133: 3215.33 | K133: 3144 | L133: 3066 | M133: 7.11048
A134: 124 | B134: ECLERX | C134: 361.7 | D134: 362.27 | E134: 357.58 | F134: 353.47 | G134: 348.78 | H134: 366.38 | I134: 371.07 | J134: 375.18 | K134: 366.95 | L134: 358.15 | M134: 0.06632
A135: 125 | B135: EDELWEISS | C135: 40.3 | D135: 40.12 | E135: 39.93 | F135: 39.57 | G135: 39.38 | H135: 40.48 | I135: 40.67 | J135: 41.03 | K135: 40.3 | L135: 39.75 | M135: 5.2207
A136: 126 | B136: EICHERMOT | C136: 13001.6 | D136: 13015.20 | E136: 12711.40 | F136: 12421.20 | G136: 12117.40 | H136: 13305.40 | I136: 13609.20 | J136: 13899.40 | K136: 13319 | L136: 12725 | M136: 1.38722
A137: 127 | B137: EIDPARRY | C137: 136.1 | D137: 138.27 | E137: 132.83 | F137: 129.57 | G137: 124.13 | H137: 141.53 | I137: 146.97 | J137: 150.23 | K137: 143.7 | L137: 135 | M137: 0.80303
A138: 128 | B138: EIHOTEL | C138: 65.75 | D138: 65.55 | E138: 63.10 | F138: 60.45 | G138: 58.00 | H138: 68.20 | I138: 70.65 | J138: 73.30 | K138: 68 | L138: 62.9 | M138: 0.51433
A139: 129 | B139: ELGIEQUIP | C139: 109.4 | D139: 110.85 | E139: 106.70 | F139: 104.00 | G139: 99.85 | H139: 113.55 | I139: 117.70 | J139: 120.40 | K139: 115 | L139: 108.15 | M139: 0.43054
A140: 130 | B140: EMAMILTD | C140: 171.45 | D140: 171.60 | E140: 163.90 | F140: 156.35 | G140: 148.65 | H140: 179.15 | I140: 186.85 | J140: 194.40 | K140: 179.3 | L140: 164.05 | M140: 12.98959
A141: 131 | B141: ENDURANCE | C141: 595 | D141: 597.92 | E141: 578.83 | F141: 562.67 | G141: 543.58 | H141: 614.08 | I141: 633.17 | J141: 649.33 | K141: 617 | L141: 581.75 | M141: 0.3526
A142: 132 | B142: ENGINERSIN | C142: 59.05 | D142: 58.98 | E142: 57.72 | F142: 56.38 | G142: 55.12 | H142: 60.32 | I142: 61.58 | J142: 62.92 | K142: 60.25 | L142: 57.65 | M142: 12.35149
A143: 133 | B143: EQUITAS | C143: 41.5 | D143: 41.78 | E143: 39.82 | F143: 38.13 | G143: 36.17 | H143: 43.47 | I143: 45.43 | J143: 47.12 | K143: 43.75 | L143: 40.1 | M143: 35.44959
A144: 134 | B144: ERIS | C144: 372.4 | D144: 374.15 | E144: 363.30 | F144: 354.20 | G144: 343.35 | H144: 383.25 | I144: 394.10 | J144: 403.20 | K144: 385 | L144: 365.05 | M144: 0.18811
A145: 135 | B145: ESCORTS | C145: 598.8 | D145: 608.77 | E145: 566.23 | F145: 533.67 | G145: 491.13 | H145: 641.33 | I145: 683.87 | J145: 716.43 | K145: 651.3 | L145: 576.2 | M145: 48.36326
A146: 136 | B146: ESSELPACK | C146: 154.3 | D146: 155.93 | E146: 149.37 | F146: 144.43 | G146: 137.87 | H146: 160.87 | I146: 167.43 | J146: 172.37 | K146: 162.5 | L146: 151 | M146: 0.48434
A147: 137 | B147: EXIDEIND | C147: 131.75 | D147: 132.02 | E147: 129.23 | F147: 126.72 | G147: 123.93 | H147: 134.53 | I147: 137.32 | J147: 139.83 | K147: 134.8 | L147: 129.5 | M147: 22.88743
A148: 138 | B148: FCONSUMER | C148: 6.95 | D148: 6.95 | E148: 6.95 | F148: 6.95 | G148: 6.95 | H148: 6.95 | I148: 6.95 | J148: 6.95 | K148: 6.95 | L148: 6.95 | M148: 3.6284
A149: 139 | B149: FDC | C149: 193.9 | D149: 192.82 | E149: 190.63 | F149: 187.37 | G149: 185.18 | H149: 196.08 | I149: 198.27 | J149: 201.53 | K149: 195 | L149: 189.55 | M149: 0.52048
A150: 140 | B150: FEDERALBNK | C150: 41.3 | D150: 40.75 | E150: 39.90 | F150: 38.50 | G150: 37.65 | H150: 42.15 | I150: 43.00 | J150: 44.40 | K150: 41.6 | L150: 39.35 | M150: 168.01805
A151: 141 | B151: FINCABLES | C151: 218.6 | D151: 213.37 | E151: 203.33 | F151: 188.07 | G151: 178.03 | H151: 228.63 | I151: 238.67 | J151: 253.93 | K151: 223.4 | L151: 198.1 | M151: 0.58253
A152: 142 | B152: FINEORG | C152: 1881.05 | D152: 1894.22 | E152: 1843.43 | F152: 1805.82 | G152: 1755.03 | H152: 1931.83 | I152: 1982.62 | J152: 2020.23 | K152: 1945 | L152: 1856.6 | M152: 0.03348
A153: 143 | B153: FINPIPE | C153: 380.75 | D153: 386.92 | E153: 368.83 | F153: 356.92 | G153: 338.83 | H153: 398.83 | I153: 416.92 | J153: 428.83 | K153: 405 | L153: 375 | M153: 0.13103
A154: 144 | B154: FLFL | C154: 112.1 | D154: 112.10 | E154: 112.10 | F154: 112.10 | G154: 112.10 | H154: 112.10 | I154: 112.10 | J154: 112.10 | K154: 112.1 | L154: 112.1 | M154: 0.13447
A155: 145 | B155: FMGOETZE | C155: 333.8 | D155: 334.57 | E155: 317.23 | F155: 300.67 | G155: 283.33 | H155: 351.13 | I155: 368.47 | J155: 385.03 | K155: 351.9 | L155: 318 | M155: 0.00993
A156: 146 | B156: FORTIS | C156: 121.2 | D156: 122.82 | E156: 118.63 | F156: 116.07 | G156: 111.88 | H156: 125.38 | I156: 129.57 | J156: 132.13 | K156: 127 | L156: 120.25 | M156: 6.77745
A157: 147 | B157: FRETAIL | C157: 74.4 | D157: 74.40 | E157: 74.40 | F157: 74.40 | G157: 74.40 | H157: 74.40 | I157: 74.40 | J157: 74.40 | K157: 74.4 | L157: 74.4 | M157: 1.59283
A158: 148 | B158: FSL | C158: 27.9 | D158: 27.72 | E158: 27.13 | F158: 26.37 | G158: 25.78 | H158: 28.48 | I158: 29.07 | J158: 29.83 | K158: 28.3 | L158: 26.95 | M158: 8.66846
A159: 149 | B159: GAIL | C159: 75.75 | D159: 76.33 | E159: 73.92 | F159: 72.08 | G159: 69.67 | H159: 78.17 | I159: 80.58 | J159: 82.42 | K159: 78.75 | L159: 74.5 | M159: 188.26444
A160: 150 | B160: GALAXYSURF | C160: 1159.8 | D160: 1166.60 | E160: 1133.20 | F160: 1106.60 | G160: 1073.20 | H160: 1193.20 | I160: 1226.60 | J160: 1253.20 | K160: 1200 | L160: 1140 | M160: 0.09856
A161: 151 | B161: GARFIBRES | C161: 1085.8 | D161: 1102.32 | E161: 1060.68 | F161: 1035.57 | G161: 993.93 | H161: 1127.43 | I161: 1169.07 | J161: 1194.18 | K161: 1143.95 | L161: 1077.2 | M161: 0.04852
A162: 152 | B162: GAYAPROJ | C162: 8.95 | D162: 8.77 | E162: 8.58 | F162: 8.22 | G162: 8.03 | H162: 9.13 | I162: 9.32 | J162: 9.68 | K162: 8.95 | L162: 8.4 | M162: 7.18783
A163: 153 | B163: GEPIL | C163: 464.05 | D163: 474.70 | E163: 449.45 | F163: 434.85 | G163: 409.60 | H163: 489.30 | I163: 514.55 | J163: 529.15 | K163: 499.95 | L163: 460.1 | M163: 0.21326
A164: 154 | B164: GESHIP | C164: 202.85 | D164: 203.28 | E164: 197.72 | F164: 192.58 | G164: 187.02 | H164: 208.42 | I164: 213.98 | J164: 219.12 | K164: 208.85 | L164: 198.15 | M164: 0.15907
A165: 155 | B165: GET&D | C165: 65.95 | D165: 68.30 | E165: 62.65 | F165: 59.35 | G165: 53.70 | H165: 71.60 | I165: 77.25 | J165: 80.55 | K165: 73.95 | L165: 65 | M165: 0.6498
A166: 156 | B166: GHCL | C166: 93.5 | D166: 90.73 | E166: 87.87 | F166: 82.23 | G166: 79.37 | H166: 96.37 | I166: 99.23 | J166: 104.87 | K166: 93.6 | L166: 85.1 | M166: 4.19031
A167: 157 | B167: GICRE | C167: 105.3 | D167: 105.45 | E167: 103.90 | F167: 102.50 | G167: 100.95 | H167: 106.85 | I167: 108.40 | J167: 109.80 | K167: 107 | L167: 104.05 | M167: 0.93032
A168: 158 | B168: GILLETTE | C168: 5160.3 | D168: 5256.75 | E168: 4963.55 | F168: 4766.80 | G168: 4473.60 | H168: 5453.50 | I168: 5746.70 | J168: 5943.45 | K168: 5549.95 | L168: 5060 | M168: 0.11103
A169: 159 | B169: GLAXO | C169: 1210.25 | D169: 1209.87 | E169: 1150.38 | F169: 1090.52 | G169: 1031.03 | H169: 1269.73 | I169: 1329.22 | J169: 1389.08 | K169: 1269.35 | L169: 1150 | M169: 0.54266
A170: 160 | B170: GLENMARK | C170: 203.85 | D170: 206.02 | E170: 198.33 | F170: 192.82 | G170: 185.13 | H170: 211.53 | I170: 219.22 | J170: 224.73 | K170: 213.7 | L170: 200.5 | M170: 23.67599
A171: 161 | B171: GMDCLTD | C171: 31.05 | D171: 31.45 | E171: 30.50 | F171: 29.95 | G171: 29.00 | H171: 32.00 | I171: 32.95 | J171: 33.50 | K171: 32.4 | L171: 30.9 | M171: 2.81792
A172: 162 | B172: GMRINFRA | C172: 16.2 | D172: 16.20 | E172: 16.05 | F172: 15.90 | G172: 15.75 | H172: 16.35 | I172: 16.50 | J172: 16.65 | K172: 16.35 | L172: 16.05 | M172: 41.52745
A173: 163 | B173: GNFC | C173: 112.35 | D173: 113.23 | E173: 110.22 | F173: 108.08 | G173: 105.07 | H173: 115.37 | I173: 118.38 | J173: 120.52 | K173: 116.25 | L173: 111.1 | M173: 3.58087
A174: 164 | B174: GODFRYPHLP | C174: 962.5 | D174: 964.20 | E174: 938.45 | F174: 914.40 | G174: 888.65 | H174: 988.25 | I174: 1014.00 | J174: 1038.05 | K174: 989.95 | L174: 940.15 | M174: 0.43372
A175: 165 | B175: GODREJAGRO | C175: 353.9 | D175: 360.10 | E175: 340.80 | F175: 327.70 | G175: 308.40 | H175: 373.20 | I175: 392.50 | J175: 405.60 | K175: 379.4 | L175: 347 | M175: 0.76616
A176: 166 | B176: GODREJCP | C176: 548.75 | D176: 546.45 | E176: 527.60 | F176: 506.45 | G176: 487.60 | H176: 567.60 | I176: 586.45 | J176: 607.60 | K176: 565.3 | L176: 525.3 | M176: 29.76902
A177: 167 | B177: GODREJIND | C177: 278.25 | D177: 279.33 | E177: 274.92 | F177: 271.58 | G177: 267.17 | H177: 282.67 | I177: 287.08 | J177: 290.42 | K177: 283.75 | L177: 276 | M177: 2.14602
A178: 168 | B178: GODREJPROP | C178: 596.4 | D178: 612.80 | E178: 577.60 | F178: 558.80 | G178: 523.60 | H178: 631.60 | I178: 666.80 | J178: 685.60 | K178: 648 | L178: 594 | M178: 4.12778
A179: 169 | B179: GPPL | C179: 54.9 | D179: 56.15 | E179: 52.30 | F179: 49.70 | G179: 45.85 | H179: 58.75 | I179: 62.60 | J179: 65.20 | K179: 60 | L179: 53.55 | M179: 1.58117
A180: 170 | B180: GRANULES | C180: 141.75 | D180: 141.65 | E180: 139.70 | F180: 137.65 | G180: 135.70 | H180: 143.70 | I180: 145.65 | J180: 147.70 | K180: 143.6 | L180: 139.6 | M180: 5.34372
A181: 171 | B181: GRAPHITE | C181: 133.6 | D181: 133.60 | E181: 133.60 | F181: 133.60 | G181: 133.60 | H181: 133.60 | I181: 133.60 | J181: 133.60 | K181: 133.6 | L181: 133.6 | M181: 1.69693
A182: 172 | B182: GRASIM | C182: 476.15 | D182: 471.02 | E182: 457.73 | F182: 439.32 | G182: 426.03 | H182: 489.43 | I182: 502.72 | J182: 521.13 | K182: 484.3 | L182: 452.6 | M182: 21.2032
A183: 173 | B183: GREAVESCOT | C183: 67.65 | D183: 69.28 | E183: 65.62 | F183: 63.58 | G183: 59.92 | H183: 71.32 | I183: 74.98 | J183: 77.02 | K183: 72.95 | L183: 67.25 | M183: 2.17169
A184: 174 | B184: GRINDWELL | C184: 453.45 | D184: 456.77 | E184: 443.83 | F184: 434.22 | G184: 421.28 | H184: 466.38 | I184: 479.32 | J184: 488.93 | K184: 469.7 | L184: 447.15 | M184: 0.02378
A185: 175 | B185: GSFC | C185: 36.55 | D185: 36.78 | E185: 35.97 | F185: 35.38 | G185: 34.57 | H185: 37.37 | I185: 38.18 | J185: 38.77 | K185: 37.6 | L185: 36.2 | M185: 4.90607
A186: 176 | B186: GSPL | C186: 183.25 | D186: 180.15 | E186: 170.30 | F186: 157.35 | G186: 147.50 | H186: 193.10 | I186: 202.95 | J186: 215.90 | K186: 190 | L186: 167.2 | M186: 4.30568
A187: 177 | B187: GUJALKALI | C187: 223.3 | D187: 225.60 | E187: 217.80 | F187: 212.30 | G187: 204.50 | H187: 231.10 | I187: 238.90 | J187: 244.40 | K187: 233.4 | L187: 220.1 | M187: 0.37072
A188: 178 | B188: GUJGASLTD | C188: 226.7 | D188: 233.90 | E188: 217.80 | F188: 208.90 | G188: 192.80 | H188: 242.80 | I188: 258.90 | J188: 267.80 | K188: 250 | L188: 225 | M188: 6.88946
A189: 179 | B189: GULFOILLUB | C189: 538.7 | D189: 535.98 | E189: 517.27 | F189: 495.83 | G189: 477.12 | H189: 557.42 | I189: 576.13 | J189: 597.57 | K189: 554.7 | L189: 514.55 | M189: 0.04806
A190: 180 | B190: HAL | C190: 533.3 | D190: 541.43 | E190: 521.87 | F190: 510.43 | G190: 490.87 | H190: 552.87 | I190: 572.43 | J190: 583.87 | K190: 561 | L190: 530 | M190: 0.51342
A191: 181 | B191: HATSUN | C191: 519.5 | D191: 523.88 | E191: 501.72 | F191: 483.93 | G191: 461.77 | H191: 541.67 | I191: 563.83 | J191: 581.62 | K191: 546.05 | L191: 506.1 | M191: 0.0809
A192: 182 | B192: HAVELLS | C192: 484.6 | D192: 480.03 | E192: 471.07 | F192: 457.53 | G192: 448.57 | H192: 493.57 | I192: 502.53 | J192: 516.07 | K192: 489 | L192: 466.5 | M192: 14.14588
A193: 183 | B193: HCLTECH | C193: 413.55 | D193: 418.32 | E193: 403.43 | F193: 393.32 | G193: 378.43 | H193: 428.43 | I193: 443.32 | J193: 453.43 | K193: 433.2 | L193: 408.2 | M193: 81.36746
A194: 184 | B194: HDFC | C194: 1583.5 | D194: 1617.67 | E194: 1541.73 | F194: 1499.97 | G194: 1424.03 | H194: 1659.43 | I194: 1735.37 | J194: 1777.13 | K194: 1693.6 | L194: 1575.9 | M194: 67.52017
A195: 185 | B195: HDFCAMC | C195: 2185.75 | D195: 2173.58 | E195: 2127.17 | F195: 2068.58 | G195: 2022.17 | H195: 2232.17 | I195: 2278.58 | J195: 2337.17 | K195: 2220 | L195: 2115 | M195: 4.18689
A196: 186 | B196: HDFCBANK | C196: 829.65 | D196: 837.83 | E196: 811.82 | F196: 793.98 | G196: 767.97 | H196: 855.67 | I196: 881.68 | J196: 899.52 | K196: 863.85 | L196: 820 | M196: 145.51758
A197: 187 | B197: HDFCLIFE | C197: 429.9 | D197: 433.78 | E197: 420.17 | F197: 410.43 | G197: 396.82 | H197: 443.52 | I197: 457.13 | J197: 466.87 | K197: 447.4 | L197: 424.05 | M197: 74.15298
A198: 188 | B198: HEG | C198: 506.05 | D198: 501.67 | E198: 488.88 | F198: 471.72 | G198: 458.93 | H198: 518.83 | I198: 531.62 | J198: 548.78 | K198: 514.45 | L198: 484.5 | M198: 2.20419
A199: 189 | B199: HEIDELBERG | C199: 137.3 | D199: 138.58 | E199: 135.17 | F199: 133.03 | G199: 129.62 | H199: 140.72 | I199: 144.13 | J199: 146.27 | K199: 142 | L199: 136.45 | M199: 0.75884
A200: 190 | B200: HERITGFOOD | C200: 216 | D200: 215.20 | E200: 207.90 | F200: 199.80 | G200: 192.50 | H200: 223.30 | I200: 230.60 | J200: 238.70 | K200: 222.5 | L200: 207.1 | M200: 0.25361
A201: 191 | B201: HEROMOTOCO | C201: 1639.65 | D201: 1617.33 | E201: 1587.32 | F201: 1534.98 | G201: 1504.97 | H201: 1669.67 | I201: 1699.68 | J201: 1752.02 | K201: 1647.35 | L201: 1565 | M201: 16.41556
A202: 192 | B202: HEXAWARE | C202: 226.4 | D202: 226.13 | E202: 222.27 | F202: 218.13 | G202: 214.27 | H202: 230.27 | I202: 234.13 | J202: 238.27 | K202: 230 | L202: 222 | M202: 1.6166
A203: 193 | B203: HFCL | C203: 8.85 | D203: 8.87 | E203: 8.68 | F203: 8.52 | G203: 8.33 | H203: 9.03 | I203: 9.22 | J203: 9.38 | K203: 9.05 | L203: 8.7 | M203: 21.05292
A204: 194 | B204: HIMATSEIDE | C204: 60.05 | D204: 60.03 | E204: 58.07 | F204: 56.08 | G204: 54.12 | H204: 62.02 | I204: 63.98 | J204: 65.97 | K204: 62 | L204: 58.05 | M204: 0.32331
A205: 195 | B205: HINDALCO | C205: 91.65 | D205: 92.68 | E205: 89.97 | F205: 88.28 | G205: 85.57 | H205: 94.37 | I205: 97.08 | J205: 98.77 | K205: 95.4 | L205: 91 | M205: 92.71055
A206: 196 | B206: HINDCOPPER | C206: 21.6 | D206: 21.80 | E206: 21.10 | F206: 20.60 | G206: 19.90 | H206: 22.30 | I206: 23.00 | J206: 23.50 | K206: 22.5 | L206: 21.3 | M206: 5.02667
... 321 more rows

Sheet Bulk Deals
E6: Back To Main Page
A7: Subject : | B7: BULK DEAL | D7: =Main!B10 -> 2020-04-03
A9: Date | B9: Scrip code | C9: Scrip Name | D9: Client Name | E9: Buy / Sell | F9: Quantity Traded | G9: Trade Price / Wt.Avg.trade price | H9: Exchange
A10: 2020-04-01 | B10: 542771 | C10: NOVATEOR | D10: BEELINE BROKING LIMITED | E10: SELL | F10: 48,000 | G10: 8.23 | H10: BSE
A11: 2020-04-01 | B11: 530589 | C11: PRIMAPLA | D11: ITHOUGHTWEALTH ANALYTICS LLP | E11: SELL | F11: 64,120 | G11: 25.02 | H11: BSE
A12: 2020-04-01 | B12: 543171 | C12: ROJL | D12: VIVIDOFFSET PRINTERS PRIVATELIMITED | E12: BUY | F12: 15,000 | G12: 36 | H12: BSE
A13: 2020-04-01 | B13: 539222 | C13: VMV | D13: DEVJEET CHAKRABORTY | E13: BUY | F13: 40,000 | G13: 25.9 | H13: BSE
A14: 2020-04-01 | B14: 539222 | C14: VMV | D14: RAJESH RAMANLAL KAPADIA | E14: SELL | F14: 40,000 | G14: 25.9 | H14: BSE
A15: 2020-04-01 | B15: PAISALO | C15: Paisalo Digital Limited | D15: ANTARA INDIA EVERGREEN FUND LTD | E15: BUY | F15: 264,937 | G15: 159 | H15: NSE
A16: 2020-04-01 | B16: PAISALO | C16: Paisalo Digital Limited | D16: DAVOS INTERNATIONAL FUND | E16: SELL | F16: 265,000 | G16: 159 | H16: NSE

Sheet Call Tracker (Equity & F&O)
M5: Back To Main Page
A6: Retail Research Technical Calls & Fundamental Performance Report for the month of April-2020
M7: =Main!B10 -> 2020-04-03
B8: Positional Call
A9: Sr.no | B9: Date | D9: Company | E9: Rec | F9: Rec Price | G9: Stop Loss*** | H9: Call Closed At | I9: Target | J9: Remark | K9: Profit / Loss per Share | L9: Gain / Loss % | M9: Status | N9: Closed Date | O9: NSE Closed Price
A10: 1 | B10: 2020-03-27 | D10: ULTRACEMCO | E10: Buy | F10: 3150-3200 | G10: 2940 | I10: 3400-3500 | J10: Open | O10: =VLOOKUP(D10,Sheet2!A2:F1647,6,0) -> 3140.65 | R10: H
A11: 2 | B11: 2020-03-31 | D11: ZEEL | E11: Buy | F11: 125-126 | G11: 118 | I11: 135-140 | J11: Open | O11: =VLOOKUP(D11,Sheet2!A3:F1648,6,0) -> 120.9 | R11: N
A12: 3 | B12: 2020-04-01 | D12: HCLTECH | E12: Buy | F12: 420-427 | G12: 395 | I12: 460-480 | J12: Open | O12: =VLOOKUP(D12,Sheet2!A4:F1649,6,0) -> 413.55 | R12: H
A13: 4 | B13: 2020-04-01 | D13: ASIANPAINT | E13: Buy | F13: 1630-1640 | G13: 1540 | I13: 1820-1850 | J13: Open | O13: =VLOOKUP(D13,Sheet2!A5:F1650,6,0) -> 1603.2 | R13: N
A14: 5 | B14: 2020-04-01 | D14: APOLLOHOSP | E14: Buy | F14: 1100-1110 | G14: 1040 | I14: 1250 | J14: Open | O14: =VLOOKUP(D14,Sheet2!A6:F1651,6,0) -> 1088.85 | R14: H
A17: CLBS = Closing Basis ***
A18: Dividend adjusted <> | F18: Reinitiated $
A19: Part book {} | F19: Revised stoploss #
B21: Momentum Call
A22: Sr.no | B22: Date | D22: Company | E22: Rec | F22: Rec Price | G22: Stop Loss | H22: Call Closed At | I22: Target | J22: Remark | K22: Profit / Loss per Share/Lot | L22: Gain / Loss % | M22: Gain / Loss per Lot | N22: Lot | O22: Status | P22: Closed Date
A23: 1 | B23: 2020-04-01 | D23: HDFCBANK | E23: Buy | F23: 842.5 | G23: 805 | H23: 832.5 | I23: 890-900 | J23: Loss of Rs.10/- | K23: =H23-F23 -> -10 | L23: =K23/F23 -> -1.19% | O23: Unsuccessful | P23: 2020-04-01 | R23: N
A24: 2 | B24: 2020-04-01 | D24: ICICIBANK | E24: Buy | F24: 317.5 | G24: 308 | H24: 312 | I24: 325-330 | J24: Loss of Rs. 5.5/- | K24: =H24-F24 -> -5.5 | L24: =K24/F24 -> -1.73% | O24: Unsuccessful | P24: 2020-04-01 | R24: H
A25: 3 | B25: 2020-04-01 | D25: TATASTEEL | E25: Buy | F25: 259 | G25: 249 | H25: 262.5 | I25: 275-280 | J25: Profit of Rs.3.5/- | K25: =H25-F25 -> 3.5 | L25: =K25/F25 -> 1.35% | O25: Unsuccessful | P25: 2020-04-01 | R25: H
A27: CLBS = Closing Basis ***
A28: Dividend adjusted <> | F28: Reinitiated $
F29: Revised stoploss #
A31: Master Trade High Risk
A32: Sr.no | B32: Date | D32: Company | E32: Rec | F32: Rec Price | G32: Stop Loss | H32: Call Closed At | I32: Target | J32: Remark | K32: Profit / Loss per share | L32: Gain / Loss per Lot | M32: Lot | N32: Status | O32: Closed Date
A38: Master Trade Medium Risk
A39: Sr.no | B39: Date | D39: Company | E39: Rec | F39: Rec Price | G39: Stop Loss | H39: Call Closed At | I39: Target | J39: Remark | K39: Profit/ Loss per lot | L39: Gain / Loss per Lot | M39: Lot | N39: Status | O39: Closed Date
A42: Techno -Funda (positional)
A43: Sr.no | B43: Date | D43: Company | E43: Rec | F43: Rec Price | G43: Stop Loss*** | H43: Call Closed At | I43: Target | J43: Remark | K43: Profit / Loss per Share | L43: Gain / Loss % | M43: Status | N43: Closed Date | O43: NSE Closed Price
A45: CLBS = Closing Basis *** | F45: Reinitiated $
A46: Dividend adjusted <> | F46: Revised stoploss #
B51: Investment Idea
A52: Sr.no | B52: Date | D52: Company | E52: Rec | F52: Rec Price | G52: Point of Review | H52: Close Rate | I52: Target | J52: Remark | K52: Profit / Loss per Share | L52: Gain / Loss % | M52: Status | N52: Closed Date
A53: 1 | B53: 2013-11-01 | D53: L&T Finance Holding | E53: Accu | F53: 82.00 | G53: - | H53: 100 | I53: 100.00 | J53: Target Achieved | K53: =H53-F53 -> 18.00 | L53: =K53/F53 -> 21.95% | M53: Successful | N53: 2016-10-14
A54: 2 | B54: 2014-06-04 | D54: Finolex Inds | E54: Buy | F54: 257.00 | G54: - | H54: 300 | I54: 300.00 | J54: Target Achieved | K54: 43.00 | L54: 16.73% | M54: Successful | N54: 2014-07-02
A55: 3 | B55: 2014-07-08 | D55: JK Cement | E55: Buy | F55: 393.00 | G55: - | H55: 468 | I55: 468.00 | J55: Target Achieved | K55: 75.00 | L55: 19.08% | M55: Successful | N55: 2014-08-12
A56: 4 | B56: 2014-08-06 | D56: Finolex Cables | E56: Buy | F56: 205.00 | G56: - | H56: 275 | I56: 250.00 | J56: Target Achieved | K56: 70.00 | L56: 34.15% | M56: Successful | N56: 2014-11-19
A57: 5 | B57: 2014-09-04 | D57: Exide Inds | E57: Buy | F57: 162.00 | G57: - | H57: 190 | I57: 190.00 | J57: Target Achieved | K57: 28.00 | L57: 17.28% | M57: Successful | N57: 2015-01-02
A58: 6 | B58: 2014-09-04 | D58: Deepak Nitrite | E58: Buy | F58: 75.00 | G58: - | H58: 91.5 | I58: 95-100 | J58: Profit of Rs.16.50/- | K58: 16.50 | L58: 22.00% | M58: Successful | N58: 2014-11-11
A59: 7 | B59: 2014-10-01 | D59: Mercks | E59: Buy | F59: 850.00 | G59: - | H59: 982.5 | I59: 1050.00 | J59: Profit of Rs.132.50/- | K59: 132.50 | L59: 15.59% | M59: Successful | N59: 2015-02-04
A60: 8 | B60: 2014-10-01 | D60: Grindwell Norton | E60: Buy | F60: 475.00 | G60: - | H60: 515 | I60: 600.00 | J60: Profit of Rs.40/- | K60: 40.00 | L60: 8.42% | M60: Successful | N60: 2014-10-27
A61: 9 | B61: 2014-10-01 | D61: Snowman Logistics | E61: Buy | F61: 86.00 | G61: - | H61: 99 | I61: 140.00 | J61: Profit of Rs.13.00/- | K61: 13.00 | L61: 15.12% | M61: Successful | N61: 2014-10-27
A62: 10 | B62: 2014-10-14 | D62: Birla Corp | E62: Buy | F62: 496.60 | G62: - | H62: 621 | I62: 580.00 | J62: Target Achieved | K62: 124.40 | L62: 25.05% | M62: Successful | N62: 2016-08-23
A63: 11 | B63: 2014-10-14 | D63: Ultratech Cem | E63: Buy | F63: 2481.90 | G63: - | H63: 2840 | I63: 2870.00 | J63: Profit of Rs.358.10/- | K63: 358.10 | L63: 14.43% | M63: Successful | N63: 2015-01-13
A64: 12 | B64: 2014-10-16 | D64: Sintex Inds | E64: Buy | F64: 84.50 | G64: - | H64: 93 | I64: 110.00 | J64: Profit of Rs.8.50/- | K64: 8.50 | L64: 10.06% | M64: Successful | N64: 2014-10-27
A65: 13 | B65: 2014-10-16 | D65: HSIL | E65: Buy | F65: 401.00 | G65: - | H65: 428 | I65: 450.00 | J65: Profit of Rs.27.00/- | K65: 27.00 | L65: 6.73% | M65: Successful | N65: 2015-01-16
A66: 14 | B66: 2014-10-16 | D66: Eveready Inds | E66: Buy | F66: 101.00 | G66: - | H66: 112 | I66: 120.00 | J66: Profit of Rs.11.00/- | K66: 11.00 | L66: 10.89% | M66: Successful | N66: 2014-10-27
A67: 15 | B67: 2014-11-11 | D67: Pennar Inds | E67: Buy | F67: 59.00 | G67: - | H67: 76 | I67: 76.00 | J67: Target Achieved | K67: 17.00 | L67: 28.81% | M67: Successful | N67: 2017-10-24
A68: 16 | B68: 2014-11-11 | D68: Snowman Logistics | E68: Buy | F68: 99.00 | G68: - | H68: 120 | I68: 120.00 | J68: Profit of Rs.21/- | K68: 21.00 | L68: 21.21% | M68: Successful | N68: 2014-11-17
A69: 17 | B69: 2014-11-13 | D69: Dharamsi Morarji Chem | E69: Buy | F69: 22.00 | G69: - | H69: 33.55 | I69: 32.00 | J69: Profit of Rs 11.55/- | K69: 11.55 | L69: 52.50% | M69: Successful | N69: 2015-07-03
A70: 18 | B70: 2014-12-03 | D70: Tatachem | E70: Buy | F70: 440.00 | G70: - | H70: 520 | I70: 520.00 | J70: Profit of Rs 80.00/- | K70: 80.00 | L70: 18.18% | M70: Successful | N70: 2015-07-23
A71: 19 | B71: 2014-12-03 | D71: Advanta | E71: Buy | F71: 360.00 | G71: - | H71: 427 | I71: 425.00 | J71: Profit of Rs.67.00/- | K71: 67.00 | L71: 18.61% | M71: Successful | N71: 2015-02-23
A72: 20 | B72: 2015-01-08 | D72: GDL | E72: Buy | F72: 360.00 | G72: - | H72: 455 | I72: 420.00 | J72: Profit of Rs.95.00/- | K72: 95.00 | L72: 26.39% | M72: Successful | N72: 2015-01-20
A73: 21 | B73: 2015-01-08 | D73: NRB Bearing | E73: Buy | F73: 130.00 | H73: 175.5 | I73: 165.00 | J73: Profit of Rs 45.50/- | K73: 45.50 | L73: 35.00% | M73: Successful | N73: 2017-12-19
A74: 22 | B74: 2015-02-05 | D74: GSFC | E74: Accu | F74: 98.00 | H74: 120 | I74: 120.00 | J74: Target Achieved | K74: 22.00 | L74: 22.45% | M74: Successful | N74: 2017-01-18
A75: 23 | B75: 2015-02-05 | D75: Sundrmfast | E75: Accu | F75: 196.00 | H75: 262 | I75: 255.00 | J75: Target Achieved | K75: 66.00 | L75: 33.67% | M75: Successful | N75: 2016-08-17
A76: 24 | B76: 2015-03-04 | D76: GPPL | E76: Accu | F76: 235 | H76: 77.00 | I76: 280-285 | J76: Loss of Rs.158/- | K76: -158.00 | L76: -67.23% | M76: Unsuccessful | N76: 2019-02-26
A77: 25 | B77: 2015-03-04 | D77: ORIENTCEM | E77: Accu | F77: 185.00 | H77: 224 | I77: 220-225 | J77: Target Achieved | K77: 39.00 | L77: 21.08% | M77: Successful | N77: 2016-10-04
A78: 26 | B78: 2015-03-27 | D78: PFS | E78: Accu | F78: 49.5 | H78: 15.85 | I78: 67.00 | J78: Loss of Rs.33.65/- | K78: -33.65 | L78: -68% | M78: Unsuccessful | N78: 2019-06-11
A79: 27 | B79: 2015-03-30 | D79: Walchandnagar Ind Ltd | E79: Accu | F79: 183.50 | H79: 219 | I79: 218.00 | J79: Profit of Rs.35.50/- | K79: 35.50 | L79: 19.35% | M79: Successful | N79: 2015-04-09
A80: 28 | B80: 2015-04-20 | D80: Kalpataru Power Transmission Ltd | E80: Accu | F80: =(227+237)/2 -> 232.00 | H80: 298 | I80: 298.00 | J80: Target Achieved | K80: 66.00 | L80: 28.45% | M80: Successful | N80: 2017-03-29
A81: 29 | B81: 2015-05-04 | D81: Mastek Ltd | E81: Buy | F81: 385.00 | H81: =212.5+331 -> 543.5 | I81: 510.00 | J81: Profit of Rs 158.50/- | K81: 158.50 | L81: 41.17% | M81: Successful | N81: 2015-08-19
A82: 30 | B82: 2015-05-04 | D82: Suprajit Eng | E82: Buy | F82: 115.50 | H82: 146 | I82: 142.00 | J82: Profit of Rs 30.50/- | K82: 30.50 | L82: 26.41% | M82: Successful | N82: 2015-07-17
A83: 31 | B83: 2015-05-27 | D83: TCI | E83: Buy | F83: 237.50 | H83: 279.5 | I83: 278.00 | J83: Target Achieved | K83: 42.00 | L83: 17.68% | M83: Successful | N83: 2015-08-06
A84: 32 | B84: 2015-06-19 | D84: HSIL | E84: Accu | F84: 340.00 | H84: 448 | I84: 448.00 | J84: Target Achieved | K84: 108.00 | L84: 31.76% | M84: Successful | N84: 2017-10-10
A85: 33 | B85: 2015-07-06 | D85: Capital First | E85: Accu | F85: 390.00 | H85: 460 | I85: 460.00 | J85: Target Achieved | K85: =H85-F85 -> 70.00 | L85: =K85/F85 -> 17.95% | M85: Successful | N85: 2016-04-18
A86: 34 | B86: 2015-07-10 | D86: Dolphin OffShore | E86: Accu | F86: 122.5 | H86: 61.00 | I86: 172.00 | J86: Loss of Rs.61.50/- | K86: -61.50 | L86: -50.20% | M86: Unsuccessful | N86: 2018-08-21
A87: 35 | B87: 2015-08-03 | D87: Allcargo logistics | E87: Accu | F87: 297.50 | H87: 350 | I87: 360.00 | J87: Profit of Rs 52.50/- | K87: 52.50 | L87: 17.65% | M87: Successful | N87: 2015-08-16
A88: 36 | B88: 2015-08-03 | D88: Camline Fine | E88: Accu | F88: 115.50 | H88: 149 | I88: 140.00 | J88: Profit of Rs 33.50/- | K88: 33.50 | L88: 29.00% | M88: Successful | N88: 2017-01-05
A89: 37 | B89: 2015-09-04 | D89: TCI | E89: Accu | F89: 226.00 | H89: 292 | I89: 292.00 | J89: Target Achieved | K89: 66.00 | L89: 29.20% | M89: Successful | N89: 2015-10-09
A90: 38 | B90: 2015-09-07 | D90: Kalpataru Power Transmission Ltd | E90: Accu | F90: 232.50 | H90: 312.5 | I90: 310.00 | J90: Target Achieved | K90: 80.00 | L90: 34.41% | M90: Successful | N90: 2017-03-29
A91: 39 | B91: 2015-09-21 | D91: LLOYD ELECTRIC & ENG LTD | E91: Accu | F91: 196.50 | H91: 238 | I91: 238.00 | J91: Target Achieved | K91: 41.50 | L91: 21.12% | M91: Successful | N91: 2015-10-14
A92: 40 | B92: 2015-09-24 | D92: L&T Finance Holding | E92: Accu | F92: 65.00 | H92: 82 | I92: 82.00 | J92: Target Achieved | K92: 17.00 | L92: 26.15% | M92: Successful | N92: 2016-07-27
A93: 41 | B93: 2015-10-14 | D93: KEC International ltd | E93: Accu | F93: 144.00 | H93: 182.5 | I93: 181.00 | J93: Target Achieved | K93: 38.50 | L93: 26.74% | M93: Successful | N93: 2017-03-23
A94: 42 | B94: 2015-10-14 | D94: Gruh Finance | E94: Accu | F94: 264.00 | H94: 311 | I94: 311.00 | J94: Target Achieved | K94: 47.00 | L94: 17.80% | M94: Successful | N94: 2016-08-22
A95: 43 | B95: 2015-11-10 | D95: Pidilitind | E95: Buy | F95: 549.50 | H95: 630 | I95: 630.00 | J95: Target Achieved | K95: 80.50 | L95: 14.65% | M95: Successful | N95: 2016-02-19
A96: 44 | B96: 2015-12-04 | D96: Zensar Technology | E96: Accu | F96: 1027.50 | H96: 1315 | I96: 1250.00 | J96: Target Achieved | K96: 287.50 | L96: 27.98% | M96: Successful | N96: 2018-05-24
A97: 45 | B97: 2015-12-29 | D97: Vinati Organics Ltd | E97: Accu | F97: 465.00 | H97: 540 | I97: 540.00 | J97: Target Achieved | K97: 75.00 | L97: 16.13% | M97: Successful | N97: 2016-06-09
A98: 46 | B98: 2016-01-11 | D98: GSFC | E98: Buy | F98: 81.00 | H98: 110 | I98: 110.00 | J98: Target Achieved | K98: 29.00 | L98: 35.80% | M98: Successful | N98: 2017-01-10
A99: 47 | B99: 2016-01-13 | D99: SSWL | E99: Buy | F99: 417.50 | H99: 547 | I99: 535.00 | J99: Target Achieved | K99: 129.50 | L99: 31.02% | M99: Successful | N99: 2016-07-27
A100: 48 | B100: 2016-02-08 | D100: Persistent System Ltd | E100: Accu | F100: 650.00 | H100: 800 | I100: 800.00 | J100: Target Achieved | K100: 150.00 | L100: 23.08% | M100: Successful | N100: 2018-02-23
A101: 49 | B101: 2016-03-04 | D101: UPL | E101: Accu | F101: 437.50 | H101: 504.5 | I101: 522.00 | J101: Profit of Rs.67/- | K101: 67.00 | L101: 15.31% | M101: Successful | N101: 2016-04-20
A102: 50 | B102: 2016-03-09 | D102: Ashoka Buildcon Ltd | E102: Accu | F102: 189.50 | H102: 218 | I102: 218.00 | J102: Target Achieved | K102: 28.50 | L102: 15.04% | M102: Successful | N102: 2017-10-26
A103: 51 | B103: 2016-04-11 | D103: PTC INDIA FIN SERV LTD | E103: Accu | F103: 36.5 | H103: 15.85 | I103: 60.00 | J103: Loss of Rs.20.65/- | K103: -20.65 | L103: -56.58% | M103: Unsuccessful | N103: 2019-06-11
A104: 52 | B104: 2016-04-12 | D104: CAMLINFINE $ | E104: Accu | F104: 93.00 | H104: 149 | I104: 140.00 | J104: Profit of Rs 56/- | K104: 56.00 | L104: 60.22% | M104: Successful | N104: 2017-01-05
A105: 53 | B105: 2016-04-12 | D105: Greaves Cotton Ltd. | E105: Accu | F105: 130.00 | H105: 150 | I105: 150-155 | J105: Target Achieved | K105: 20.00 | L105: 15.38% | M105: Successful | N105: 2016-07-13
A106: 54 | B106: 2016-04-13 | D106: DHFL | E106: Accu | F106: 196.00 | H106: 299 | I106: 299.00 | J106: Target Achieved | K106: 103.00 | L106: 52.55% | M106: Successful | N106: 2016-09-07
A107: 55 | B107: 2016-04-13 | D107: Magma | E107: Accu | F107: 88.00 | H107: 103 | I107: 103.00 | J107: Target Achieved | K107: 15.00 | L107: 17.05% | M107: Successful | N107: 2016-06-09
A108: 56 | B108: 2016-05-02 | D108: KEC International ltd $ | E108: Accu | F108: 127.50 | H108: 148 | I108: 148-150 | J108: Target Achieved | K108: =H108-F108 -> 20.50 | L108: =K108/F108 -> 16.08% | M108: Successful | N108: 2016-07-13
A109: 57 | B109: 2016-05-03 | D109: Mindtree | E109: Accu | F109: 675.00 | H109: 815 | I109: 790-800 | J109: Target Achieved | K109: =H109-F109 -> 140.00 | L109: =K109/F109 -> 20.74% | M109: Successful | N109: 2018-02-23
A110: 58 | B110: 2016-06-01 | D110: Atulauto | E110: Accu | F110: 500 | H110: 232.50 | I110: 565-570 | J110: Loss of Rs.267.50 /- | K110: =H110-F110 -> -267.50 | L110: =K110/F110 -> -53.50% | M110: Unsuccessful | N110: 2019-09-27
A111: 59 | B111: 2016-06-06 | D111: TRITURBINE | E111: Accu | F111: 110.00 | H111: 126.5 | I111: 125.00 | J111: Profit of Rs.16.50/- | K111: =H111-F111 -> 16.50 | L111: =K111/F111 -> 15.00% | M111: Successful | N111: 2016-07-01
A112: 60 | B112: 2016-06-17 | D112: Pennar Industries Ltd | E112: Accu | F112: 44.00 | H112: 69.5 | I112: 69.50 | J112: Profit of Rs.25.50/- | K112: =H112-F112 -> 25.50 | L112: =K112/F112 -> 57.95% | M112: Successful | N112: 2017-08-30
A113: 61 | B113: 2016-06-28 | D113: EVEREADY | E113: Accu | F113: 262.50 | H113: 340 | I113: 333.00 | J113: Profit of Rs.77.50/- | K113: 77.50 | L113: 29.52% | M113: Successful | N113: 2017-10-09
A114: 62 | B114: 2016-06-28 | D114: FIEMIND | E114: Accu | F114: 840.00 | H114: 1230 | I114: 1230.00 | J114: Target Achieved | K114: 390.00 | L114: 46.43% | M114: Successful | N114: 2016-10-06
A115: 63 | B115: 2016-07-05 | D115: Bajaj Corp Ltd | E115: Accu | F115: 395 | H115: =(468.5+342.5)/2 -> 405.50 | I115: 510.00 | J115: Profit of Rs.10.50/- | K115: =H115-F115 -> 10.50 | L115: =K115/F115 -> 3% | M115: Neutral | N115: 2019-05-21
A116: 64 | B116: 2016-08-02 | D116: GPPL $ | E116: Buy | F116: =169.5-12.8 -> 156.7 | H116: 77.00 | I116: 198-200 | J116: Loss of Rs.79.7/- | K116: -79.70 | L116: -50.86% | M116: Unsuccessful | N116: 2019-02-26
A117: 65 | B117: 2016-08-04 | D117: WONDERLA HOLIDAYS LTD | E117: Accu | F117: 400 | H117: 305.00 | I117: 475.00 | J117: Loss of Rs.95/- | K117: -95.00 | L117: -23.75% | M117: Unsuccessful | N117: 2019-05-21
A118: 66 | B118: 2016-08-11 | D118: CAMLINFINE | E118: Accu | F118: 86.50 | H118: 130 | I118: 130.00 | J118: Profit of Rs.43.50/- | K118: 43.50 | L118: 50.29% | M118: Successful | N118: 2017-12-22
A119: 67 | B119: 2016-08-18 | D119: GRANULES | E119: Accu | F119: 133.5 | H119: 126.50 | I119: 178.00 | J119: Exit | K119: -7.00 | L119: -5.24% | M119: Unsuccessful | N119: 2016-09-02
A120: 68 | B120: 2016-08-31 | D120: VA TECH WABAG | E120: Accu | F120: 560.00 | H120: 725 | I120: 725.00 | J120: Target Achieved | K120: 165.00 | L120: 29.46% | M120: Successful | N120: 2016-03-27
A121: 69 | B121: 2016-09-01 | D121: SKIPPER LIMITED | E121: Accu | F121: 160.50 | H121: 210 | I121: 210.00 | J121: Target Achieved | K121: 49.50 | L121: 30.84% | M121: Successful | N121: 2017-05-16
A122: 70 | B122: 2016-10-03 | D122: IFBIND | E122: Accu | F122: 430.00 | H122: 596 | I122: 575.00 | J122: Profit of Rs.166/- | K122: 166.00 | L122: 38.60% | M122: Successful | N122: 2017-02-03
A123: 71 | B123: 2016-10-14 | D123: ASIANTILES | E123: Accu | F123: 280.00 | H123: 345 | I123: 345.00 | J123: Target Achieved | K123: =H123-F123 -> 65.00 | L123: =K123/F123 -> 23.21% | M123: Successful | N123: 2017-03-20
A124: 72 | B124: 2016-10-14 | D124: DEEPIND | E124: Accu | F124: 245.00 | H124: 325.5 | I124: 330.00 | J124: Profit of Rs.80.5/- | K124: 80.50 | L124: =K124/F124 -> 32.86% | M124: Successful | N124: 2017-02-03
A125: 73 | B125: 2016-10-17 | D125: DCBBANK | E125: Accu | F125: 125.00 | H125: 160 | I125: 160.00 | J125: Target Achieved | K125: 35.00 | L125: 28.00% | M125: Successful | N125: 2017-03-09
A126: 74 | B126: 2016-10-17 | D126: ORIENTREF | E126: Accu | F126: 114.00 | H126: 145 | I126: 145.00 | J126: Target Achieved | K126: 31.00 | L126: =K126/F126 -> 27.19% | M126: Successful | N126: 2017-05-04
A127: 75 | B127: 2016-10-17 | D127: GANECOS | E127: Accu | F127: 212.00 | H127: 280 | I127: 276.00 | J127: Profit of Rs.68/- | K127: 68.00 | L127: =K127/F127 -> 32.08% | M127: Successful | N127: 2017-05-03
A128: 76 | B128: 2016-11-04 | D128: NBCC | E128: Accu | F128: 155.00 | H128: 210 | I128: 210.00 | J128: Profit of Rs.55/- | K128: 55.00 | L128: =K128/F128 -> 35.48% | M128: Successful | N128: 2017-07-28
A129: 77 | B129: 2016-12-06 | D129: PRECAM | E129: Accu | F129: 150.5 | H129: 72.50 | I129: 174.00 | J129: Loss of Rs.78/- | K129: -78.00 | L129: -51.83% | M129: Unsuccessful | N129: 2018-08-21
A130: 78 | B130: 2016-12-08 | D130: INFRATEL | E130: Accu | F130: 380.00 | H130: 478 | I130: 468.00 | J130: Target Achieved | K130: =H130-F130 -> 98.00 | L130: =K130/F130 -> 25.79% | M130: Successful | N130: 2017-10-17
A131: 79 | B131: 2016-12-30 | D131: GODREJPROP | E131: Accu | F131: 305.00 | H131: 375 | I131: 375.00 | J131: Target Achieved | K131: =H131-F131 -> 70.00 | L131: =K131/F131 -> 22.95% | M131: Successful | N131: 2017-02-02
A132: 80 | B132: 2017-01-04 | D132: DEEPAKNTR | E132: Accu | F132: 99.50 | H132: 158 | I132: 158.00 | J132: Target Achieved | K132: =H132-F132 -> 58.50 | L132: =K132/F132 -> 58.79% | M132: Successful | N132: 2017-06-12
A133: 81 | B133: 2017-01-04 | D133: DEEPAKNTR | E133: Accu | F133: 99.50 | H133: 158 | I133: 158.00 | J133: Target Achieved | K133: 58.50 | L133: 58.79% | M133: Successful | N133: 2017-06-12
A134: 82 | B134: 2017-02-20 | D134: RECLTD | E134: Accu | F134: 140.50 | H134: 220 | I134: 220.00 | J134: Target Achieved | K134: =H134-F134 -> 79.50 | L134: =K134/F134 -> 56.58% | M134: Successful | N134: 2017-05-09
A135: 83 | B135: 2017-02-20 | D135: SUBROS | E135: Accu | F135: 202.50 | H135: 234 | I135: 234.00 | J135: Target Achieved | K135: 31.50 | L135: 15.56% | M135: Successful | N135: 2017-04-11
A136: 84 | B136: 2017-03-24 | D136: VRLLOG | E136: Accu | F136: 300.50 | H136: 417.5 | I136: 420.00 | J136: Profit of Rs.117/- | K136: =H136-F136 -> 117.00 | L136: =K136/F136 -> 38.94% | M136: Successful | N136: 2017-12-01
A137: 85 | B137: 2017-03-24 | D137: FIEMIND | E137: Accu | F137: 850.00 | H137: 1042.5 | I137: 1023.00 | J137: Profit of Rs 192.50/- | K137: 192.50 | L137: 22.65% | M137: Successful | N137: 2017-04-05
A138: 86 | B138: 2017-04-05 | D138: RATNAMANI | E138: Accu | F138: 785.00 | H138: 930 | I138: 920.00 | J138: Profit of Rs.145/- | K138: =H138-F138 -> 145.00 | L138: =K138/F138 -> 18.47% | M138: Successful | N138: 2017-08-29
A139: 87 | B139: 2017-04-06 | D139: ZEEMEDIA | E139: Accu | F139: 40 | H139: 13.10 | I139: 60.00 | J139: Loss of Rs.26.9/- | K139: -26.90 | L139: -67.25% | M139: Unsuccessful | N139: 2018-02-07
A140: 88 | B140: 2017-04-12 | D140: DABUR | E140: Accu | F140: 289.50 | H140: 354 | I140: 360.00 | J140: Profit of Rs.64.5/- | K140: =H140-F140 -> 64.50 | L140: =K140/F140 -> 22.28% | M140: Successful | N140: 2017-11-01
A141: 89 | B141: 2017-04-20 | D141: KPRMILL | E141: Accu | F141: 700.00 | H141: 840 | I141: 840.00 | J141: Profit of Rs.140/- | K141: 140.00 | L141: 20.00% | M141: Successful | N141: 2017-06-07
A142: 90 | B142: 2017-06-01 | D142: ESSELPACK | E142: Accu | F142: 130.00 | H142: 144.25 | I142: 170.00 | J142: Profit of Rs.14.25/- | K142: 14.25 | L142: 10.96% | M142: Successful | N142: 2019-07-29
A143: 91 | B143: 2017-06-15 | D143: KEI | E143: Accu | F143: 214.50 | H143: 262 | I143: 262.00 | J143: Profit of Rs.47.5/- | K143: 47.50 | L143: 22.14% | M143: Successful | N143: 2017-08-30
A144: 92 | B144: 2017-07-17 | D144: MAYURUNIQ | E144: Accu | F144: 370.00 | H144: 447.5 | I144: 450.00 | J144: Target Achieved | K144: 77.50 | L144: 20.95% | M144: Successful | N144: 2017-10-27
A145: 93 | B145: 2017-07-27 | D145: RAMCOCEM | E145: Accu | F145: 657.50 | H145: 825 | I145: 820.00 | J145: Target Achieved | K145: 167.50 | L145: 25.48% | M145: Successful | N145: 2017-12-21
A146: 94 | B146: 2017-08-17 | D146: FINPIPE | E146: Accu | F146: 605.00 | H146: 750 | I146: 750.00 | J146: Profit of Rs.145/- | K146: 145.00 | L146: 23.97% | M146: Successful | N146: 2017-10-19
A147: 95 | B147: 2017-09-01 | D147: SHK | E147: Accu | F147: 255 | H147: 217.25 | I147: 320.00 | J147: Loss of Rs.37.75/- | K147: -37.75 | L147: -15% | M147: Unsuccessful | N147: 2019-07-15
A148: 96 | B148: 2017-09-19 | D148: SKIPPER | E148: Accu | F148: 215.00 | H148: 258 | I148: 258.00 | J148: Target Achieved | K148: 43.00 | L148: 20.00% | M148: Successful | N148: 2017-11-01
A149: 97 | B149: 2017-09-19 | D149: SKIPPER | E149: Accu | F149: 215.00 | H149: 258 | I149: 258.00 | J149: Target Achieved | K149: 43.00 | L149: 20.00% | M149: Successful | N149: 2017-11-01
A150: 98 | B150: 2017-09-20 | D150: CAMLINFINE$ | E150: Accu | F150: 75.00 | H150: 90 | I150: 90.00 | J150: Profit of Rs.15.00/- | K150: =H150-F150 -> 15.00 | L150: =K150/F150 -> 20.00% | M150: Successful | N150: 2017-10-11
A151: 99 | B151: 2017-10-03 | D151: GNA | E151: Accu | F151: 315.00 | H151: 392 | I151: 384.00 | J151: Profit of Rs.77/- | K151: 77.00 | L151: 24.44% | M151: Successful | N151: 2017-10-09
A152: 100 | B152: 2017-10-05 | D152: NOCIL | E152: Accu | F152: 145.00 | H152: 179 | I152: 180.00 | J152: Profit of Rs.34/- | K152: 34.00 | L152: 23.45% | M152: Successful | N152: 2017-10-17
A153: 101 | B153: 2017-10-06 | D153: CENTURYPLY | E153: Accu | F153: 256.00 | H153: 323 | I153: 320.00 | J153: Target Achieved | K153: 67.00 | L153: 26.17% | M153: Successful | N153: 2017-11-28
A154: 102 | B154: 2017-10-09 | D154: EIHOTEL | E154: Accu | F154: 137.50 | H154: 184 | I154: 183.00 | J154: Profit of Rs.46.5/- | K154: 46.50 | L154: 33.82% | M154: Successful | N154: 2018-01-08
A155: 103 | B155: 2017-10-10 | D155: NRBBEARING | E155: Accu | F155: 125.50 | H155: 158 | I155: 155.00 | J155: Profit of Rs.32.5/- | K155: 32.50 | L155: 25.90% | M155: Successful | N155: 2017-11-28
A156: 104 | B156: 2017-10-10 | D156: BOROSIL | E156: Accu | F156: 895.00 | H156: 1122.5 | I156: 1078.00 | J156: Profit of Rs.227.5/- | K156: 227.50 | L156: 25.42% | M156: Successful | N156: 2018-01-17
A157: 105 | B157: 2017-10-12 | D157: CYIENT | E157: Accu | F157: 525.00 | H157: 629 | I157: 629.00 | J157: Target Achieved | K157: 104.00 | L157: 19.81% | M157: Successful | N157: 2018-01-19
A158: 106 | B158: 2017-11-07 | D158: HATSUN | E158: Accu | F158: 740.00 | H158: 892.5 | I158: 900.00 | J158: Profit of Rs.152.5/- | K158: =H158-F158 -> 152.50 | L158: =K158/F158 -> 20.61% | M158: Successful | N158: 2017-11-13
A159: 107 | B159: 2017-12-04 | D159: SANGHIIND | E159: Accu | F159: 118.50 | H159: 143.5 | I159: 145.00 | J159: Profit of Rs.25/- | K159: =H159-F159 -> 25.00 | L159: =K159/F159 -> 21.10% | M159: Successful | N159: 2017-12-28
A160: 108 | B160: 2017-12-21 | D160: KAJARIACER | E160: Accu | F160: 715 | H160: 500.00 | I160: 872.00 | J160: Loss of Rs.215/- | K160: =H160-F160 -> -215.00 | L160: =K160/F160 -> -30.07% | M160: Unsuccessful | N160: 2019-07-24
A161: 109 | B161: 2017-12-29 | D161: GNA | E161: Accu | F161: 435.00 | H161: 542.5 | I161: 539.00 | J161: Target Achieved | K161: 107.50 | L161: 24.71% | M161: Successful | N161: 2018-04-16
A162: 110 | B162: 2017-12-29 | D162: ZENSARTECH | E162: Accu | F162: 885.00 | H162: 1090 | I162: 1084.00 | J162: Target Achieved | K162: 205.00 | L162: 23.16% | M162: Successful | N162: 2018-04-23
A163: 111 | B163: 2018-04-02 | D163: EVERESTIND | E163: Accu | F163: 478.50 | H163: 442 | I163: 613.00 | J163: Loss of Rs.36.50 /- | K163: =H163-F163 -> -36.50 | L163: =K163/F163 -> -7.63% | M163: Unsuccessful | N163: 2019-10-24
A164: 112 | B164: 2018-04-04 | D164: GPPL$ | E164: Accu | F164: =141.5-7.3 -> 134.2 | H164: 77.00 | I164: 180.00 | J164: Loss of Rs.57.2/- | K164: =H164-F164 -> -57.20 | L164: =K164/F164 -> -42.62% | M164: Unsuccessful | N164: 2019-02-26
A165: 113 | B165: 2018-04-19 | D165: MANPASAND | E165: Accu | F165: 430 | H165: 220.00 | I165: 537.00 | J165: Loss of Rs.210/- | K165: =H165-F165 -> -210.00 | L165: =K165/F165 -> -48.84% | M165: Unsuccessful | N165: 2018-06-01
A166: 114 | B166: 2018-04-30 | D166: HEIDELBERG | E166: Accu | F166: 153.50 | H166: 196.00 | I166: 196.00 | J166: Profit of Rs.42.50/- | K166: =H166-F166 -> 42.50 | L166: =K166/F166 -> 28% | M166: Successful | N166: 2019-05-20
A167: 115 | B167: 2018-07-25 | D167: ZEEMEDIA | E167: Accu | F167: 27.5 | H167: 13.10 | I167: 60.00 | J167: Loss of Rs.14.40/- | K167: -14.40 | L167: -52.36% | M167: Unsuccessful | N167: 2018-02-07
A168: 116 | B168: 2018-08-06 | D168: GABRIEL | E168: Accu | F168: 148.5 | H168: 102 | I168: 182.00 | J168: Loss of Rs.46.50/- | K168: =H168-F168 -> -46.50 | L168: =K168/F168 -> -31.31% | M168: Unsuccessful | N168: 2019-07-15
A169: 117 | B169: 2018-08-23 | D169: INDIANHUME | E169: Accu | F169: 285 | H169: 355 | I169: 364.00 | J169: Profit of Rs.70/- | K169: 70.00 | L169: 24.56% | M169: Successful | N169: 2018-12-21
A170: 118 | B170: 2018-08-29 | D170: GRINDWELL | E170: Accu | F170: 525 | H170: 585 | I170: 635.00 | J170: Profit of Rs.60- | K170: =H170-F170 -> 60.00 | L170: =K170/F170 -> 11.43% | M170: Successful | N170: 2019-07-16
A171: 119 | B171: 2018-10-22 | D171: FINPIPE | E171: Accu | F171: 475 | H171: 574 | I171: 570.00 | J171: Target Achieved | K171: 99.00 | L171: 20.84% | M171: Successful | N171: 2018-10-30
A172: 120 | B172: 2018-10-24 | D172: GULFOILLUB | E172: Accu | F172: 707.5 | H172: 872 | I172: 872.00 | J172: Target Achieved | K172: 164.50 | L172: 23.25% | M172: Successful | N172: 2019-01-17
A173: 121 | B173: 2018-10-25 | D173: DBCORP | E173: Accu | F173: 162 | H173: 204 | I173: 209.00 | J173: Profit of Rs.42/- | K173: 42.00 | L173: 25.93% | M173: Successful | N173: 2019-03-15
A174: 122 | B174: 2018-10-26 | D174: RITES | E174: Accu | F174: 240 | H174: 297 | I174: 297.00 | J174: Target Achieved | K174: 57.00 | L174: 23.75% | M174: Successful | N174: 2018-11-13
A175: 123 | B175: 2018-12-05 | D175: BRIGADE | E175: Accu | F175: 202.5 | H175: 255 | I175: 252.00 | J175: Target Achieved | K175: 52.50 | L175: 25.93% | M175: Successful | N175: 2019-03-18
A176: 124 | B176: 2018-12-31 | D176: JKCEMENT | E176: Accu | F176: 710 | H176: 866 | I176: 866.00 | J176: Target Achieved | K176: 156.00 | L176: 21.97% | M176: Successful | N176: 2019-03-29
A177: 125 | B177: 2019-02-26 | D177: MARICO | E177: Accu | F177: 337.25 | H177: 398.5 | I177: 411.00 | J177: Profit of Rs.61.25/- | K177: 61.25 | L177: 18.16% | M177: Successful | N177: 2019-10-22
A178: 126 | B178: 2019-04-04 | D178: ITDCEM | E178: Accu | F178: 130 | H178: 65 | I178: 158.00 | J178: Loss of Rs.65 /- | K178: -65.00 | L178: -50.00% | M178: Unsuccessful | N178: 2019-09-18
A179: 127 | B179: 2017-10-09 | D179: RECLTD | E179: Accu | F179: 141.5 | H179: 183.50 | I179: 210.00 | J179: Part Profit of Rs.42/- | K179: 42.00 | L179: 30% | M179: Successful | N179: 2017-11-03 | R179: V
A180: 128 | B180: 2017-12-05 | D180: ALLCARGO | E180: Accu | F180: 172.00 | H180: 155.25 | I180: 230.00 | J180: Loss of Rs.16.75/- | K180: =H180-F180 -> -16.75 | L180: =K180/F180 -> -9.74% | M180: Unsuccessful | N180: 2019-11-18 | R180: V
A181: 129 | B181: 2018-10-25 | D181: GODREJCP | E181: Accu | F181: 698.50 | H181: 850.00 | I181: 890.00 | J181: Part Profit of Rs.151.50/- | K181: 151.50 | L181: 22% | M181: Successful | N181: 2018-12-19 | R181: V
A182: 130 | B182: 2017-05-22 | D182: GREAVESCOT | E182: Accu | F182: 127.6 | H182: 138.00 | I182: 190.00 | J182: Profit of Rs.10.40 | K182: 10.40 | L182: 8% | M182: Successful | N182: 2019-11-05 | R182: K
A183: 131 | B183: 2018-02-27 | D183: MOLDTKPAC | E183: Accu | F183: 317.00 | I183: 398.00 | M183: Open | R183: K
A184: 132 | B184: 2018-03-05 | D184: LICHSGFIN | E184: Accu | F184: =510-14.4 -> 495.60 | H184: 350 | I184: 672.00 | J184: Loss of Rs.145.60/- | K184: =H184-F184 -> -145.60 | L184: =K184/F184 -> -29.38% | M184: Unsuccessful | N184: 2020-02-26 | R184: K
A185: 133 | B185: 2018-05-17 | D185: PHILIPCARB | E185: Accu | F185: 230.30 | H185: 102.5 | I185: 348.00 | J185: Loss of Rs.127.80/- | K185: =H185-F185 -> -127.80 | L185: =K185/F185 -> -55.49% | M185: Unsuccessful | N185: 2020-03-06 | R185: V
A186: 134 | B186: 2018-06-07 | D186: KEC | E186: Accu | F186: =342.5-5.1 -> 337.40 | I186: 439.00 | M186: Open | R186: K
A187: 135 | B187: 2018-07-04 | D187: ASHOKLEY | E187: Accu | F187: =127.5-5.53 -> 121.97 | I187: 170.00 | M187: Open | R187: K
A188: 136 | B188: 2018-07-13 | D188: FCONSUMER | E188: Accu | F188: 46.50 | H188: 17 | I188: 59.00 | J188: Loss of Rs.29.50/- | K188: =H188-F188 -> -29.50 | L188: =K188/F188 -> -63.44% | M188: Unsuccessful | N188: 2020-02-26 | R188: V
A189: 137 | B189: 2018-10-23 | D189: JKPAPER | E189: Accu | F189: 156.50 | I189: 191.00 | M189: Open | R189: V
A190: 138 | B190: 2018-12-05 | D190: CCL | E190: Accu | F190: 259.50 | I190: 321.00 | M190: Open | R190: K
A191: 139 | B191: 2018-12-05 | D191: VARROC | E191: Accu | F191: 715 | H191: 445 | I191: 840.00 | J191: Loss of Rs.270/- | K191: =H191-F191 -> -270.00 | L191: =K191/F191 -> -37.76% | M191: Unsuccessful | N191: 2019-12-01 | R191: V
A192: 140 | B192: 2019-01-04 | D192: MGL | E192: Accu | F192: 875 | H192: 1165 | I192: 1185.00 | J192: Profit of Rs.290/- | K192: 290.00 | L192: 33.14% | M192: Successful | N192: 2020-01-17 | R192: V
A193: 141 | B193: 2019-04-04 | D193: COCHINSHIP | E193: Accu | F193: =387-14.63 -> 372.37 | H193: 490 | I193: 490.00 | J193: Target Achieved | K193: 117.63 | L193: 31.59% | M193: Successful | N193: 2020-01-20 | R193: V
A194: 142 | B194: 2019-04-23 | D194: MAHINDCIE | E194: Buy | F194: 220 | H194: 127.5 | I194: 284.00 | J194: Loss of Rs.92.50/- | K194: -92.50 | L194: -42.05% | M194: Unsuccessful | N194: 2020-03-06 | R194: V
A195: 143 | B195: 2019-06-06 | D195: RADICO | E195: Buy | F195: 332.8 | H195: 405 | I195: 419.00 | J195: Profit of Rs.72.20/- | K195: =H195-F195 -> 72.20 | L195: =K195/F195 -> 21.69% | M195: Successful | N195: 2020-01-30 | R195: V
A196: 144 | B196: 2019-06-25 | D196: M&MFIN | E196: Accu | F196: 386 | H196: 395.00 | I196: 452.00 | J196: Profit of Rs.9/- | K196: =H196-F196 -> 9.00 | L196: =K196/F196 -> 2% | M196: Neutral | N196: 2020-02-07 | R196: V
A197: 145 | B197: 2019-08-30 | D197: INDHOTEL | E197: Accu | F197: 135-140 | I197: 190.00 | M197: Open | R197: V
A198: 146 | B198: 2019-09-23 | D198: KNRCON | E198: Accu | F198: 235 | H198: 295 | I198: 296.00 | J198: Profit of Rs.60/- | K198: =H198-F198 -> 60.00 | L198: =K198/F198 -> 25.53% | M198: Successful | N198: 2020-01-14 | R198: V
A199: 147 | B199: 2019-10-14 | D199: KEC$ | E199: Accu | F199: 277.5 | H199: 333 | I199: 333.00 | J199: Profit of Rs.55.50/- | K199: =H199-F199 -> 55.50 | L199: =K199/F199 -> 20.00% | M199: Successful | N199: 2020-01-16 | R199: K
A200: 148 | B200: 2019-10-14 | D200: MGL$ | E200: Accu | F200: 930 | H200: 1165 | I200: 1200.00 | J200: Profit of Rs.235/- | K200: =H200-F200 -> 235.00 | L200: =K200/F200 -> 25.27% | M200: Successful | N200: 2020-01-17 | R200: K
A201: 149 | B201: 2019-10-15 | D201: JKPAPER$ | E201: Accu | F201: 111.00 | I201: 141.00 | M201: Open | R201: V
A202: 150 | B202: 2019-10-15 | D202: RADICO$ | E202: Accu | F202: 296.00 | H202: 370 | I202: 370.00 | J202: Target Achieved | K202: =H202-F202 -> 74.00 | L202: =K202/F202 -> 25.00% | M202: Successful | N202: 2020-01-23 | R202: K
A203: 151 | B203: 2019-10-16 | D203: MOLDTKPAC$ | E203: Accu | F203: 298-302 | I203: 344.00 | M203: Open | R203: V
A204: 152 | B204: 2020-01-02 | D204: PSPPROJECT | E204: Accu | F204: 490-500 | I204: 590.00 | M204: Open | R204: K
B206: Re-initiated $

Sheet Sheet2 (hidden)
A1: SYMBOL | B1: SERIES | C1: OPEN | D1: HIGH | E1: LOW | F1: CLOSE | G1: LAST | H1: PREVCLOSE | I1: TOTTRDQTY | J1: TOTTRDVAL | K1: TIMESTAMP | L1: TOTALTRADES | M1: ISIN | N1: ISIN
A2: 20MICRONS | B2: EQ | C2: 26.2 | D2: 26.2 | E2: 24.15 | F2: 24.55 | G2: 24.5 | H2: 25.55 | I2: 27658 | J2: 699609.35 | K2: 2020-04-01 | L2: 378 | M2: INE144J01027
A3: 21STCENMGM | B3: EQ | C3: 10.6 | D3: 10.65 | E3: 10.6 | F3: 10.65 | G3: 10.65 | H3: 10.8 | I3: 110 | J3: 1166.5 | K3: 2020-04-01 | L3: 3 | M3: INE253B01015
A4: 3IINFOTECH | B4: EQ | C4: 1.35 | D4: 1.35 | E4: 1.25 | F4: 1.25 | G4: 1.3 | H4: 1.3 | I4: 2388606 | J4: 3080938 | K4: 2020-04-01 | L4: 766 | M4: INE748C01020
A5: 3MINDIA | B5: EQ | C5: 19080.05 | D5: 19080.05 | E5: 18100 | F5: 18469.55 | G5: 18350 | H5: 18827.95 | I5: 2822 | J5: 52061227.2 | K5: 2020-04-01 | L5: 1802 | M5: INE470A01017
A6: 3PLAND | B6: EQ | C6: 3.55 | D6: 3.6 | E6: 3.4 | F6: 3.4 | G6: 3.4 | H6: 3.55 | I6: 1096 | J6: 3763.75 | K6: 2020-04-01 | L6: 7 | M6: INE105C01023
A7: 5PAISA | B7: EQ | C7: 103.05 | D7: 135 | E7: 103 | F7: 113.55 | G7: 115 | H7: 113.15 | I7: 6871 | J7: 791638.05 | K7: 2020-04-01 | L7: 337 | M7: INE618L01018
A8: 63MOONS | B8: EQ | C8: 46.05 | D8: 48 | E8: 45.85 | F8: 46.35 | G8: 47.05 | H8: 46.05 | I8: 36603 | J8: 1710661.45 | K8: 2020-04-01 | L8: 2279 | M8: INE111B01023
A9: A2ZINFRA | B9: EQ | C9: 3.2 | D9: 3.25 | E9: 3.05 | F9: 3.1 | G9: 3.1 | H9: 3.15 | I9: 106932 | J9: 338243.9 | K9: 2020-04-01 | L9: 210 | M9: INE619I01012
A10: AARTIDRUGS | B10: EQ | C10: 508 | D10: 539.45 | E10: 500 | F10: 517.5 | G10: 520 | H10: 502.3 | I10: 33444 | J10: 17601352.8 | K10: 2020-04-01 | L10: 2798 | M10: INE767A01016
A11: AARTIIND | B11: EQ | C11: 778 | D11: 819 | E11: 768.05 | F11: 795.8 | G11: 778.2 | H11: 766.75 | I11: 453572 | J11: 362395276.2 | K11: 2020-04-01 | L11: 25749 | M11: INE769A01020
A12: AARVEEDEN | B12: EQ | C12: 7.8 | D12: 7.95 | E12: 7.2 | F12: 7.65 | G12: 7.95 | H12: 7.95 | I12: 3380 | J12: 26040.2 | K12: 2020-04-01 | L12: 38 | M12: INE273D01019
A13: AAVAS | B13: EQ | C13: 1177.55 | D13: 1280 | E13: 1109.6 | F13: 1192 | G13: 1128 | H13: 1188.85 | I13: 158743 | J13: 194788417.2 | K13: 2020-04-01 | L13: 5660 | M13: INE216P01012
A14: ABAN | B14: EQ | C14: 13.4 | D14: 14.35 | E14: 13.35 | F14: 14.05 | G14: 14.05 | H14: 14 | I14: 67450 | J14: 943285.35 | K14: 2020-04-01 | L14: 596 | M14: INE421A01028
A15: ABB | B15: EQ | C15: 935.4 | D15: 949 | E15: 904.9 | F15: 929.65 | G15: 914.3 | H15: 935.4 | I15: 14021 | J15: 12915379.3 | K15: 2020-04-01 | L15: 1785 | M15: INE117A01022
A16: ABBOTINDIA | B16: EQ | C16: 15525.35 | D16: 15998 | E16: 15202 | F16: 15613.6 | G16: 15500 | H16: 15451.1 | I16: 17590 | J16: 273596329.5 | K16: 2020-04-01 | L16: 7346 | M16: INE358A01014
A17: ABCAPITAL | B17: EQ | C17: 42.35 | D17: 43.75 | E17: 41.6 | F17: 42.9 | G17: 43.05 | H17: 42.15 | I17: 853443 | J17: 36552706.8 | K17: 2020-04-01 | L17: 6571 | M17: INE674K01013
A18: ABFRL | B18: EQ | C18: 153 | D18: 154.35 | E18: 147.05 | F18: 149.55 | G18: 148.55 | H18: 152.9 | I18: 1012321 | J18: 151752432.2 | K18: 2020-04-01 | L18: 14675 | M18: INE647O01011
A19: ABMINTLTD | B19: BE | C19: 13.45 | D19: 13.45 | E19: 13.45 | F19: 13.45 | G19: 13.45 | H19: 13.45 | I19: 1 | J19: 13.45 | K19: 2020-04-01 | L19: 1 | M19: INE251C01017
A20: ABSLBANETF | B20: EQ | C20: 210 | D20: 224 | E20: 210 | F20: 223.62 | G20: 224 | H20: 235 | I20: 104 | J20: 23243 | K20: 2020-04-01 | L20: 6 | M20: INF209KB1O58
A21: ABSLNN50ET | B21: EQ | C21: 228 | D21: 243.9 | E21: 210.75 | F21: 236.74 | G21: 237 | H21: 228 | I21: 85 | J21: 19851.35 | K21: 2020-04-01 | L21: 15 | M21: INF209KB1B87
A22: ACC | B22: EQ | C22: 964.8 | D22: 969 | E22: 948 | F22: 963.45 | G22: 968 | H22: 968.5 | I22: 1020895 | J22: 980793277.2 | K22: 2020-04-01 | L22: 41076 | M22: INE012A01025
A23: ACCELYA | B23: EQ | C23: 853.2 | D23: 888.95 | E23: 846.15 | F23: 860.3 | G23: 859.05 | H23: 853 | I23: 92385 | J23: 79214400.85 | K23: 2020-04-01 | L23: 1488 | M23: INE793A01012
A24: ACE | B24: EQ | C24: 33.2 | D24: 35.5 | E24: 32.5 | F24: 32.9 | G24: 32.9 | H24: 34.25 | I24: 225922 | J24: 7536417.35 | K24: 2020-04-01 | L24: 1370 | M24: INE731H01025
A25: ADANIENT | B25: EQ | C25: 138.95 | D25: 138.95 | E25: 131.8 | F25: 133.95 | G25: 133.3 | H25: 137.6 | I25: 1997608 | J25: 269388582.9 | K25: 2020-04-01 | L25: 15540 | M25: INE423A01024
A26: ADANIGAS | B26: EQ | C26: 86.9 | D26: 91.2 | E26: 85 | F26: 89 | G26: 88.85 | H26: 86.35 | I26: 922474 | J26: 81848639.2 | K26: 2020-04-01 | L26: 9253 | M26: INE399L01023
A27: ADANIGREEN | B27: EQ | C27: 155.5 | D27: 159 | E27: 151 | F27: 152.9 | G27: 152.8 | H27: 153.25 | I27: 226224 | J27: 34782558.3 | K27: 2020-04-01 | L27: 3792 | M27: INE364U01010
A28: ADANIPORTS | B28: EQ | C28: 246.05 | D28: 247.8 | E28: 235.05 | F28: 244.8 | G28: 246.1 | H28: 251.3 | I28: 4034211 | J28: 970746820.2 | K28: 2020-04-01 | L28: 46902 | M28: INE742F01042
A29: ADANIPOWER | B29: EQ | C29: 27.75 | D29: 27.9 | E29: 26.55 | F29: 26.8 | G29: 26.65 | H29: 27.75 | I29: 5854439 | J29: 157868613.2 | K29: 2020-04-01 | L29: 11494 | M29: INE814H01011
A30: ADANITRANS | B30: EQ | C30: 190.1 | D30: 193.9 | E30: 185 | F30: 189.4 | G30: 191.9 | H30: 189.05 | I30: 34480 | J30: 6520303.55 | K30: 2020-04-01 | L30: 1312 | M30: INE931S01010
A31: ADFFOODS | B31: EQ | C31: 170 | D31: 176.8 | E31: 167.5 | F31: 173.65 | G31: 176 | H31: 170 | I31: 57984 | J31: 10040394.15 | K31: 2020-04-01 | L31: 1311 | M31: INE982B01019
A32: ADHUNIKIND | B32: EQ | C32: 12.8 | D32: 12.85 | E32: 11.7 | F32: 11.85 | G32: 11.7 | H32: 12.3 | I32: 59113 | J32: 700098.8 | K32: 2020-04-01 | L32: 200 | M32: INE452L01012
A33: ADLABS | B33: EQ | C33: 2.55 | D33: 2.55 | E33: 2.4 | F33: 2.55 | G33: 2.55 | H33: 2.45 | I33: 51113 | J33: 127256.1 | K33: 2020-04-01 | L33: 189 | M33: INE172N01012
A34: ADORWELD | B34: EQ | C34: 190.85 | D34: 190.85 | E34: 176.1 | F34: 183.1 | G34: 186 | H34: 185.4 | I34: 2021 | J34: 368883.5 | K34: 2020-04-01 | L34: 231 | M34: INE045A01017
A35: ADROITINFO | B35: EQ | C35: 6.1 | D35: 6.1 | E35: 5.6 | F35: 5.6 | G35: 5.6 | H35: 5.85 | I35: 80 | J35: 450.5 | K35: 2020-04-01 | L35: 3 | M35: INE737B01033
A36: ADSL | B36: EQ | C36: 13.35 | D36: 13.35 | E36: 12.45 | F36: 12.9 | G36: 12.95 | H36: 12.8 | I36: 20849 | J36: 268092.25 | K36: 2020-04-01 | L36: 114 | M36: INE102I01027
A37: ADVANIHOTR | B37: EQ | C37: 30 | D37: 31.1 | E37: 29.5 | F37: 29.9 | G37: 29.5 | H37: 30.1 | I37: 4792 | J37: 143934.1 | K37: 2020-04-01 | L37: 238 | M37: INE199C01026
A38: ADVENZYMES | B38: EQ | C38: 144.3 | D38: 145.8 | E38: 135.6 | F38: 138.35 | G38: 138.9 | H38: 142.5 | I38: 78737 | J38: 10934228.05 | K38: 2020-04-01 | L38: 2091 | M38: INE837H01020
A39: AEGISCHEM | B39: EQ | C39: 139.45 | D39: 147.75 | E39: 130.6 | F39: 133.35 | G39: 133.65 | H39: 139.45 | I39: 197048 | J39: 26681342.95 | K39: 2020-04-01 | L39: 5544 | M39: INE208C01025
A40: AFFLE | B40: BE | C40: 1029.45 | D40: 1029.45 | E40: 965 | F40: 979.55 | G40: 972.6 | H40: 1005.45 | I40: 36599 | J40: 35883379 | K40: 2020-04-01 | L40: 3081 | M40: INE00WC01019
A41: AGARIND | B41: EQ | C41: 45.75 | D41: 46.7 | E41: 45 | F41: 45.6 | G41: 46 | H41: 44.45 | I41: 5352 | J41: 245384.1 | K41: 2020-04-01 | L41: 150 | M41: INE204E01012
A42: AGCNET | B42: BE | C42: 216 | D42: 238 | E42: 215.45 | F42: 225 | G42: 238 | H42: 226.75 | I42: 9883 | J42: 2160114.75 | K42: 2020-04-01 | L42: 60 | M42: INE676A01019
A43: AGRITECH | B43: EQ | C43: 20.8 | D43: 20.8 | E43: 20.8 | F43: 20.8 | G43: 20.8 | H43: 19.85 | I43: 946 | J43: 19676.8 | K43: 2020-04-01 | L43: 16 | M43: INE449G01018
A44: AGROPHOS | B44: EQ | C44: 5.7 | D44: 5.95 | E44: 5.45 | F44: 5.45 | G44: 5.45 | H44: 5.7 | I44: 45892 | J44: 254406.2 | K44: 2020-04-01 | L44: 298 | M44: INE740V01019
A45: AHLEAST | B45: EQ | C45: 134.65 | D45: 134.95 | E45: 127 | F45: 128.75 | G45: 130 | H45: 129 | I45: 4920 | J45: 635874.3 | K45: 2020-04-01 | L45: 79 | M45: INE926K01017
A46: AHLUCONT | B46: EQ | C46: 171.6 | D46: 179.85 | E46: 166.05 | F46: 169.85 | G46: 169.1 | H46: 171.6 | I46: 1826 | J46: 314359.4 | K46: 2020-04-01 | L46: 144 | M46: INE758C01029
A47: AHLWEST | B47: EQ | C47: 295.05 | D47: 295.05 | E47: 270 | F47: 270.85 | G47: 270 | H47: 281.95 | I47: 495 | J47: 137413.95 | K47: 2020-04-01 | L47: 191 | M47: INE915K01010
A48: AIAENG | B48: EQ | C48: 1393.25 | D48: 1398.3 | E48: 1296 | F48: 1319.1 | G48: 1311 | H48: 1393.25 | I48: 18714 | J48: 24965810.45 | K48: 2020-04-01 | L48: 3885 | M48: INE212H01026
A49: AIONJSW | B49: EQ | C49: 9.25 | D49: 9.65 | E49: 9.25 | F49: 9.65 | G49: 9.65 | H49: 9.2 | I49: 20163 | J49: 192173.1 | K49: 2020-04-01 | L49: 60 | M49: INE743C01021
A50: AIRAN | B50: EQ | C50: 10.1 | D50: 10.1 | E50: 9.5 | F50: 9.5 | G50: 9.5 | H50: 9.45 | I50: 2854 | J50: 27343.35 | K50: 2020-04-01 | L50: 28 | M50: INE645W01026
A51: AJANTPHARM | B51: EQ | C51: 1380 | D51: 1384.95 | E51: 1331 | F51: 1366.05 | G51: 1370 | H51: 1366.3 | I51: 42023 | J51: 56867821.75 | K51: 2020-04-01 | L51: 3279 | M51: INE031B01049
A52: AJMERA | B52: EQ | C52: 63.8 | D52: 65.55 | E52: 59.2 | F52: 64 | G52: 63.4 | H52: 64.7 | I52: 7025 | J52: 445177 | K52: 2020-04-01 | L52: 294 | M52: INE298G01027
A53: AKSHARCHEM | B53: EQ | C53: 152 | D53: 158.05 | E53: 151.15 | F53: 151.7 | G53: 151.6 | H53: 151.7 | I53: 2920 | J53: 450540.05 | K53: 2020-04-01 | L53: 170 | M53: INE542B01011
A54: AKSHOPTFBR | B54: EQ | C54: 3.15 | D54: 3.15 | E54: 3.05 | F54: 3.15 | G54: 3.15 | H54: 3 | I54: 45787 | J54: 144058.25 | K54: 2020-04-01 | L54: 78 | M54: INE523B01011
A55: AKZOINDIA | B55: EQ | C55: 2205 | D55: 2205 | E55: 2100 | F55: 2180.05 | G55: 2179 | H55: 2213.05 | I55: 9785 | J55: 21096321.05 | K55: 2020-04-01 | L55: 2508 | M55: INE133A01011
A56: ALANKIT | B56: EQ | C56: 11.15 | D56: 11.2 | E56: 10.6 | F56: 11.2 | G56: 11.2 | H56: 10.7 | I56: 37189 | J56: 412237.45 | K56: 2020-04-01 | L56: 276 | M56: INE914E01040
A57: ALBERTDAVD | B57: EQ | C57: 320.75 | D57: 324.8 | E57: 311 | F57: 313.7 | G57: 312.8 | H57: 318.55 | I57: 1756 | J57: 554328.25 | K57: 2020-04-01 | L57: 185 | M57: INE155C01010
A58: ALCHEM | B58: BE | C58: 1.25 | D58: 1.25 | E58: 1.15 | F58: 1.25 | G58: 1.25 | H58: 1.2 | I58: 7460 | J58: 9308.9 | K58: 2020-04-01 | L58: 17 | M58: INE964B01033
A59: ALEMBICLTD | B59: EQ | C59: 35.5 | D59: 37 | E59: 35.1 | F59: 36.4 | G59: 36.5 | H59: 35.35 | I59: 47060 | J59: 1694004.1 | K59: 2020-04-01 | L59: 1237 | M59: INE426A01027
A60: ALICON | B60: EQ | C60: 180.85 | D60: 184.4 | E60: 175.1 | F60: 180.85 | G60: 177.2 | H60: 176.1 | I60: 1286 | J60: 231919.75 | K60: 2020-04-01 | L60: 109 | M60: INE062D01024
A61: ALKALI | B61: EQ | C61: 25.1 | D61: 26.5 | E61: 24.45 | F61: 25.95 | G61: 26.4 | H61: 25.1 | I61: 1347 | J61: 34143.2 | K61: 2020-04-01 | L61: 66 | M61: INE773I01017
A62: ALKEM | B62: EQ | C62: 2364.95 | D62: 2364.95 | E62: 2250.45 | F62: 2270.05 | G62: 2268.95 | H62: 2325.85 | I62: 43849 | J62: 101314066.4 | K62: 2020-04-01 | L62: 12200 | M62: INE540L01014
A63: ALKYLAMINE | B63: EQ | C63: 1245 | D63: 1245 | E63: 1109.55 | F63: 1135.35 | G63: 1155 | H63: 1203.3 | I63: 18313 | J63: 21542365.05 | K63: 2020-04-01 | L63: 1825 | M63: INE150B01021
A64: ALLCARGO | B64: EQ | C64: 59 | D64: 60 | E64: 57.5 | F64: 59.45 | G64: 59.2 | H64: 58.45 | I64: 83489 | J64: 4943603.65 | K64: 2020-04-01 | L64: 1365 | M64: INE418H01029
A65: ALLSEC | B65: EQ | C65: 115 | D65: 121.25 | E65: 114.95 | F65: 118.15 | G65: 121.25 | H65: 115.5 | I65: 1847 | J65: 216352.7 | K65: 2020-04-01 | L65: 35 | M65: INE835G01018
A66: ALMONDZ | B66: EQ | C66: 15.95 | D66: 15.95 | E66: 15.95 | F66: 15.95 | G66: 15.95 | H66: 15.2 | I66: 10 | J66: 159.5 | K66: 2020-04-01 | L66: 1 | M66: INE326B01027
A67: ALOKINDS | B67: EQ | C67: 3.8 | D67: 4.1 | E67: 3.8 | F67: 4.1 | G67: 4.1 | H67: 3.95 | I67: 25847805 | J67: 103603026 | K67: 2020-04-01 | L67: 8631 | M67: INE270A01029
A68: ALPA | B68: EQ | C68: 15.2 | D68: 15.2 | E68: 13.55 | F68: 14.1 | G68: 14 | H68: 13.85 | I68: 25684 | J68: 361060.35 | K68: 2020-04-01 | L68: 190 | M68: INE385I01010
A69: ALPHAGEO | B69: EQ | C69: 123.85 | D69: 124.35 | E69: 120.9 | F69: 122.6 | G69: 121 | H69: 124.85 | I69: 11725 | J69: 1436267.45 | K69: 2020-04-01 | L69: 450 | M69: INE137C01018
A70: ALPSINDUS | B70: EQ | C70: 0.8 | D70: 0.8 | E70: 0.7 | F70: 0.75 | G70: 0.75 | H70: 0.75 | I70: 23153 | J70: 17189.35 | K70: 2020-04-01 | L70: 53 | M70: INE093B01015
A71: AMARAJABAT | B71: EQ | C71: 472.05 | D71: 494 | E71: 463 | F71: 477.8 | G71: 477 | H71: 478.05 | I71: 1220932 | J71: 585319695.4 | K71: 2020-04-01 | L71: 38227 | M71: INE885A01032
A72: AMBER | B72: EQ | C72: 1228 | D72: 1348 | E72: 1228 | F72: 1267.9 | G72: 1263.6 | H72: 1230.45 | I72: 193052 | J72: 248319506.5 | K72: 2020-04-01 | L72: 21045 | M72: INE371P01015
A73: AMBIKCO | B73: EQ | C73: 537.9 | D73: 549 | E73: 515.1 | F73: 527.25 | G73: 532 | H73: 527.95 | I73: 3507 | J73: 1839785.05 | K73: 2020-04-01 | L73: 432 | M73: INE540G01014
A74: AMBUJACEM | B74: EQ | C74: 155.4 | D74: 158.4 | E74: 150.7 | F74: 156.65 | G74: 158.2 | H74: 155.7 | I74: 2690175 | J74: 415933322.4 | K74: 2020-04-01 | L74: 28992 | M74: INE079A01024
A75: AMDIND | B75: EQ | C75: 10.55 | D75: 11 | E75: 10 | F75: 10.25 | G75: 10.15 | H75: 10.55 | I75: 2459 | J75: 25919.35 | K75: 2020-04-01 | L75: 22 | M75: INE005I01014
A76: AMJLAND | B76: EQ | C76: 14.15 | D76: 15.65 | E76: 14.15 | F76: 14.6 | G76: 15 | H76: 14.5 | I76: 2430 | J76: 35080.3 | K76: 2020-04-01 | L76: 19 | M76: INE606A01024
A77: AMRUTANJAN | B77: EQ | C77: 333 | D77: 336.05 | E77: 318 | F77: 321.35 | G77: 322.95 | H77: 329.95 | I77: 25096 | J77: 8192672 | K77: 2020-04-01 | L77: 1220 | M77: INE098F01031
A78: ANANTRAJ | B78: EQ | C78: 19.6 | D78: 19.9 | E78: 19 | F78: 19.75 | G78: 19.9 | H78: 19.8 | I78: 98396 | J78: 1927439.15 | K78: 2020-04-01 | L78: 490 | M78: INE242C01024
A79: ANDHRACEMT | B79: EQ | C79: 1.6 | D79: 1.7 | E79: 1.55 | F79: 1.65 | G79: 1.65 | H79: 1.6 | I79: 123906 | J79: 199514.35 | K79: 2020-04-01 | L79: 145 | M79: INE666E01012
A80: ANDHRAPAP | B80: EQ | C80: 138.25 | D80: 142.75 | E80: 134.55 | F80: 137 | G80: 138 | H80: 141.6 | I80: 7159 | J80: 982935.3 | K80: 2020-04-01 | L80: 676 | M80: INE435A01028
A81: ANDHRSUGAR | B81: EQ | C81: 185.9 | D81: 185.9 | E81: 178 | F81: 185.9 | G81: 185.9 | H81: 177.05 | I81: 25239 | J81: 4683932.35 | K81: 2020-04-01 | L81: 436 | M81: INE715B01013
A82: ANIKINDS | B82: EQ | C82: 6.55 | D82: 6.65 | E82: 6.25 | F82: 6.6 | G82: 6.6 | H82: 6.55 | I82: 689 | J82: 4477.55 | K82: 2020-04-01 | L82: 21 | M82: INE087B01017
A83: ANKITMETAL | B83: EQ | C83: 0.35 | D83: 0.4 | E83: 0.35 | F83: 0.4 | G83: 0.4 | H83: 0.4 | I83: 30979 | J83: 11506.95 | K83: 2020-04-01 | L83: 18 | M83: INE106I01010
A84: ANSALAPI | B84: EQ | C84: 3.55 | D84: 3.6 | E84: 3.4 | F84: 3.6 | G84: 3.6 | H84: 3.55 | I84: 11330 | J84: 39755.8 | K84: 2020-04-01 | L84: 50 | M84: INE436A01026
A85: ANSALHSG | B85: EQ | C85: 2.85 | D85: 2.9 | E85: 2.8 | F85: 2.9 | G85: 2.9 | H85: 2.8 | I85: 6730 | J85: 19376.45 | K85: 2020-04-01 | L85: 26 | M85: INE880B01015
A86: ANUP | B86: EQ | C86: 320 | D86: 329.95 | E86: 309.7 | F86: 314.85 | G86: 312 | H86: 325.95 | I86: 6439 | J86: 2018170.1 | K86: 2020-04-01 | L86: 196 | M86: INE294Z01018
A87: APARINDS | B87: EQ | C87: 297.5 | D87: 308.8 | E87: 282 | F87: 295.15 | G87: 291.45 | H87: 288.2 | I87: 15837 | J87: 4701029.45 | K87: 2020-04-01 | L87: 713 | M87: INE372A01015
A88: APCL | B88: EQ | C88: 97.25 | D88: 97.25 | E88: 91 | F88: 91.45 | G88: 91.5 | H88: 94.35 | I88: 1436 | J88: 132464.7 | K88: 2020-04-01 | L88: 103 | M88: INE071F01012
A89: APCOTEXIND | B89: EQ | C89: 78.9 | D89: 80.65 | E89: 77.1 | F89: 78.7 | G89: 79.5 | H89: 77.35 | I89: 7469 | J89: 588871.5 | K89: 2020-04-01 | L89: 225 | M89: INE116A01032
A90: APEX | B90: EQ | C90: 165 | D90: 175 | E90: 165 | F90: 171.9 | G90: 171.2 | H90: 168.55 | I90: 98134 | J90: 16919403 | K90: 2020-04-01 | L90: 2625 | M90: INE346W01013
A91: APLAPOLLO | B91: EQ | C91: 1255 | D91: 1263.95 | E91: 1205.95 | F91: 1232.3 | G91: 1233.7 | H91: 1246.65 | I91: 9574 | J91: 11807168.1 | K91: 2020-04-01 | L91: 1267 | M91: INE702C01019
A92: APLLTD | B92: EQ | C92: 543 | D92: 545 | E92: 519 | F92: 533.45 | G92: 531 | H92: 534.25 | I92: 142618 | J92: 76645531.1 | K92: 2020-04-01 | L92: 4793 | M92: INE901L01018
A93: APOLLO | B93: EQ | C93: 44.45 | D93: 48.7 | E93: 43 | F93: 45.65 | G93: 45 | H93: 45.15 | I93: 13595 | J93: 612624.7 | K93: 2020-04-01 | L93: 655 | M93: INE713T01010
A94: APOLLOHOSP | B94: EQ | C94: 1136 | D94: 1139 | E94: 1080.05 | F94: 1088.85 | G94: 1090 | H94: 1139.05 | I94: 1017298 | J94: 1124060440 | K94: 2020-04-01 | L94: 101574 | M94: INE437A01024
A95: APOLLOPIPE | B95: EQ | C95: 265 | D95: 265 | E95: 230 | F95: 238.25 | G95: 237 | H95: 244.85 | I95: 4880 | J95: 1173271.5 | K95: 2020-04-01 | L95: 261 | M95: INE126J01016
A96: APOLLOTYRE | B96: EQ | C96: 79.4 | D96: 79.75 | E96: 76.8 | F96: 77.9 | G96: 78 | H96: 79.4 | I96: 4215118 | J96: 327869860.9 | K96: 2020-04-01 | L96: 31948 | M96: INE438A01022
A97: APOLSINHOT | B97: EQ | C97: 410 | D97: 431.2 | E97: 391.25 | F97: 430.35 | G97: 431.2 | H97: 392 | I97: 1333 | J97: 559389.15 | K97: 2020-04-01 | L97: 171 | M97: INE451F01024
A98: APTECHT | B98: EQ | C98: 85.8 | D98: 87.7 | E98: 81 | F98: 82.75 | G98: 82.5 | H98: 83.5 | I98: 149272 | J98: 12640609.2 | K98: 2020-04-01 | L98: 2948 | M98: INE266F01018
A99: ARCHIDPLY | B99: EQ | C99: 16 | D99: 17 | E99: 15.2 | F99: 16.8 | G99: 17 | H99: 15.4 | I99: 4165 | J99: 68643.95 | K99: 2020-04-01 | L99: 119 | M99: INE877I01016
A100: ARCHIES | B100: EQ | C100: 8.75 | D100: 9.15 | E100: 8.6 | F100: 9 | G100: 9.05 | H100: 8.8 | I100: 15996 | J100: 141695.8 | K100: 2020-04-01 | L100: 95 | M100: INE731A01020
A101: ARCOTECH | B101: EQ | C101: 0.85 | D101: 0.9 | E101: 0.8 | F101: 0.9 | G101: 0.9 | H101: 0.85 | I101: 52439 | J101: 46511.6 | K101: 2020-04-01 | L101: 53 | M101: INE574I01035
A102: ARIES | B102: EQ | C102: 39.95 | D102: 40.95 | E102: 38.9 | F102: 39.55 | G102: 39.75 | H102: 40 | I102: 9597 | J102: 380957.5 | K102: 2020-04-01 | L102: 244 | M102: INE298I01015
A103: ARIHANT | B103: EQ | C103: 10.75 | D103: 11.55 | E103: 10.75 | F103: 11.55 | G103: 11.55 | H103: 11.1 | I103: 11 | J103: 120.3 | K103: 2020-04-01 | L103: 3 | M103: INE413D01011
A104: ARIHANTSUP | B104: EQ | C104: 21.45 | D104: 21.45 | E104: 20.2 | F104: 20.3 | G104: 21.2 | H104: 21 | I104: 1061 | J104: 21545.45 | K104: 2020-04-01 | L104: 11 | M104: INE643K01018
A105: ARMANFIN | B105: EQ | C105: 405 | D105: 420 | E105: 393.8 | F105: 393.8 | G105: 393.8 | H105: 414.5 | I105: 36140 | J105: 14874998.85 | K105: 2020-04-01 | L105: 607 | M105: INE109C01017
A106: AROGRANITE | B106: EQ | C106: 19.8 | D106: 20.5 | E106: 19.2 | F106: 19.9 | G106: 20.3 | H106: 18.8 | I106: 4467 | J106: 87878.45 | K106: 2020-04-01 | L106: 34 | M106: INE210C01013
A107: ARROWGREEN | B107: BE | C107: 34 | D107: 34 | E107: 31.95 | F107: 31.95 | G107: 31.95 | H107: 33.6 | I107: 2942 | J107: 95413.1 | K107: 2020-04-01 | L107: 36 | M107: INE570D01018
A108: ARSHIYA | B108: EQ | C108: 6.75 | D108: 7.1 | E108: 6.75 | F108: 7.1 | G108: 7.05 | H108: 6.8 | I108: 11576 | J108: 81510.6 | K108: 2020-04-01 | L108: 56 | M108: INE968D01022
A109: ARSSINFRA | B109: EQ | C109: 9.9 | D109: 10.35 | E109: 9.4 | F109: 10.05 | G109: 10.2 | H109: 10 | I109: 5887 | J109: 58271.2 | K109: 2020-04-01 | L109: 57 | M109: INE267I01010
A110: ARTEMISMED | B110: EQ | C110: 137 | D110: 137 | E110: 125.95 | F110: 127.2 | G110: 127.2 | H110: 137 | I110: 250 | J110: 32604.05 | K110: 2020-04-01 | L110: 16 | M110: INE025R01013
A111: ARVIND | B111: EQ | C111: 19.6 | D111: 20.6 | E111: 19.5 | F111: 19.7 | G111: 20 | H111: 19.65 | I111: 837710 | J111: 16651705.4 | K111: 2020-04-01 | L111: 3740 | M111: INE034A01011
A112: ARVINDFASN | B112: EQ | C112: 145.65 | D112: 147 | E112: 135.15 | F112: 137.45 | G112: 137.7 | H112: 146.55 | I112: 33363 | J112: 4702618.55 | K112: 2020-04-01 | L112: 1135 | M112: INE955V01021
A113: ARVSMART | B113: EQ | C113: 67.25 | D113: 68.9 | E113: 65.55 | F113: 67.8 | G113: 68.9 | H113: 67.55 | I113: 36455 | J113: 2438578.6 | K113: 2020-04-01 | L113: 497 | M113: INE034S01021
A114: ASAHIINDIA | B114: EQ | C114: 157 | D114: 157 | E114: 148 | F114: 150.9 | G114: 151.95 | H114: 156.15 | I114: 4248 | J114: 647714.65 | K114: 2020-04-01 | L114: 195 | M114: INE439A01020
A115: ASAHISONG | B115: EQ | C115: 74 | D115: 77.85 | E115: 74 | F115: 75.7 | G115: 75 | H115: 73.5 | I115: 5787 | J115: 437228.45 | K115: 2020-04-01 | L115: 153 | M115: INE228I01012
A116: ASAL | B116: EQ | C116: 12.35 | D116: 13.6 | E116: 12.35 | F116: 13 | G116: 13.05 | H116: 13 | I116: 4354 | J116: 56719.25 | K116: 2020-04-01 | L116: 52 | M116: INE900C01027
A117: ASALCBR | B117: EQ | C117: 160 | D117: 162.9 | E117: 152.1 | F117: 155.35 | G117: 155.45 | H117: 157.9 | I117: 8214 | J117: 1293961.9 | K117: 2020-04-01 | L117: 517 | M117: INE073G01016
A118: ASHAPURMIN | B118: EQ | C118: 20.45 | D118: 21.3 | E118: 19.8 | F118: 20.85 | G118: 21 | H118: 20.45 | I118: 23031 | J118: 476602.65 | K118: 2020-04-01 | L118: 196 | M118: INE348A01023
A119: ASHIANA | B119: EQ | C119: 52 | D119: 52 | E119: 49.75 | F119: 49.95 | G119: 49.9 | H119: 49.8 | I119: 44305 | J119: 2224301.6 | K119: 2020-04-01 | L119: 352 | M119: INE365D01021
A120: ASHIMASYN | B120: EQ | C120: 3.35 | D120: 3.35 | E120: 2.95 | F120: 3.1 | G120: 3.2 | H120: 3.2 | I120: 53645 | J120: 167555.25 | K120: 2020-04-01 | L120: 486 | M120: INE440A01010
A121: ASHOKA | B121: EQ | C121: 40.8 | D121: 42.5 | E121: 39.2 | F121: 39.4 | G121: 39.25 | H121: 41.35 | I121: 447567 | J121: 18023668.5 | K121: 2020-04-01 | L121: 7693 | M121: INE442H01029
A122: ASHOKLEY | B122: EQ | C122: 43.05 | D122: 44.2 | E122: 40.1 | F122: 41.1 | G122: 41.2 | H122: 43.05 | I122: 37101228 | J122: 1558133427 | K122: 2020-04-01 | L122: 100300 | M122: INE208A01029
A123: ASIANHOTNR | B123: EQ | C123: 69.35 | D123: 69.35 | E123: 65 | F123: 66.4 | G123: 68.6 | H123: 68.75 | I123: 925 | J123: 62087.45 | K123: 2020-04-01 | L123: 60 | M123: INE363A01022
A124: ASIANPAINT | B124: EQ | C124: 1650.05 | D124: 1655 | E124: 1584.25 | F124: 1603.2 | G124: 1604.8 | H124: 1666.5 | I124: 1559456 | J124: 2513258287 | K124: 2020-04-01 | L124: 106082 | M124: INE021A01026
A125: ASIANTILES | B125: EQ | C125: 162.8 | D125: 163.2 | E125: 150.2 | F125: 157.45 | G125: 160 | H125: 161.85 | I125: 22953 | J125: 3635746.6 | K125: 2020-04-01 | L125: 739 | M125: INE022I01019
A126: ASPINWALL | B126: EQ | C126: 96.9 | D126: 96.9 | E126: 85 | F126: 90 | G126: 90 | H126: 86.5 | I126: 261 | J126: 23490.4 | K126: 2020-04-01 | L126: 23 | M126: INE991I01015
A127: ASTEC | B127: EQ | C127: 460 | D127: 460 | E127: 390 | F127: 393.1 | G127: 390 | H127: 388.3 | I127: 5064 | J127: 2043194.65 | K127: 2020-04-01 | L127: 418 | M127: INE563J01010
A128: ASTERDM | B128: EQ | C128: 96.7 | D128: 96.7 | E128: 92.9 | F128: 93.75 | G128: 93.25 | H128: 95.15 | I128: 71250 | J128: 6708504.7 | K128: 2020-04-01 | L128: 2335 | M128: INE914M01019
A129: ASTRAL | B129: EQ | C129: 936.85 | D129: 965.8 | E129: 921 | F129: 951.6 | G129: 951 | H129: 936.85 | I129: 34885 | J129: 32878975.25 | K129: 2020-04-01 | L129: 6593 | M129: INE006I01046
A130: ASTRAMICRO | B130: EQ | C130: 52.5 | D130: 55.7 | E130: 51.75 | F130: 54.95 | G130: 55.15 | H130: 51.9 | I130: 179064 | J130: 9751414.45 | K130: 2020-04-01 | L130: 1449 | M130: INE386C01029
A131: ASTRAZEN | B131: EQ | C131: 2419 | D131: 2435 | E131: 2345.5 | F131: 2409.2 | G131: 2405 | H131: 2403.85 | I131: 11193 | J131: 26822967.45 | K131: 2020-04-01 | L131: 2263 | M131: INE203A01020
A132: ASTRON | B132: EQ | C132: 28.5 | D132: 28.5 | E132: 25.6 | F132: 26.05 | G132: 26.5 | H132: 26.95 | I132: 15242 | J132: 403614.85 | K132: 2020-04-01 | L132: 341 | M132: INE646X01014
A133: ATFL | B133: EQ | C133: 397.85 | D133: 397.85 | E133: 382.85 | F133: 389 | G133: 385.1 | H133: 382.3 | I133: 4883 | J133: 1902598.85 | K133: 2020-04-01 | L133: 383 | M133: INE209A01019
A134: ATLANTA | B134: EQ | C134: 2.8 | D134: 2.8 | E134: 2.65 | F134: 2.8 | G134: 2.8 | H134: 2.7 | I134: 22766 | J134: 62539.9 | K134: 2020-04-01 | L134: 188 | M134: INE285H01022
A135: ATLASCYCLE | B135: BE | C135: 29.5 | D135: 30.95 | E135: 28.5 | F135: 30.95 | G135: 30.95 | H135: 29.5 | I135: 1227 | J135: 36664.5 | K135: 2020-04-01 | L135: 20 | M135: INE446A01025
A136: ATNINTER | B136: BE | C136: 0.1 | D136: 0.1 | E136: 0.1 | F136: 0.1 | G136: 0.1 | H136: 0.1 | I136: 12604 | J136: 1260.4 | K136: 2020-04-01 | L136: 2 | M136: INE803A01027
A137: ATUL | B137: EQ | C137: 3984.9 | D137: 4050 | E137: 3865.05 | F137: 3900.1 | G137: 3940 | H137: 3988.45 | I137: 38176 | J137: 150481272.5 | K137: 2020-04-01 | L137: 3759 | M137: INE100A01010
A138: ATULAUTO | B138: EQ | C138: 139 | D138: 140 | E138: 133 | F138: 136.7 | G138: 137.6 | H138: 139.35 | I138: 12764 | J138: 1751287.55 | K138: 2020-04-01 | L138: 567 | M138: INE951D01028
A139: AUBANK | B139: EQ | C139: 530 | D139: 530 | E139: 480.1 | F139: 481.35 | G139: 480.1 | H139: 505.35 | I139: 911795 | J139: 455337944.9 | K139: 2020-04-01 | L139: 65429 | M139: INE949L01017
A140: AURIONPRO | B140: EQ | C140: 43 | D140: 43 | E140: 40 | F140: 41.65 | G140: 42 | H140: 40.5 | I140: 4361 | J140: 179973.7 | K140: 2020-04-01 | L140: 104 | M140: INE132H01018
A141: AUROPHARMA | B141: EQ | C141: 415 | D141: 416.15 | E141: 384.45 | F141: 392.3 | G141: 392.35 | H141: 413.15 | I141: 3433906 | J141: 1356873791 | K141: 2020-04-01 | L141: 58915 | M141: INE406A01037
A142: AUSOMENT | B142: EQ | C142: 26 | D142: 26.05 | E142: 26 | F142: 26 | G142: 26 | H142: 26.35 | I142: 798 | J142: 20753 | K142: 2020-04-01 | L142: 6 | M142: INE218C01016
A143: AUTOAXLES | B143: EQ | C143: 384.05 | D143: 384.05 | E143: 350 | F143: 360.8 | G143: 380 | H143: 384.05 | I143: 5930 | J143: 2178611 | K143: 2020-04-01 | L143: 560 | M143: INE449A01011
A144: AUTOIND | B144: EQ | C144: 9.3 | D144: 10.2 | E144: 9.3 | F144: 10.2 | G144: 10.2 | H144: 9.75 | I144: 13210 | J144: 132940.8 | K144: 2020-04-01 | L144: 102 | M144: INE718H01014
A145: AUTOLITIND | B145: EQ | C145: 11.55 | D145: 12.55 | E145: 11.4 | F145: 12.55 | G145: 12.55 | H145: 11.45 | I145: 14046 | J145: 171667.5 | K145: 2020-04-01 | L145: 164 | M145: INE448A01013
A146: AVADHSUGAR | B146: EQ | C146: 124.05 | D146: 124.05 | E146: 124.05 | F146: 124.05 | G146: 124.05 | H146: 118.15 | I146: 17292 | J146: 2145072.6 | K146: 2020-04-01 | L146: 75 | M146: INE349W01017
A147: AVANTIFEED | B147: EQ | C147: 291 | D147: 298.75 | E147: 281.85 | F147: 283.65 | G147: 284 | H147: 294.25 | I147: 323014 | J147: 93145576.45 | K147: 2020-04-01 | L147: 13107 | M147: INE871C01038
A148: AVTNPL | B148: EQ | C148: 24.2 | D148: 24.3 | E148: 23.1 | F148: 23.8 | G148: 23.4 | H148: 23.65 | I148: 47696 | J148: 1135020.4 | K148: 2020-04-01 | L148: 419 | M148: INE488D01021
A149: AXISBANK | B149: EQ | C149: 376.25 | D149: 379.8 | E149: 354 | F149: 358.65 | G149: 355.5 | H149: 379 | I149: 27745001 | J149: 10166036367 | K149: 2020-04-01 | L149: 334884 | M149: INE238A01034
A150: AXISCADES | B150: EQ | C150: 28.5 | D150: 29.55 | E150: 27.25 | F150: 28.95 | G150: 29.25 | H150: 28.15 | I150: 27671 | J150: 799072.45 | K150: 2020-04-01 | L150: 555 | M150: INE555B01013
A151: AXISGOLD | B151: EQ | C151: 3852.8 | D151: 3852.8 | E151: 3777 | F151: 3807.85 | G151: 3812 | H151: 3852.8 | I151: 533 | J151: 2027141 | K151: 2020-04-01 | L151: 129 | M151: INF846K01347
A152: AXISNIFTY | B152: EQ | C152: 1008.7 | D152: 1010 | E152: 995 | F152: 1010 | G152: 1010 | H152: 1056 | I152: 12 | J152: 12062.4 | K152: 2020-04-01 | L152: 6 | M152: INF846K01ZL0
A153: AYMSYNTEX | B153: EQ | C153: 16.5 | D153: 16.9 | E153: 15.55 | F153: 16.55 | G153: 16.55 | H153: 15.75 | I153: 9203 | J153: 150520 | K153: 2020-04-01 | L153: 51 | M153: INE193B01039
A154: BAFNAPH | B154: EQ | C154: 13.95 | D154: 13.95 | E154: 13.95 | F154: 13.95 | G154: 13.95 | H154: 13.3 | I154: 224 | J154: 3124.8 | K154: 2020-04-01 | L154: 6 | M154: INE878I01022
A155: BAGFILMS | B155: BE | C155: 1.8 | D155: 1.85 | E155: 1.75 | F155: 1.75 | G155: 1.85 | H155: 1.8 | I155: 37677 | J155: 68083.65 | K155: 2020-04-01 | L155: 45 | M155: INE116D01028
A156: BAJAJ-AUTO | B156: EQ | C156: 2000 | D156: 2095.8 | E156: 1990 | F156: 2051.1 | G156: 2043 | H156: 2022.35 | I156: 869738 | J156: 1774915394 | K156: 2020-04-01 | L156: 72764 | M156: INE917I01010
A157: BAJAJCON | B157: EQ | C157: 132.45 | D157: 140.45 | E157: 132.45 | F157: 134.05 | G157: 134.8 | H157: 132.45 | I157: 170377 | J157: 23210326.3 | K157: 2020-04-01 | L157: 4018 | M157: INE933K01021
A158: BAJAJELEC | B158: EQ | C158: 271 | D158: 273.6 | E158: 264.95 | F158: 268.5 | G158: 271.15 | H158: 268.45 | I158: 88649 | J158: 23751910.3 | K158: 2020-04-01 | L158: 9241 | M158: INE193E01025
A159: BAJAJFINSV | B159: EQ | C159: 4560 | D159: 4667.7 | E159: 4460 | F159: 4501.9 | G159: 4491 | H159: 4591.2 | I159: 757772 | J159: 3456370945 | K159: 2020-04-01 | L159: 122754 | M159: INE918I01018
A160: BAJAJHIND | B160: EQ | C160: 2.75 | D160: 2.75 | E160: 2.75 | F160: 2.75 | G160: 2.75 | H160: 2.65 | I160: 267244 | J160: 734921 | K160: 2020-04-01 | L160: 149 | M160: INE306A01021
A161: BAJAJHLDNG | B161: EQ | C161: 1819 | D161: 1819 | E161: 1725.5 | F161: 1754.55 | G161: 1750 | H161: 1798.55 | I161: 30051 | J161: 52774941.9 | K161: 2020-04-01 | L161: 8031 | M161: INE118A01012
A162: BAJFINANCE | B162: EQ | C162: 2180 | D162: 2286.9 | E162: 2132.65 | F162: 2219.35 | G162: 2226 | H162: 2215.8 | I162: 6408401 | J162: 1.418109197e+10 | K162: 2020-04-01 | L162: 452859 | M162: INE296A01024
A163: BALAJITELE | B163: EQ | C163: 39 | D163: 39 | E163: 35.6 | F163: 36.35 | G163: 35.75 | H163: 37.75 | I163: 29338 | J163: 1075076.05 | K163: 2020-04-01 | L163: 597 | M163: INE794B01026
A164: BALAMINES | B164: EQ | C164: 255 | D164: 258.95 | E164: 245.5 | F164: 252.05 | G164: 250.05 | H164: 251.6 | I164: 12817 | J164: 3240757.15 | K164: 2020-04-01 | L164: 607 | M164: INE050E01027
A165: BALAXI | B165: BE | C165: 77.7 | D165: 77.7 | E165: 75 | F165: 76.9 | G165: 77 | H165: 74 | I165: 739 | J165: 56016.4 | K165: 2020-04-01 | L165: 27 | M165: INE618N01014
A166: BALKRISHNA | B166: EQ | C166: 7.8 | D166: 8 | E166: 7.7 | F166: 8 | G166: 8 | H166: 7.8 | I166: 2667 | J166: 20937.85 | K166: 2020-04-01 | L166: 23 | M166: INE875R01011
A167: BALKRISIND | B167: EQ | C167: 785 | D167: 819 | E167: 738.5 | F167: 803.05 | G167: 803 | H167: 791.65 | I167: 1464051 | J167: 1126261951 | K167: 2020-04-01 | L167: 64690 | M167: INE787D01026
A168: BALLARPUR | B168: EQ | C168: 0.3 | D168: 0.35 | E168: 0.3 | F168: 0.35 | G168: 0.35 | H168: 0.35 | I168: 906565 | J168: 305272.95 | K168: 2020-04-01 | L168: 210 | M168: INE294A01037
A169: BALMLAWRIE | B169: EQ | C169: 79.5 | D169: 89 | E169: 78.55 | F169: 84.5 | G169: 84.5 | H169: 79.45 | I169: 795907 | J169: 67819423.05 | K169: 2020-04-01 | L169: 9993 | M169: INE164A01016
A170: BALPHARMA | B170: EQ | C170: 32 | D170: 32.95 | E170: 30.1 | F170: 31.1 | G170: 31.4 | H170: 31.9 | I170: 6032 | J170: 189847.55 | K170: 2020-04-01 | L170: 174 | M170: INE083D01012
A171: BALRAMCHIN | B171: EQ | C171: 109.25 | D171: 109.25 | E171: 109.25 | F171: 109.25 | G171: 109.25 | H171: 104.05 | I171: 199795 | J171: 21827603.75 | K171: 2020-04-01 | L171: 860 | M171: INE119A01028
A172: BANARBEADS | B172: EQ | C172: 28.5 | D172: 32.5 | E172: 28.5 | F172: 32.15 | G172: 31.8 | H172: 29.45 | I172: 243 | J172: 7527 | K172: 2020-04-01 | L172: 17 | M172: INE655B01011
A173: BANARISUG | B173: EQ | C173: 867.95 | D173: 911.05 | E173: 867.95 | F173: 903.4 | G173: 900 | H173: 867.7 | I173: 782 | J173: 708790.4 | K173: 2020-04-01 | L173: 91 | M173: INE459A01010
A174: BANCOINDIA | B174: EQ | C174: 65.95 | D174: 66 | E174: 63.1 | F174: 63.7 | G174: 64 | H174: 65.05 | I174: 39790 | J174: 2563247.4 | K174: 2020-04-01 | L174: 733 | M174: INE213C01025
A175: BANDHANBNK | B175: EQ | C175: 205.9 | D175: 207.7 | E175: 191 | F175: 194.9 | G175: 195 | H175: 203.75 | I175: 9322297 | J175: 1841853246 | K175: 2020-04-01 | L175: 145402 | M175: INE545U01014
A176: BANG | B176: EQ | C176: 11.15 | D176: 12.1 | E176: 11.15 | F176: 11.4 | G176: 11.5 | H176: 11.6 | I176: 1124 | J176: 12897.5 | K176: 2020-04-01 | L176: 16 | M176: INE863I01016
A177: BANKBARODA | B177: EQ | C177: 54 | D177: 54.35 | E177: 50.8 | F177: 51.25 | G177: 51.25 | H177: 53.55 | I177: 16340613 | J177: 845610600.5 | K177: 2020-04-01 | L177: 62068 | M177: INE028A01039
A178: BANKBEES | B178: EQ | C178: 195 | D178: 195 | E178: 185.5 | F178: 187.02 | G178: 187.2 | H178: 194.57 | I178: 266080 | J178: 49941230.76 | K178: 2020-04-01 | L178: 5856 | M178: INF204KB15I9
A179: BANKINDIA | B179: EQ | C179: 32.3 | D179: 32.7 | E179: 32.1 | F179: 32.4 | G179: 32.25 | H179: 32.25 | I179: 727916 | J179: 23567875.6 | K179: 2020-04-01 | L179: 4134 | M179: INE084A01016
A180: BANSWRAS | B180: EQ | C180: 71 | D180: 75 | E180: 70.25 | F180: 72.5 | G180: 70.4 | H180: 72.85 | I180: 688 | J180: 49437.2 | K180: 2020-04-01 | L180: 51 | M180: INE629D01012
A181: BASF | B181: EQ | C181: 1150 | D181: 1150 | E181: 1084.35 | F181: 1096.85 | G181: 1111.5 | H181: 1125.25 | I181: 12354 | J181: 13686572.45 | K181: 2020-04-01 | L181: 1437 | M181: INE373A01013
A182: BASML | B182: EQ | C182: 68.2 | D182: 74.45 | E182: 67.5 | F182: 71.05 | G182: 71.05 | H182: 69.4 | I182: 440 | J182: 31385.25 | K182: 2020-04-01 | L182: 33 | M182: INE186H01014
A183: BATAINDIA | B183: EQ | C183: 1238.75 | D183: 1249 | E183: 1170 | F183: 1189.7 | G183: 1187 | H183: 1231.1 | I183: 503551 | J183: 603311341.9 | K183: 2020-04-01 | L183: 45683 | M183: INE176A01028
A184: BAYERCROP | B184: EQ | C184: 3426 | D184: 3466.5 | E184: 3290 | F184: 3330.8 | G184: 3300 | H184: 3455.95 | I184: 5148 | J184: 17277645.4 | K184: 2020-04-01 | L184: 2340 | M184: INE462A01022
A185: BBL | B185: EQ | C185: 565.05 | D185: 590 | E185: 548.05 | F185: 579.75 | G185: 589 | H185: 569.55 | I185: 3203 | J185: 1822605.45 | K185: 2020-04-01 | L185: 399 | M185: INE464A01028
A186: BBTC | B186: EQ | C186: 737 | D186: 759 | E186: 720 | F186: 726.1 | G186: 727 | H186: 732.5 | I186: 29548 | J186: 21745533.75 | K186: 2020-04-01 | L186: 2916 | M186: INE050A01025
A187: BCG | B187: EQ | C187: 3 | D187: 3.25 | E187: 2.95 | F187: 3.2 | G187: 3.25 | H187: 3.1 | I187: 235316 | J187: 722581 | K187: 2020-04-01 | L187: 182 | M187: INE425B01027
A188: BCP | B188: EQ | C188: 10.35 | D188: 10.35 | E188: 10.35 | F188: 10.35 | G188: 10.35 | H188: 10.85 | I188: 4287 | J188: 44370.45 | K188: 2020-04-01 | L188: 16 | M188: INE905P01028
A189: BDL | B189: EQ | C189: 185.15 | D189: 189.45 | E189: 182.1 | F189: 184.35 | G189: 186 | H189: 185.15 | I189: 23387 | J189: 4337792.45 | K189: 2020-04-01 | L189: 1441 | M189: INE171Z01018
A190: BEARDSELL | B190: EQ | C190: 6.8 | D190: 7 | E190: 6.6 | F190: 6.85 | G190: 6.8 | H190: 6.8 | I190: 2509 | J190: 16942.4 | K190: 2020-04-01 | L190: 17 | M190: INE520H01022
A191: BEDMUTHA | B191: EQ | C191: 13.2 | D191: 13.2 | E191: 13.2 | F191: 13.2 | G191: 13.2 | H191: 13.15 | I191: 71 | J191: 937.2 | K191: 2020-04-01 | L191: 2 | M191: INE844K01012
A192: BEL | B192: EQ | C192: 73.8 | D192: 76.25 | E192: 67.4 | F192: 69.05 | G192: 70 | H192: 74.45 | I192: 9661775 | J192: 685304943 | K192: 2020-04-01 | L192: 42426 | M192: INE263A01024
A193: BEML | B193: EQ | C193: 451 | D193: 467.3 | E193: 441.65 | F193: 443.9 | G193: 443.95 | H193: 451.65 | I193: 106870 | J193: 48200728.7 | K193: 2020-04-01 | L193: 5902 | M193: INE258A01016
A194: BEPL | B194: EQ | C194: 29.5 | D194: 30.75 | E194: 28.55 | F194: 30 | G194: 29.55 | H194: 28.85 | I194: 221265 | J194: 6595164.7 | K194: 2020-04-01 | L194: 1869 | M194: INE922A01025
A195: BERGEPAINT | B195: EQ | C195: 500.4 | D195: 500.85 | E195: 476.4 | F195: 483.45 | G195: 484.45 | H195: 497.95 | I195: 1001576 | J195: 486823113.1 | K195: 2020-04-01 | L195: 27880 | M195: INE463A01038
A196: BFINVEST | B196: EQ | C196: 228.4 | D196: 238.1 | E196: 228 | F196: 238 | G196: 238.1 | H196: 226.8 | I196: 5896 | J196: 1385519.2 | K196: 2020-04-01 | L196: 268 | M196: INE878K01010
A197: BFUTILITIE | B197: EQ | C197: 150.4 | D197: 151.4 | E197: 144 | F197: 147.4 | G197: 145.5 | H197: 144.2 | I197: 136246 | J197: 20407873.45 | K197: 2020-04-01 | L197: 1888 | M197: INE243D01012
A198: BGRENERGY | B198: EQ | C198: 21.1 | D198: 21.65 | E198: 20.95 | F198: 21.4 | G198: 21.65 | H198: 20.95 | I198: 15322 | J198: 326315.9 | K198: 2020-04-01 | L198: 222 | M198: INE661I01014
A199: BHAGERIA | B199: EQ | C199: 77.95 | D199: 80.5 | E199: 76 | F199: 79.25 | G199: 79 | H199: 75.65 | I199: 13488 | J199: 1059013.95 | K199: 2020-04-01 | L199: 267 | M199: INE354C01027
A200: BHAGYANGR | B200: EQ | C200: 14.2 | D200: 15.65 | E200: 14 | F200: 14.25 | G200: 14.1 | H200: 14.3 | I200: 391 | J200: 5539.95 | K200: 2020-04-01 | L200: 22 | M200: INE458B01036
... 1470 more rows

Sheet Sheet1 (hidden)

Sheet Sheet3 (hidden)

Sheet Sheet4 (hidden)

Sheet Sheet5 (hidden)
